Workbook

Sheet data
B2: TAB: ECONOMIC FORECAST DATA, US UNEMPLOYMENT
D4: Individual Forecasts | Q4: Actual Historical Data | U4: Tested entity forecasts
B5: Date | C5: ID | D5: YEAR | E5: QUARTER | F5: ID | G5: INDUSTRY | H5: UNEMP1 | I5: UNEMP2 | J5: UNEMP3 | K5: UNEMP4 | L5: UNEMP5 | M5: UNEMP6 | N5: UNEMPA | O5: UNEMPB | Q5: Quarter | R5: Date | S5: UNEMP | U5: Quarter | V5: MA | W5: TD
B6: =COUNT(B7:B10000) -> 3083 | C6: =COUNTA(C7:C10000) -> 4494 | D6: =E6 -> 3083 | E6: =B6 -> 3083 | F6: =B6 -> 3083 | G6: =F6 -> 3083 | H6: 3083 | I6: 3083 | J6: 3083 | K6: 3083 | L6: 3083 | M6: 3083 | N6: =M6 -> 3083 | O6: =N6 -> 3083
B7: =IF(D7="", "", DATE(D7, 3*E7+1, 0)) -> 2000-03-31 | C7: =IF(D7="", "", TEXT(F7, "##")) -> 20 | D7: 2000 | E7: 1 | F7: 20 | G7: 2 | H7: 4.1 | I7: 4 | J7: 4 | K7: 4 | L7: 4 | M7: 4 | N7: 4 | O7: 4 | Q7: 2000Q1 | R7: 2000-03-31 | S7: 4.033 | U7: 2018Q3 | V7: 3.71 | W7: 3.758
B8: =IF(D8="", "", DATE(D8, 3*E8+1, 0)) -> 2000-03-31 | C8: =IF(D8="", "", TEXT(F8, "##")) -> 40 | D8: 2000 | E8: 1 | F8: 40 | G8: 2 | H8: 4.1 | I8: 4.1 | J8: 4.1 | K8: 4.2 | L8: 4.2 | M8: 4.3 | N8: 4.2 | O8: 4.4 | Q8: 2000Q2 | R8: 2000-06-30 | S8: 3.933 | U8: 2018Q4 | V8: 3.64 | W8: 3.668
B9: 2000-03-31 | C9: 65 | D9: 2000 | E9: 1 | F9: 65 | G9: 2 | H9: 4.1 | I9: 4.3 | J9: 4.5 | K9: 4.7 | L9: 4.6 | M9: 4.5 | N9: 4.5 | O9: 4.45 | Q9: 2000Q3 | R9: 2000-09-30 | S9: 4 | U9: 2019Q1 | V9: 3.6 | W9: 3.618
B10: 2000-03-31 | C10: 84 | D10: 2000 | E10: 1 | F10: 84 | G10: 1 | H10: 4.1 | I10: 4 | J10: 3.9 | K10: 3.9 | L10: 4 | M10: #N/A | N10: 3.9 | O10: #N/A | Q10: 2000Q4 | R10: 2000-12-31 | S10: 3.9 | U10: 2019Q2 | V10: 3.52 | W10: 3.57
B11: 2000-03-31 | C11: 94 | D11: 2000 | E11: 1 | F11: 94 | G11: 1 | H11: 4.1 | I11: 3.9 | J11: 4 | K11: 4.1 | L11: 4.2 | M11: 4.3 | N11: 4 | O11: 4.3 | Q11: 2001Q1 | R11: 2001-03-31 | S11: 4.233 | U11: 2019Q3 | V11: 3.48 | W11: 3.526
B12: 2000-03-31 | C12: 407 | D12: 2000 | E12: 1 | F12: 407 | G12: 1 | H12: 4.1 | I12: 4 | J12: 4 | K12: 4 | L12: 4.1 | M12: 4.1 | N12: 4 | O12: 4.2 | Q12: 2001Q2 | R12: 2001-06-30 | S12: 4.4 | U12: 2019Q4 | V12: 3.46 | W12: 3.495
B13: 2000-03-31 | C13: 411 | D13: 2000 | E13: 1 | F13: 411 | G13: 2 | H13: 4.1 | I13: 4.1 | J13: 4.1 | K13: 4.1 | L13: 4.2 | M13: 4.3 | N13: 4.1 | O13: 4.6 | Q13: 2001Q3 | R13: 2001-09-30 | S13: 4.833 | U13: 2020Q1 | V13: 3.48 | W13: 3.517
B14: 2000-03-31 | C14: 414 | D14: 2000 | E14: 1 | F14: 414 | G14: 1 | H14: 4.1 | I14: 3.9 | J14: 3.9 | K14: 4 | L14: 3.9 | M14: 4 | N14: 4 | O14: 4 | Q14: 2001Q4 | R14: 2001-12-31 | S14: 5.5 | U14: 2020Q2 | W14: 3.582
B15: 2000-03-31 | C15: 420 | D15: 2000 | E15: 1 | F15: 420 | G15: 2 | H15: 4.1 | I15: 4.1 | J15: 4.2 | K15: 4.4 | L15: 4.4 | M15: 4.5 | N15: 4.3 | O15: 4.6 | Q15: 2002Q1 | R15: 2002-03-31 | S15: 5.7 | U15: 2020Q3 | W15: 3.637
B16: 2000-03-31 | C16: 421 | D16: 2000 | E16: 1 | F16: 421 | G16: 2 | H16: 4.1 | I16: 4 | J16: 3.9 | K16: 4 | L16: 4.3 | M16: 4.5 | N16: 4.1 | O16: 4.5 | Q16: 2002Q2 | R16: 2002-06-30 | S16: 5.833 | U16: 2020Q4 | W16: 3.772
B17: 2000-03-31 | C17: 426 | D17: 2000 | E17: 1 | F17: 426 | G17: 2 | H17: 4.1 | I17: 4.1 | J17: 4.2 | K17: 4.2 | L17: 4.3 | M17: 4.4 | N17: 4.2 | O17: 4.4 | Q17: 2002Q3 | R17: 2002-09-30 | S17: 5.733 | U17: 2021Q1 | W17: 3.878
B18: 2000-03-31 | C18: 428 | D18: 2000 | E18: 1 | F18: 428 | G18: 2 | H18: 4.1 | I18: 4 | J18: 4 | K18: 4.1 | L18: 4.2 | M18: 4.4 | N18: 4.1 | O18: 4.6 | Q18: 2002Q4 | R18: 2002-12-31 | S18: 5.867 | U18: 2021Q2 | W18: 3.916
B19: 2000-03-31 | C19: 429 | D19: 2000 | E19: 1 | F19: 429 | G19: 2 | H19: 4.1 | I19: 4 | J19: 4.1 | K19: 4.2 | L19: 4.3 | M19: 4.3 | N19: 4.1 | O19: 4.4 | Q19: 2003Q1 | R19: 2003-03-31 | S19: 5.867 | U19: 2021Q3 | W19: 3.979
B20: 2000-03-31 | C20: 431 | D20: 2000 | E20: 1 | F20: 431 | G20: 1 | H20: 4.1 | I20: 4 | J20: 4.1 | K20: 4.2 | L20: 4.3 | M20: 4.4 | N20: 4.2 | O20: 4.5 | Q20: 2003Q2 | R20: 2003-06-30 | S20: 6.133 | U20: 2021Q4 | W20: 4.031
B21: 2000-03-31 | C21: 433 | D21: 2000 | E21: 1 | F21: 433 | G21: 2 | H21: 4.1 | I21: 4.1 | J21: 4.2 | K21: 4.4 | L21: 4.5 | M21: 4.6 | N21: 4.3 | O21: 4.8 | Q21: 2003Q3 | R21: 2003-09-30 | S21: 6.133 | U21: 2022Q1 | W21: 4.048
B22: 2000-03-31 | C22: 456 | D22: 2000 | E22: 1 | F22: 456 | G22: 1 | H22: 4.1 | I22: 4 | J22: 3.9 | K22: 3.8 | L22: 3.7 | M22: 3.7 | N22: 3.8 | O22: 3.8 | Q22: 2003Q4 | R22: 2003-12-31 | S22: 5.833 | U22: 2022Q2 | W22: 4.067
B23: 2000-03-31 | C23: 463 | D23: 2000 | E23: 1 | F23: 463 | G23: 3 | H23: 4.1 | I23: 3.9 | J23: 3.7 | K23: 3.8 | L23: 3.9 | M23: 3.9 | N23: 3.9 | O23: 3.9 | Q23: 2004Q1 | R23: 2004-03-31 | S23: 5.7 | U23: 2022Q3 | W23: 4.082
B24: 2000-03-31 | C24: 464 | D24: 2000 | E24: 1 | F24: 464 | G24: 1 | H24: 4.1 | I24: 4 | J24: 4 | K24: 4 | L24: 4 | M24: 4 | N24: 4 | O24: 4.1 | Q24: 2004Q2 | R24: 2004-06-30 | S24: 5.6 | U24: 2022Q4 | W24: 4.096
B25: 2000-03-31 | C25: 465 | D25: 2000 | E25: 1 | F25: 465 | G25: 1 | H25: 4.1 | I25: 4 | J25: 3.9 | K25: 4 | L25: 4.2 | M25: 4.3 | N25: 4 | O25: 4.3 | Q25: 2004Q3 | R25: 2004-09-30 | S25: 5.433 | U25: 2023Q1 | W25: 4.109
B26: 2000-03-31 | C26: 469 | D26: 2000 | E26: 1 | F26: 469 | G26: 2 | H26: 4.1 | I26: 4 | J26: 4.1 | K26: 4.1 | L26: 4.2 | M26: 4.2 | N26: 4.1 | O26: 4.3 | Q26: 2004Q4 | R26: 2004-12-31 | S26: 5.433 | U26: 2023Q2 | W26: 4.116
B27: 2000-03-31 | C27: 470 | D27: 2000 | E27: 1 | F27: 470 | G27: 2 | H27: 4.1 | I27: 4 | J27: 4 | K27: 4.1 | L27: 4.2 | M27: 4.2 | N27: 4.1 | O27: 4.5 | Q27: 2005Q1 | R27: 2005-03-31 | S27: 5.3 | U27: 2023Q3 | W27: 4.119
B28: 2000-03-31 | C28: 472 | D28: 2000 | E28: 1 | F28: 472 | G28: 2 | H28: 4.1 | I28: 4 | J28: 3.9 | K28: 3.9 | L28: 3.8 | M28: #N/A | N28: 3.9 | O28: #N/A | Q28: 2005Q2 | R28: 2005-06-30 | S28: 5.1 | U28: 2023Q4 | W28: 4.126
B29: 2000-03-31 | C29: 481 | D29: 2000 | E29: 1 | F29: 481 | G29: 3 | H29: 4.1 | I29: 4 | J29: 3.9 | K29: 4 | L29: 4.1 | M29: 4.3 | N29: 4 | O29: 4.4 | Q29: 2005Q3 | R29: 2005-09-30 | S29: 4.967
B30: 2000-03-31 | C30: 484 | D30: 2000 | E30: 1 | F30: 484 | G30: 2 | H30: 4.1 | I30: 4.2 | J30: 4.2 | K30: 4.2 | L30: 4.3 | M30: 4.3 | N30: 4.2 | O30: 4.3 | Q30: 2005Q4 | R30: 2005-12-31 | S30: 4.967
B31: 2000-03-31 | C31: 486 | D31: 2000 | E31: 1 | F31: 486 | G31: 1 | H31: 4.1 | I31: 4 | J31: 3.9 | K31: 4 | L31: 4 | M31: #N/A | N31: 4 | O31: 4.2 | Q31: 2006Q1 | R31: 2006-03-31 | S31: 4.733
B32: 2000-03-31 | C32: 498 | D32: 2000 | E32: 1 | F32: 498 | G32: 1 | H32: 4.1 | I32: 4 | J32: 3.9 | K32: 3.8 | L32: 3.9 | M32: 4 | N32: 3.9 | O32: 4 | Q32: 2006Q2 | R32: 2006-06-30 | S32: 4.633
B33: 2000-03-31 | C33: 499 | D33: 2000 | E33: 1 | F33: 499 | G33: 1 | H33: 4.1 | I33: 3.9 | J33: 4 | K33: 4 | L33: 4 | M33: 4 | N33: 4 | O33: 4.3 | Q33: 2006Q3 | R33: 2006-09-30 | S33: 4.633
B34: 2000-03-31 | C34: 500 | D34: 2000 | E34: 1 | F34: 500 | G34: 2 | H34: 4.1 | I34: 4.3 | J34: 4.4 | K34: 4.5 | L34: 4.5 | M34: 4.6 | N34: 4.4 | O34: 4.7 | Q34: 2006Q4 | R34: 2006-12-31 | S34: 4.433
B35: 2000-03-31 | C35: 501 | D35: 2000 | E35: 1 | F35: 501 | G35: 1 | H35: 4.1 | I35: 4 | J35: 4 | K35: 4.1 | L35: 4.2 | M35: 4.4 | N35: 4.1 | O35: 4.5 | Q35: 2007Q1 | R35: 2007-03-31 | S35: 4.5
B36: 2000-03-31 | C36: 504 | D36: 2000 | E36: 1 | F36: 504 | G36: 1 | H36: 4.1 | I36: 3.9 | J36: 3.9 | K36: 3.9 | L36: 3.9 | M36: #N/A | N36: 3.9 | O36: #N/A | Q36: 2007Q2 | R36: 2007-06-30 | S36: 4.5
B37: 2000-03-31 | C37: 506 | D37: 2000 | E37: 1 | F37: 506 | G37: 2 | H37: 4.1 | I37: 4.1 | J37: 4.3 | K37: 4.3 | L37: 4.3 | M37: 4.2 | N37: 4.2 | O37: 4.2 | Q37: 2007Q3 | R37: 2007-09-30 | S37: 4.667
B38: 2000-03-31 | C38: 507 | D38: 2000 | E38: 1 | F38: 507 | G38: 3 | H38: 4.1 | I38: 4 | J38: 3.9 | K38: 3.9 | L38: 4 | M38: 4.1 | N38: 4 | O38: 4.2 | Q38: 2007Q4 | R38: 2007-12-31 | S38: 4.8
B39: 2000-03-31 | C39: 508 | D39: 2000 | E39: 1 | F39: 508 | G39: 2 | H39: 4.1 | I39: 4.1 | J39: 4.1 | K39: 4 | L39: 3.9 | M39: 3.8 | N39: 4.1 | O39: 3.6 | Q39: 2008Q1 | R39: 2008-03-31 | S39: 5
B40: 2000-03-31 | C40: 510 | D40: 2000 | E40: 1 | F40: 510 | G40: 2 | H40: 4.1 | I40: 3.9 | J40: 3.8 | K40: 3.9 | L40: 3.8 | M40: 4 | N40: 3.8 | O40: 4.2 | Q40: 2008Q2 | R40: 2008-06-30 | S40: 5.333
B41: 2000-03-31 | C41: 512 | D41: 2000 | E41: 1 | F41: 512 | G41: 2 | H41: 4.1 | I41: 4 | J41: 4 | K41: 4 | L41: 4.2 | M41: 4.2 | N41: 4 | O41: 4.4 | Q41: 2008Q3 | R41: 2008-09-30 | S41: 6
B42: 2000-03-31 | C42: 513 | D42: 2000 | E42: 1 | F42: 513 | G42: 2 | H42: 4.1 | I42: 4 | J42: 3.9 | K42: 3.9 | L42: 3.6 | M42: 3.6 | N42: 3.85 | O42: 3.75 | Q42: 2008Q4 | R42: 2008-12-31 | S42: 6.867
B43: 2000-06-30 | C43: 20 | D43: 2000 | E43: 2 | F43: 20 | G43: 2 | H43: 4.1 | I43: 4 | J43: 4 | K43: 4 | L43: 4 | M43: 4 | N43: 4 | O43: 4 | Q43: 2009Q1 | R43: 2009-03-31 | S43: 8.267
B44: 2000-06-30 | C44: 65 | D44: 2000 | E44: 2 | F44: 65 | G44: 2 | H44: 4.1 | I44: 4 | J44: 4.1 | K44: 4.1 | L44: 4.1 | M44: 4.2 | N44: 4 | O44: 4.1 | Q44: 2009Q2 | R44: 2009-06-30 | S44: 9.3
B45: 2000-06-30 | C45: 84 | D45: 2000 | E45: 2 | F45: 84 | G45: 1 | H45: 4.1 | I45: 3.9 | J45: 3.8 | K45: 3.8 | L45: 3.9 | M45: #N/A | N45: 3.9 | O45: #N/A | Q45: 2009Q3 | R45: 2009-09-30 | S45: 9.633
B46: 2000-06-30 | C46: 407 | D46: 2000 | E46: 2 | F46: 407 | G46: 1 | H46: 4.1 | I46: 4 | J46: 3.9 | K46: 4 | L46: 4 | M46: 4 | N46: 4 | O46: 4.1 | Q46: 2009Q4 | R46: 2009-12-31 | S46: 9.933
B47: 2000-06-30 | C47: 420 | D47: 2000 | E47: 2 | F47: 420 | G47: 2 | H47: 4.1 | I47: 4 | J47: 4.1 | K47: 4.3 | L47: 4.4 | M47: 4.4 | N47: 4.1 | O47: 4.5 | Q47: 2010Q1 | R47: 2010-03-31 | S47: 9.833
B48: 2000-06-30 | C48: 421 | D48: 2000 | E48: 2 | F48: 421 | G48: 2 | H48: 4.1 | I48: 3.9 | J48: 4 | K48: 4.1 | L48: 4.3 | M48: 4.4 | N48: 4 | O48: 4.4 | Q48: 2010Q2 | R48: 2010-06-30 | S48: 9.633
B49: 2000-06-30 | C49: 423 | D49: 2000 | E49: 2 | F49: 423 | G49: 2 | H49: 4.1 | I49: 4.1 | J49: 4.1 | K49: 4.1 | L49: 4.1 | M49: 4.1 | N49: 4.1 | O49: 4.1 | Q49: 2010Q3 | R49: 2010-09-30 | S49: 9.467
B50: 2000-06-30 | C50: 426 | D50: 2000 | E50: 2 | F50: 426 | G50: 2 | H50: 4.1 | I50: 4 | J50: 4 | K50: 4.1 | L50: 4.2 | M50: 4.2 | N50: 4 | O50: 4.2 | Q50: 2010Q4 | R50: 2010-12-31 | S50: 9.5
B51: 2000-06-30 | C51: 428 | D51: 2000 | E51: 2 | F51: 428 | G51: 2 | H51: 4.1 | I51: 3.9 | J51: 4 | K51: 4.1 | L51: 4.3 | M51: 4.5 | N51: 4 | O51: 4.6 | Q51: 2011Q1 | R51: 2011-03-31 | S51: 9.033
B52: 2000-06-30 | C52: 431 | D52: 2000 | E52: 2 | F52: 431 | G52: 1 | H52: 4.1 | I52: 3.9 | J52: 4 | K52: 3.9 | L52: 3.9 | M52: 3.8 | N52: 4.1 | O52: 4.4 | Q52: 2011Q2 | R52: 2011-06-30 | S52: 9.067
B53: 2000-06-30 | C53: 433 | D53: 2000 | E53: 2 | F53: 433 | G53: 2 | H53: 4.1 | I53: 4 | J53: 4.1 | K53: 4.3 | L53: 4.5 | M53: 4.6 | N53: 4.1 | O53: 4.6 | Q53: 2011Q3 | R53: 2011-09-30 | S53: 9
B54: 2000-06-30 | C54: 439 | D54: 2000 | E54: 2 | F54: 439 | G54: 2 | H54: 3.9 | I54: 3.9 | J54: 4 | K54: 4.3 | L54: 4.3 | M54: 4.3 | N54: 4 | O54: 4.3 | Q54: 2011Q4 | R54: 2011-12-31 | S54: 8.633
B55: 2000-06-30 | C55: 446 | D55: 2000 | E55: 2 | F55: 446 | G55: 2 | H55: 4.1 | I55: 4 | J55: 3.9 | K55: 3.9 | L55: 4.1 | M55: 4.3 | N55: 4 | O55: 4.3 | Q55: 2012Q1 | R55: 2012-03-31 | S55: 8.267
B56: 2000-06-30 | C56: 456 | D56: 2000 | E56: 2 | F56: 456 | G56: 1 | H56: 4.1 | I56: 3.9 | J56: 3.9 | K56: 3.8 | L56: 3.8 | M56: 3.7 | N56: 3.9 | O56: 3.7 | Q56: 2012Q2 | R56: 2012-06-30 | S56: 8.2
B57: 2000-06-30 | C57: 458 | D57: 2000 | E57: 2 | F57: 458 | G57: 2 | H57: 4.1 | I57: 3.9 | J57: 3.8 | K57: 3.7 | L57: 3.6 | M57: 3.5 | N57: 3.9 | O57: 3.5 | Q57: 2012Q3 | R57: 2012-09-30 | S57: 8.033
B58: 2000-06-30 | C58: 463 | D58: 2000 | E58: 2 | F58: 463 | G58: 3 | H58: 4.1 | I58: 3.8 | J58: 3.9 | K58: 4 | L58: 4 | M58: 4 | N58: 4 | O58: 4 | Q58: 2012Q4 | R58: 2012-12-31 | S58: 7.8
B59: 2000-06-30 | C59: 465 | D59: 2000 | E59: 2 | F59: 465 | G59: 1 | H59: 4.1 | I59: 3.9 | J59: 4 | K59: 4.1 | L59: 4.2 | M59: 4.3 | N59: 4 | O59: 4.3 | Q59: 2013Q1 | R59: 2013-03-31 | S59: 7.733
B60: 2000-06-30 | C60: 469 | D60: 2000 | E60: 2 | F60: 469 | G60: 2 | H60: 4.1 | I60: 4 | J60: 4 | K60: 4.1 | L60: 4.2 | M60: 4.2 | N60: 4.05 | O60: 4.25 | Q60: 2013Q2 | R60: 2013-06-30 | S60: 7.533
B61: 2000-06-30 | C61: 472 | D61: 2000 | E61: 2 | F61: 472 | G61: 2 | H61: 4.1 | I61: 3.9 | J61: 3.9 | K61: 3.9 | L61: 4 | M61: 4.2 | N61: 3.9 | O61: 4.2 | Q61: 2013Q3 | R61: 2013-09-30 | S61: 7.233
B62: 2000-06-30 | C62: 475 | D62: 2000 | E62: 2 | F62: 475 | G62: 2 | H62: 4.1 | I62: 3.9 | J62: 4 | K62: 4.1 | L62: 4.1 | M62: 4.2 | N62: 4 | O62: 4.2 | Q62: 2013Q4 | R62: 2013-12-31 | S62: 6.933
B63: 2000-06-30 | C63: 483 | D63: 2000 | E63: 2 | F63: 483 | G63: 3 | H63: 4.1 | I63: 3.9 | J63: 3.9 | K63: 3.8 | L63: 3.9 | M63: 4 | N63: 3.9 | O63: 4.1 | Q63: 2014Q1 | R63: 2014-03-31 | S63: 6.667
B64: 2000-06-30 | C64: 484 | D64: 2000 | E64: 2 | F64: 484 | G64: 2 | H64: 4.1 | I64: 3.9 | J64: 4 | K64: 4 | L64: 4.1 | M64: 4.2 | N64: 4 | O64: 4.2 | Q64: 2014Q2 | R64: 2014-06-30 | S64: 6.233
B65: 2000-06-30 | C65: 486 | D65: 2000 | E65: 2 | F65: 486 | G65: 1 | H65: 4.1 | I65: 3.9 | J65: 3.8 | K65: 3.9 | L65: 4 | M65: 4.2 | N65: 3.9 | O65: 4.3 | Q65: 2014Q3 | R65: 2014-09-30 | S65: 6.1
B66: 2000-06-30 | C66: 497 | D66: 2000 | E66: 2 | F66: 497 | G66: 1 | H66: 4.1 | I66: 4 | J66: 3.9 | K66: 4 | L66: 4 | M66: 4.1 | N66: 4 | O66: 4.2 | Q66: 2014Q4 | R66: 2014-12-31 | S66: 5.7
B67: 2000-06-30 | C67: 498 | D67: 2000 | E67: 2 | F67: 498 | G67: 1 | H67: 4.1 | I67: 3.9 | J67: 3.9 | K67: 4 | L67: 4 | M67: #N/A | N67: 4 | O67: 4.1 | Q67: 2015Q1 | R67: 2015-03-31 | S67: 5.567
B68: 2000-06-30 | C68: 500 | D68: 2000 | E68: 2 | F68: 500 | G68: 2 | H68: 4.1 | I68: 4 | J68: 4 | K68: 4.1 | L68: 4.2 | M68: 4.3 | N68: 4 | O68: 4.4 | Q68: 2015Q2 | R68: 2015-06-30 | S68: 5.4
B69: 2000-06-30 | C69: 501 | D69: 2000 | E69: 2 | F69: 501 | G69: 1 | H69: 4.1 | I69: 4 | J69: 4 | K69: 4 | L69: 3.9 | M69: 3.9 | N69: 4 | O69: 4 | Q69: 2015Q3 | R69: 2015-09-30 | S69: 5.1
B70: 2000-06-30 | C70: 502 | D70: 2000 | E70: 2 | F70: 502 | G70: 2 | H70: 4.1 | I70: 4 | J70: 4 | K70: 4 | L70: 4.1 | M70: 4.2 | N70: 4 | O70: 4.3 | Q70: 2015Q4 | R70: 2015-12-31 | S70: 5
B71: 2000-06-30 | C71: 506 | D71: 2000 | E71: 2 | F71: 506 | G71: 2 | H71: 4.1 | I71: 3.9 | J71: 4.2 | K71: 4.2 | L71: 4.2 | M71: 4.1 | N71: 4.1 | O71: 4.1 | Q71: 2016Q1 | R71: 2016-03-31 | S71: 4.933
B72: =IF(D72="", "", DATE(D72, 3*E72+1, 0)) -> 2000-06-30 | C72: =IF(D72="", "", TEXT(F72, "##")) -> 507 | D72: 2000 | E72: 2 | F72: 507 | G72: 3 | H72: 4.1 | I72: 3.9 | J72: 3.8 | K72: 3.9 | L72: 4 | M72: 4.1 | N72: 3.9 | O72: 4.1 | Q72: 2016Q2 | R72: 2016-06-30 | S72: 4.867
B73: 2000-06-30 | C73: 508 | D73: 2000 | E73: 2 | F73: 508 | G73: 2 | H73: 4.1 | I73: 3.9 | J73: 3.8 | K73: 3.8 | L73: 3.8 | M73: 3.6 | N73: 3.9 | O73: 3.6 | Q73: 2016Q3 | R73: 2016-09-30 | S73: 4.933
B74: 2000-06-30 | C74: 510 | D74: 2000 | E74: 2 | F74: 510 | G74: 2 | H74: 4.1 | I74: 3.9 | J74: 4 | K74: 3.9 | L74: 4 | M74: 4.1 | N74: 4 | O74: 4.1 | Q74: 2016Q4 | R74: 2016-12-31 | S74: 4.733
B75: 2000-06-30 | C75: 512 | D75: 2000 | E75: 2 | F75: 512 | G75: 2 | H75: 4.1 | I75: 4 | J75: 3.9 | K75: 4 | L75: 4 | M75: 4.2 | N75: 4 | O75: 4.2 | Q75: 2017Q1 | R75: 2017-03-31 | S75: 4.667
B76: 2000-06-30 | C76: 513 | D76: 2000 | E76: 2 | F76: 513 | G76: 2 | H76: 4.1 | I76: 4 | J76: 3.8 | K76: 3.8 | L76: 3.9 | M76: 3.7 | N76: 3.9 | O76: #N/A | Q76: 2017Q2 | R76: 2017-06-30 | S76: 4.333
B77: 2000-09-30 | C77: 20 | D77: 2000 | E77: 3 | F77: 20 | G77: 2 | H77: 4 | I77: 4 | J77: 4 | K77: 4 | L77: 4 | M77: 4 | N77: 4 | O77: 4 | Q77: 2017Q3 | R77: 2017-09-30 | S77: 4.3
B78: 2000-09-30 | C78: 40 | D78: 2000 | E78: 3 | F78: 40 | G78: 2 | H78: 4 | I78: 4.2 | J78: 4.3 | K78: 4.3 | L78: 4.4 | M78: 4.4 | N78: 4.1 | O78: 4.4 | Q78: 2017Q4 | R78: 2017-12-31 | S78: 4.1
B79: 2000-09-30 | C79: 65 | D79: 2000 | E79: 3 | F79: 65 | G79: 2 | H79: 4 | I79: 4 | J79: 4.2 | K79: 4.3 | L79: 4.2 | M79: 4.2 | N79: 4 | O79: 4.2 | Q79: 2018Q1 | R79: 2018-03-31 | S79: 4.1
B80: 2000-09-30 | C80: 84 | D80: 2000 | E80: 3 | F80: 84 | G80: 1 | H80: 4 | I80: 4 | J80: 4 | K80: 4.1 | L80: 4.1 | M80: 4.1 | N80: 4 | O80: 4.1 | Q80: 2018Q2 | R80: 2018-06-30 | S80: 3.851
B81: 2000-09-30 | C81: 407 | D81: 2000 | E81: 3 | F81: 407 | G81: 1 | H81: 4 | I81: 3.9 | J81: 4 | K81: 4 | L81: 4 | M81: 4.1 | N81: 4 | O81: 4.1 | Q81: 2018Q3 | R81: 2018-09-30 | S81: 3.758
B82: 2000-09-30 | C82: 420 | D82: 2000 | E82: 3 | F82: 420 | G82: 2 | H82: 4 | I82: 4.1 | J82: 4.3 | K82: 4.4 | L82: 4.4 | M82: 4.5 | N82: 4.1 | O82: 4.5
B83: 2000-09-30 | C83: 421 | D83: 2000 | E83: 3 | F83: 421 | G83: 2 | H83: 4 | I83: 3.9 | J83: 4 | K83: 4.1 | L83: 4.3 | M83: 4.4 | N83: 4 | O83: 4.3
B84: 2000-09-30 | C84: 423 | D84: 2000 | E84: 3 | F84: 423 | G84: 2 | H84: 4 | I84: 4 | J84: 4 | K84: 4 | L84: 3.9 | M84: 3.9 | N84: 4 | O84: 3.9
B85: 2000-09-30 | C85: 426 | D85: 2000 | E85: 3 | F85: 426 | G85: 2 | H85: 4 | I85: 4 | J85: 4.1 | K85: 4.2 | L85: 4.2 | M85: 4.2 | N85: 4 | O85: 4.2
B86: 2000-09-30 | C86: 428 | D86: 2000 | E86: 3 | F86: 428 | G86: 2 | H86: 4 | I86: 4 | J86: 4 | K86: 4.1 | L86: 4.3 | M86: 4.5 | N86: 4 | O86: 4.4
B87: 2000-09-30 | C87: 431 | D87: 2000 | E87: 3 | F87: 431 | G87: 1 | H87: 4 | I87: 4.1 | J87: 4.1 | K87: 4 | L87: 3.9 | M87: 3.9 | N87: 4.1 | O87: 4
B88: 2000-09-30 | C88: 433 | D88: 2000 | E88: 3 | F88: 433 | G88: 2 | H88: 4 | I88: 4.1 | J88: 4.2 | K88: 4.4 | L88: 4.5 | M88: 4.6 | N88: 4.1 | O88: 4.6
B89: 2000-09-30 | C89: 446 | D89: 2000 | E89: 3 | F89: 446 | G89: 2 | H89: 4 | I89: 4 | J89: 4 | K89: 4.1 | L89: 4.1 | M89: 4.1 | N89: 4 | O89: 4.1
B90: 2000-09-30 | C90: 456 | D90: 2000 | E90: 3 | F90: 456 | G90: 1 | H90: 4 | I90: 4 | J90: 3.9 | K90: 3.8 | L90: 3.8 | M90: 3.9 | N90: 4 | O90: 3.8
B91: 2000-09-30 | C91: 463 | D91: 2000 | E91: 3 | F91: 463 | G91: 3 | H91: 4 | I91: 4.1 | J91: 4.2 | K91: 4.2 | L91: 4.2 | M91: 4.2 | N91: 4.1 | O91: 4.2
B92: 2000-09-30 | C92: 464 | D92: 2000 | E92: 3 | F92: 464 | G92: 1 | H92: 4 | I92: 3.9 | J92: 4 | K92: 4.2 | L92: 4.3 | M92: 4.5 | N92: 4 | O92: 4.4
B93: 2000-09-30 | C93: 472 | D93: 2000 | E93: 3 | F93: 472 | G93: 2 | H93: 4 | I93: 4.1 | J93: 4.2 | K93: 4.3 | L93: 4.3 | M93: 4.3 | N93: 4.1 | O93: 4.3
B94: 2000-09-30 | C94: 475 | D94: 2000 | E94: 3 | F94: 475 | G94: 2 | H94: 4 | I94: 4 | J94: 4.1 | K94: 4.2 | L94: 4.3 | M94: 4.3 | N94: 4 | O94: 4.3
B95: 2000-09-30 | C95: 484 | D95: 2000 | E95: 3 | F95: 484 | G95: 2 | H95: #N/A | I95: #N/A | J95: #N/A | K95: #N/A | L95: #N/A | M95: #N/A | N95: #N/A | O95: #N/A
B96: 2000-09-30 | C96: 485 | D96: 2000 | E96: 3 | F96: 485 | G96: 3 | H96: 4 | I96: 4 | J96: 4 | K96: 4.3 | L96: 4.8 | M96: 5.2 | N96: 4 | O96: 5
B97: 2000-09-30 | C97: 497 | D97: 2000 | E97: 3 | F97: 497 | G97: 1 | H97: 4 | I97: 4.1 | J97: 4.1 | K97: 4.1 | L97: 4.1 | M97: #N/A | N97: 4.1 | O97: 4.1
B98: 2000-09-30 | C98: 498 | D98: 2000 | E98: 3 | F98: 498 | G98: 1 | H98: 4 | I98: 4 | J98: 4 | K98: 4.1 | L98: 4.1 | M98: 4.1 | N98: 4 | O98: 4.1
B99: 2000-09-30 | C99: 499 | D99: 2000 | E99: 3 | F99: 499 | G99: 1 | H99: 4 | I99: 4 | J99: 3.9 | K99: 3.8 | L99: 3.7 | M99: 3.7 | N99: 4 | O99: 3.8
B100: 2000-09-30 | C100: 500 | D100: 2000 | E100: 3 | F100: 500 | G100: 2 | H100: 4 | I100: 4 | J100: 4.1 | K100: 4.2 | L100: 4.3 | M100: 4.4 | N100: 4 | O100: 4.4
B101: 2000-09-30 | C101: 501 | D101: 2000 | E101: 3 | F101: 501 | G101: 1 | H101: 4 | I101: 3.9 | J101: 4.1 | K101: 4.2 | L101: 4.3 | M101: 4.5 | N101: 4 | O101: 4.3
B102: 2000-09-30 | C102: 502 | D102: 2000 | E102: 3 | F102: 502 | G102: 2 | H102: 4 | I102: 3.9 | J102: 4 | K102: 4 | L102: 4 | M102: 4.2 | N102: 4 | O102: 4.1
B103: 2000-09-30 | C103: 504 | D103: 2000 | E103: 3 | F103: 504 | G103: 1 | H103: 4 | I103: 3.9 | J103: 3.94 | K103: 3.98 | L103: 4.05 | M103: 4.09 | N103: 3.98 | O103: 4.06
B104: 2000-09-30 | C104: 506 | D104: 2000 | E104: 3 | F104: 506 | G104: 2 | H104: 4 | I104: 4.1 | J104: 4.3 | K104: 4.3 | L104: 4.3 | M104: 4.3 | N104: 4.1 | O104: 4.3
B105: 2000-09-30 | C105: 507 | D105: 2000 | E105: 3 | F105: 507 | G105: 3 | H105: 4 | I105: 4 | J105: 3.9 | K105: 4 | L105: 4.1 | M105: 4.1 | N105: 4 | O105: 4.1
B106: 2000-09-30 | C106: 508 | D106: 2000 | E106: 3 | F106: 508 | G106: 2 | H106: 4 | I106: 4 | J106: 4 | K106: 4.3 | L106: 4.4 | M106: 4.3 | N106: 4 | O106: 4.3
B107: 2000-09-30 | C107: 510 | D107: 2000 | E107: 3 | F107: 510 | G107: 2 | H107: 4 | I107: 4 | J107: 4 | K107: 4 | L107: 4.2 | M107: 4.3 | N107: 4 | O107: 4.2
B108: 2000-09-30 | C108: 512 | D108: 2000 | E108: 3 | F108: 512 | G108: 2 | H108: 4 | I108: 3.9 | J108: 4 | K108: 4 | L108: 4 | M108: 4.2 | N108: 4 | O108: 4.1
B109: 2000-12-31 | C109: 20 | D109: 2000 | E109: 4 | F109: 20 | G109: 2 | H109: 4 | I109: 4 | J109: 4 | K109: 4 | L109: 4 | M109: 4 | N109: 4 | O109: 4
B110: 2000-12-31 | C110: 40 | D110: 2000 | E110: 4 | F110: 40 | G110: 2 | H110: 4 | I110: 4.3 | J110: 4.3 | K110: 4.3 | L110: 4.4 | M110: 4.4 | N110: 4.1 | O110: 4.4
B111: 2000-12-31 | C111: 65 | D111: 2000 | E111: 4 | F111: 65 | G111: 2 | H111: 4 | I111: 4.2 | J111: 4.3 | K111: 4.3 | L111: 4.2 | M111: 4.1 | N111: 4.1 | O111: 4.2
B112: 2000-12-31 | C112: 84 | D112: 2000 | E112: 4 | F112: 84 | G112: 1 | H112: 4 | I112: 3.9 | J112: 4.1 | K112: 4.3 | L112: 4.1 | M112: 4 | N112: 4 | O112: 4.1
B113: 2000-12-31 | C113: 99 | D113: 2000 | E113: 4 | F113: 99 | G113: 1 | H113: 4 | I113: 4 | J113: 4.1 | K113: 4.2 | L113: 4.2 | M113: 4.3 | N113: 4.1 | O113: 4.2
B114: 2000-12-31 | C114: 407 | D114: 2000 | E114: 4 | F114: 407 | G114: 1 | H114: 4 | I114: 4 | J114: 4.1 | K114: 4.2 | L114: 4.2 | M114: 4.3 | N114: 4 | O114: 4.2
B115: 2000-12-31 | C115: 411 | D115: 2000 | E115: 4 | F115: 411 | G115: 2 | H115: 4 | I115: 4 | J115: 3.9 | K115: 3.9 | L115: 4 | M115: 4.1 | N115: 4 | O115: 4
B116: 2000-12-31 | C116: 420 | D116: 2000 | E116: 4 | F116: 420 | G116: 2 | H116: 4 | I116: 4.1 | J116: 4.3 | K116: 4.4 | L116: 4.4 | M116: 4.5 | N116: 4.1 | O116: 4.4
B117: 2000-12-31 | C117: 421 | D117: 2000 | E117: 4 | F117: 421 | G117: 2 | H117: 4 | I117: 3.9 | J117: 4 | K117: 4.2 | L117: 4.4 | M117: 4.3 | N117: 4 | O117: 4.2
B118: 2000-12-31 | C118: 423 | D118: 2000 | E118: 4 | F118: 423 | G118: 2 | H118: 4 | I118: 3.9 | J118: 3.9 | K118: 3.9 | L118: 3.9 | M118: 3.8 | N118: 4 | O118: 3.9
B119: 2000-12-31 | C119: 426 | D119: 2000 | E119: 4 | F119: 426 | G119: 2 | H119: 4 | I119: 4.1 | J119: 4.2 | K119: 4.2 | L119: 4.2 | M119: 4.3 | N119: 4 | O119: 4.2
B120: 2000-12-31 | C120: 428 | D120: 2000 | E120: 4 | F120: 428 | G120: 2 | H120: 4 | I120: 4 | J120: 4.1 | K120: 4.2 | L120: 4.3 | M120: 4.5 | N120: 4 | O120: 4.3
B121: 2000-12-31 | C121: 431 | D121: 2000 | E121: 4 | F121: 431 | G121: 1 | H121: 4 | I121: 4.1 | J121: 4 | K121: 4.1 | L121: 4.1 | M121: 4.2 | N121: 4.1 | O121: 4.1
B122: 2000-12-31 | C122: 433 | D122: 2000 | E122: 4 | F122: 433 | G122: 2 | H122: 4 | I122: 4 | J122: 4.1 | K122: 4.1 | L122: 4.2 | M122: 4.3 | N122: 4 | O122: 4.2
B123: 2000-12-31 | C123: 439 | D123: 2000 | E123: 4 | F123: 439 | G123: 2 | H123: 4 | I123: 4 | J123: 4.3 | K123: 4.3 | L123: 4.1 | M123: 4.1 | N123: 3.95 | O123: 4.2
B124: 2000-12-31 | C124: 446 | D124: 2000 | E124: 4 | F124: 446 | G124: 2 | H124: 4 | I124: 4 | J124: 4.1 | K124: 4.2 | L124: 4.2 | M124: 4.3 | N124: 4 | O124: 4.2
B125: 2000-12-31 | C125: 456 | D125: 2000 | E125: 4 | F125: 456 | G125: 1 | H125: 4 | I125: 4 | J125: 4 | K125: 4.1 | L125: 4.2 | M125: 4.3 | N125: 4 | O125: 4.2
B126: 2000-12-31 | C126: 463 | D126: 2000 | E126: 4 | F126: 463 | G126: 3 | H126: 4 | I126: 4 | J126: 4.1 | K126: 4.1 | L126: 4.1 | M126: 4.1 | N126: 4 | O126: 4.1
B127: 2000-12-31 | C127: 465 | D127: 2000 | E127: 4 | F127: 465 | G127: 1 | H127: 4 | I127: 4 | J127: 4.1 | K127: 4.2 | L127: 4.3 | M127: 4.4 | N127: 4 | O127: 4.3
B128: 2000-12-31 | C128: 475 | D128: 2000 | E128: 4 | F128: 475 | G128: 2 | H128: 4 | I128: 4 | J128: 4.1 | K128: 4.2 | L128: 4.2 | M128: 4.3 | N128: 4 | O128: 4.2
B129: 2000-12-31 | C129: 483 | D129: 2000 | E129: 4 | F129: 483 | G129: 3 | H129: 4 | I129: 4 | J129: 4.1 | K129: 4.1 | L129: 4.2 | M129: 4.2 | N129: 4 | O129: 4.2
B130: 2000-12-31 | C130: 485 | D130: 2000 | E130: 4 | F130: 485 | G130: 3 | H130: 4 | I130: 3.9 | J130: 4.2 | K130: 4.8 | L130: 5.3 | M130: 5.7 | N130: 4 | O130: 5
B131: 2000-12-31 | C131: 488 | D131: 2000 | E131: 4 | F131: 488 | G131: 1 | H131: 4 | I131: 3.9 | J131: 3.9 | K131: 4 | L131: 4 | M131: 4.1 | N131: 4 | O131: 4
B132: 2000-12-31 | C132: 497 | D132: 2000 | E132: 4 | F132: 497 | G132: 1 | H132: 4 | I132: 4 | J132: 4.2 | K132: 4.1 | L132: 4.1 | M132: 4.2 | N132: 4 | O132: 4.2
B133: 2000-12-31 | C133: 498 | D133: 2000 | E133: 4 | F133: 498 | G133: 1 | H133: 4 | I133: 4 | J133: 4.1 | K133: 4.1 | L133: 4.2 | M133: 4.2 | N133: 4 | O133: 4.2
B134: 2000-12-31 | C134: 499 | D134: 2000 | E134: 4 | F134: 499 | G134: 1 | H134: 4 | I134: 4 | J134: 4.1 | K134: 4 | L134: 3.9 | M134: 4 | N134: 4 | O134: 4
B135: 2000-12-31 | C135: 500 | D135: 2000 | E135: 4 | F135: 500 | G135: 2 | H135: 4 | I135: 4.1 | J135: 4.2 | K135: 4.3 | L135: 4.4 | M135: 4.5 | N135: 4 | O135: 4.4
B136: =IF(D136="", "", DATE(D136, 3*E136+1, 0)) -> 2000-12-31 | C136: =IF(D136="", "", TEXT(F136, "##")) -> 501 | D136: 2000 | E136: 4 | F136: 501 | G136: 1 | H136: 4 | I136: 3.9 | J136: 3.9 | K136: 4 | L136: 4.1 | M136: 4.2 | N136: 4 | O136: 4.1
B137: 2000-12-31 | C137: 502 | D137: 2000 | E137: 4 | F137: 502 | G137: 2 | H137: 4 | I137: 4 | J137: 4 | K137: 4.1 | L137: 4.1 | M137: 4.1 | N137: 4 | O137: 4.1
B138: 2000-12-31 | C138: 504 | D138: 2000 | E138: 4 | F138: 504 | G138: 1 | H138: 4.02 | I138: 4.13 | J138: 4.17 | K138: 4.23 | L138: 4.27 | M138: 4.29 | N138: 4.05 | O138: 4.24
B139: 2000-12-31 | C139: 506 | D139: 2000 | E139: 4 | F139: 506 | G139: 2 | H139: 4 | I139: 4.1 | J139: 4.2 | K139: 4.3 | L139: 4.5 | M139: 4.6 | N139: 4.1 | O139: 4.4
B140: 2000-12-31 | C140: 508 | D140: 2000 | E140: 4 | F140: 508 | G140: 2 | H140: 4 | I140: 4.1 | J140: 4.2 | K140: 4.2 | L140: 4.2 | M140: 4.1 | N140: 4.1 | O140: 4.2
B141: 2000-12-31 | C141: 510 | D141: 2000 | E141: 4 | F141: 510 | G141: 2 | H141: 4 | I141: 4 | J141: 4 | K141: 4.1 | L141: 4.2 | M141: 4.1 | N141: 4 | O141: 4.1
B142: 2000-12-31 | C142: 512 | D142: 2000 | E142: 4 | F142: 512 | G142: 2 | H142: 4 | I142: 4 | J142: 4 | K142: 4.2 | L142: 4.2 | M142: 4.4 | N142: 4 | O142: 4.3
B143: 2001-03-31 | C143: 20 | D143: 2001 | E143: 1 | F143: 20 | G143: 2 | H143: 4 | I143: 4.05 | J143: 4.05 | K143: 4.05 | L143: 4.05 | M143: 4.05 | N143: 4.05 | O143: 4.1
B144: 2001-03-31 | C144: 40 | D144: 2001 | E144: 1 | F144: 40 | G144: 2 | H144: 4 | I144: 4.1 | J144: 4.3 | K144: 4.3 | L144: 4.3 | M144: 4.2 | N144: 4.2 | O144: 4
B145: 2001-03-31 | C145: 65 | D145: 2001 | E145: 1 | F145: 65 | G145: 2 | H145: 4 | I145: 4.2 | J145: 4.4 | K145: 4.5 | L145: 4.5 | M145: 4.5 | N145: 4.4 | O145: 4.5
B146: 2001-03-31 | C146: 84 | D146: 2001 | E146: 1 | F146: 84 | G146: 1 | H146: 4 | I146: 4.4 | J146: 4.8 | K146: 4.9 | L146: 4.8 | M146: #N/A | N146: 4.7 | O146: #N/A
B147: 2001-03-31 | C147: 94 | D147: 2001 | E147: 1 | F147: 94 | G147: 1 | H147: 4 | I147: 4.4 | J147: 4.8 | K147: 5.1 | L147: 5.3 | M147: 5.4 | N147: 4.9 | O147: 5.3
B148: 2001-03-31 | C148: 99 | D148: 2001 | E148: 1 | F148: 99 | G148: 1 | H148: 4 | I148: 4.3 | J148: 4.6 | K148: 4.4 | L148: 4.4 | M148: 4.4 | N148: 4.4 | O148: 4.2
B149: 2001-03-31 | C149: 411 | D149: 2001 | E149: 1 | F149: 411 | G149: 2 | H149: 4 | I149: 4.1 | J149: 4.3 | K149: 4.3 | L149: 4.4 | M149: 4.5 | N149: 4.3 | O149: 4.5
B150: 2001-03-31 | C150: 421 | D150: 2001 | E150: 1 | F150: 421 | G150: 2 | H150: 4 | I150: 4.2 | J150: 4.4 | K150: 4.5 | L150: 4.3 | M150: 4.2 | N150: 4.4 | O150: 4.1
B151: 2001-03-31 | C151: 423 | D151: 2001 | E151: 1 | F151: 423 | G151: 2 | H151: 4 | I151: 4.2 | J151: 4.2 | K151: 4.3 | L151: 4.3 | M151: 4.3 | N151: 4.3 | O151: 4.3
B152: 2001-03-31 | C152: 428 | D152: 2001 | E152: 1 | F152: 428 | G152: 2 | H152: 4 | I152: 4.2 | J152: 4.3 | K152: 4.4 | L152: 4.6 | M152: 4.7 | N152: 4.4 | O152: 4.7
B153: 2001-03-31 | C153: 429 | D153: 2001 | E153: 1 | F153: 429 | G153: 2 | H153: 4 | I153: 4.4 | J153: 4.7 | K153: 4.9 | L153: 4.9 | M153: 4.9 | N153: 4.7 | O153: 4.8
B154: 2001-03-31 | C154: 431 | D154: 2001 | E154: 1 | F154: 431 | G154: 1 | H154: 4 | I154: 4.1 | J154: 4.4 | K154: 4.6 | L154: 4.7 | M154: 4.8 | N154: 4.4 | O154: 4.9
B155: 2001-03-31 | C155: 433 | D155: 2001 | E155: 1 | F155: 433 | G155: 2 | H155: 4 | I155: 4.2 | J155: 4.3 | K155: 4.4 | L155: 4.4 | M155: 4.3 | N155: 4.3 | O155: 4.2
B156: 2001-03-31 | C156: 439 | D156: 2001 | E156: 1 | F156: 439 | G156: 2 | H156: 4 | I156: 4.3 | J156: 4.3 | K156: 4.2 | L156: 4.2 | M156: 4.2 | N156: 4.3 | O156: #N/A
B157: 2001-03-31 | C157: 446 | D157: 2001 | E157: 1 | F157: 446 | G157: 2 | H157: 4 | I157: 4.3 | J157: 4.5 | K157: 4.7 | L157: 4.8 | M157: 4.9 | N157: 4.6 | O157: 5
B158: 2001-03-31 | C158: 456 | D158: 2001 | E158: 1 | F158: 456 | G158: 1 | H158: 4 | I158: 4.3 | J158: 4.5 | K158: 4.7 | L158: 4.9 | M158: 5 | N158: 4.6 | O158: 5
B159: 2001-03-31 | C159: 463 | D159: 2001 | E159: 1 | F159: 463 | G159: 3 | H159: 4 | I159: 4.1 | J159: 4.1 | K159: 4.1 | L159: 4.2 | M159: 4.2 | N159: 4.1 | O159: 4.2
B160: 2001-03-31 | C160: 465 | D160: 2001 | E160: 1 | F160: 465 | G160: 1 | H160: 4 | I160: 4.3 | J160: 4.6 | K160: 4.7 | L160: 4.7 | M160: 4.6 | N160: 4.6 | O160: 4.5
B161: 2001-03-31 | C161: 472 | D161: 2001 | E161: 1 | F161: 472 | G161: 2 | H161: 4 | I161: 4.2 | J161: 4.1 | K161: 4 | L161: 4 | M161: 4 | N161: 4.1 | O161: 4
B162: 2001-03-31 | C162: 475 | D162: 2001 | E162: 1 | F162: 475 | G162: 2 | H162: 4 | I162: 4.3 | J162: 4.6 | K162: 4.8 | L162: 5 | M162: 5.2 | N162: 4.7 | O162: 5
B163: 2001-03-31 | C163: 483 | D163: 2001 | E163: 1 | F163: 483 | G163: 3 | H163: 4 | I163: 4.3 | J163: 4.6 | K163: 4.8 | L163: 5 | M163: 5.2 | N163: 4.7 | O163: 5.08
B164: 2001-03-31 | C164: 484 | D164: 2001 | E164: 1 | F164: 484 | G164: 2 | H164: 4 | I164: 4.2 | J164: 4.2 | K164: 4.2 | L164: 4.1 | M164: 4.1 | N164: 4.2 | O164: 4.2
B165: 2001-03-31 | C165: 485 | D165: 2001 | E165: 1 | F165: 485 | G165: 3 | H165: 4 | I165: 4.5 | J165: 5.5 | K165: 5 | L165: 4.5 | M165: 4.2 | N165: 5 | O165: 4
B166: 2001-03-31 | C166: 497 | D166: 2001 | E166: 1 | F166: 497 | G166: 1 | H166: 4 | I166: 4.1 | J166: 4.3 | K166: 4.4 | L166: 4.5 | M166: 4.5 | N166: 4.3 | O166: 4.6
B167: 2001-03-31 | C167: 498 | D167: 2001 | E167: 1 | F167: 498 | G167: 1 | H167: 4 | I167: 4.2 | J167: 4.4 | K167: 4.5 | L167: 4.5 | M167: 4.4 | N167: 4.4 | O167: 4.4
B168: 2001-03-31 | C168: 499 | D168: 2001 | E168: 1 | F168: 499 | G168: 1 | H168: 4 | I168: 4.2 | J168: 4.2 | K168: 4.4 | L168: 4.5 | M168: 4.7 | N168: 4.3 | O168: 4.8
B169: 2001-03-31 | C169: 500 | D169: 2001 | E169: 1 | F169: 500 | G169: 2 | H169: 4 | I169: 4.2 | J169: 4.3 | K169: 4.4 | L169: 4.5 | M169: 4.6 | N169: 4.4 | O169: 4.7
B170: 2001-03-31 | C170: 502 | D170: 2001 | E170: 1 | F170: 502 | G170: 2 | H170: 4 | I170: 4.3 | J170: 4.4 | K170: 4.6 | L170: 4.6 | M170: 4.5 | N170: 4.5 | O170: 4.4
B171: 2001-03-31 | C171: 504 | D171: 2001 | E171: 1 | F171: 504 | G171: 1 | H171: 4 | I171: 4.2 | J171: 4.5 | K171: 4.7 | L171: 4.8 | M171: 4.9 | N171: 4.5 | O171: #N/A
B172: 2001-03-31 | C172: 506 | D172: 2001 | E172: 1 | F172: 506 | G172: 2 | H172: 4 | I172: 4.3 | J172: 4.6 | K172: 4.9 | L172: 5 | M172: 5.1 | N172: 4.7 | O172: 5.1
B173: 2001-03-31 | C173: 507 | D173: 2001 | E173: 1 | F173: 507 | G173: 3 | H173: 4 | I173: 4.3 | J173: 4.3 | K173: 4.2 | L173: 4.1 | M173: 4.1 | N173: 4.2 | O173: 4
B174: 2001-03-31 | C174: 508 | D174: 2001 | E174: 1 | F174: 508 | G174: 2 | H174: 4 | I174: 4.4 | J174: 4.5 | K174: 4.5 | L174: 4.6 | M174: 4.7 | N174: 4.5 | O174: 4.8
B175: 2001-03-31 | C175: 510 | D175: 2001 | E175: 1 | F175: 510 | G175: 2 | H175: 4 | I175: 4.3 | J175: 4.4 | K175: 4.6 | L175: 4.7 | M175: 4.7 | N175: 4.5 | O175: 4.7
B176: 2001-03-31 | C176: 512 | D176: 2001 | E176: 1 | F176: 512 | G176: 2 | H176: 4 | I176: 4.3 | J176: 4.4 | K176: 4.5 | L176: 4.5 | M176: 4.5 | N176: 4.5 | O176: 4.5
B177: 2001-03-31 | C177: 516 | D177: 2001 | E177: 1 | F177: 516 | G177: 1 | H177: 4 | I177: 4.2 | J177: 4.3 | K177: 4.2 | L177: 4.1 | M177: 4 | N177: 4.2 | O177: 3.9
B178: 2001-06-30 | C178: 20 | D178: 2001 | E178: 2 | F178: 20 | G178: 2 | H178: 4.2 | I178: 4.4 | J178: 4.5 | K178: 4.5 | L178: 4.5 | M178: 4.5 | N178: 4.4 | O178: 4.5
B179: 2001-06-30 | C179: 40 | D179: 2001 | E179: 2 | F179: 40 | G179: 2 | H179: 4.2 | I179: 4.5 | J179: 4.7 | K179: 4.8 | L179: 4.9 | M179: 4.9 | N179: 4.6 | O179: 4.9
B180: 2001-06-30 | C180: 65 | D180: 2001 | E180: 2 | F180: 65 | G180: 2 | H180: 4.2 | I180: 4.5 | J180: 4.7 | K180: 4.8 | L180: 4.8 | M180: 4.7 | N180: 4.6 | O180: 4.5
B181: 2001-06-30 | C181: 84 | D181: 2001 | E181: 2 | F181: 84 | G181: 1 | H181: 4.2 | I181: 4.6 | J181: 4.8 | K181: 4.9 | L181: 4.9 | M181: 4.9 | N181: 4.6 | O181: #N/A
B182: 2001-06-30 | C182: 94 | D182: 2001 | E182: 2 | F182: 94 | G182: 1 | H182: 4.2 | I182: 4.7 | J182: 4.9 | K182: 5.1 | L182: 5.4 | M182: 5.6 | N182: 4.7 | O182: 5.6
B183: 2001-06-30 | C183: 407 | D183: 2001 | E183: 2 | F183: 407 | G183: 1 | H183: 4.2 | I183: 4.3 | J183: 4.5 | K183: 4.7 | L183: 5 | M183: 5.1 | N183: 4.4 | O183: 5.1
B184: 2001-06-30 | C184: 411 | D184: 2001 | E184: 2 | F184: 411 | G184: 2 | H184: 4.2 | I184: 4.3 | J184: 4.4 | K184: 4.4 | L184: 4.5 | M184: 4.6 | N184: 4.3 | O184: 4.6
B185: 2001-06-30 | C185: 421 | D185: 2001 | E185: 2 | F185: 421 | G185: 2 | H185: 4.2 | I185: 4.5 | J185: 4.6 | K185: 4.5 | L185: 4.3 | M185: 4 | N185: 4.4 | O185: 4.2
B186: 2001-06-30 | C186: 423 | D186: 2001 | E186: 2 | F186: 423 | G186: 2 | H186: 4.2 | I186: 4.3 | J186: 4.4 | K186: 4.5 | L186: 4.5 | M186: 4.5 | N186: 4.4 | O186: 4.5
B187: 2001-06-30 | C187: 428 | D187: 2001 | E187: 2 | F187: 428 | G187: 2 | H187: 4.2 | I187: 4.4 | J187: 4.6 | K187: 4.7 | L187: 4.8 | M187: 4.8 | N187: 4.5 | O187: 4.8
B188: 2001-06-30 | C188: 429 | D188: 2001 | E188: 2 | F188: 429 | G188: 2 | H188: 4.2 | I188: 4.7 | J188: 5.2 | K188: 5.4 | L188: 5.4 | M188: 5.5 | N188: 4.9 | O188: 5.5
B189: 2001-06-30 | C189: 431 | D189: 2001 | E189: 2 | F189: 431 | G189: 1 | H189: 4.2 | I189: 4.6 | J189: 4.9 | K189: 5.2 | L189: 5.4 | M189: 5.6 | N189: 4.7 | O189: 5.6
B190: 2001-06-30 | C190: 433 | D190: 2001 | E190: 2 | F190: 433 | G190: 2 | H190: 4.2 | I190: 4.6 | J190: 4.7 | K190: 4.7 | L190: 4.7 | M190: 4.7 | N190: 4.5 | O190: 4.7
B191: 2001-06-30 | C191: 446 | D191: 2001 | E191: 2 | F191: 446 | G191: 2 | H191: 4.2 | I191: 4.5 | J191: 4.7 | K191: 4.8 | L191: 5 | M191: 5 | N191: 4.6 | O191: 5
B192: 2001-06-30 | C192: 456 | D192: 2001 | E192: 2 | F192: 456 | G192: 1 | H192: 4.2 | I192: 4.6 | J192: 4.8 | K192: 4.9 | L192: 5 | M192: 5 | N192: 4.6 | O192: 5
B193: 2001-06-30 | C193: 463 | D193: 2001 | E193: 2 | F193: 463 | G193: 3 | H193: 4.2 | I193: 4.6 | J193: 4.8 | K193: 4.9 | L193: 4.8 | M193: 4.6 | N193: 4.6 | O193: 4.6
B194: 2001-06-30 | C194: 465 | D194: 2001 | E194: 2 | F194: 465 | G194: 1 | H194: 4.2 | I194: 4.5 | J194: 4.8 | K194: 4.8 | L194: 4.6 | M194: 4.6 | N194: 4.6 | O194: 4.5
B195: 2001-06-30 | C195: 472 | D195: 2001 | E195: 2 | F195: 472 | G195: 2 | H195: 4.2 | I195: 4.5 | J195: 4.6 | K195: 4.5 | L195: 4.4 | M195: 4.3 | N195: 4.5 | O195: 4.3
B196: 2001-06-30 | C196: 484 | D196: 2001 | E196: 2 | F196: 484 | G196: 2 | H196: 4.2 | I196: 4.4 | J196: 4.4 | K196: 4.3 | L196: 4.3 | M196: 4.2 | N196: 4.3 | O196: 4.4
B197: 2001-06-30 | C197: 485 | D197: 2001 | E197: 2 | F197: 485 | G197: 3 | H197: 4.2 | I197: 4.8 | J197: 5.5 | K197: 5.5 | L197: 5.5 | M197: 5.2 | N197: 5 | O197: 5
B198: 2001-06-30 | C198: 497 | D198: 2001 | E198: 2 | F198: 497 | G198: 1 | H198: 4.2 | I198: 4.5 | J198: 4.6 | K198: 4.8 | L198: 4.8 | M198: 4.9 | N198: 4.5 | O198: 4.8
B199: 2001-06-30 | C199: 498 | D199: 2001 | E199: 2 | F199: 498 | G199: 1 | H199: 4.2 | I199: 4.5 | J199: 4.7 | K199: 4.8 | L199: 4.8 | M199: 4.7 | N199: 4.6 | O199: 4.7
B200: =IF(D200="", "", DATE(D200, 3*E200+1, 0)) -> 2001-06-30 | C200: =IF(D200="", "", TEXT(F200, "##")) -> 499 | D200: 2001 | E200: 2 | F200: 499 | G200: 1 | H200: 4.2 | I200: 4.4 | J200: 4.5 | K200: 4.7 | L200: 5 | M200: 5.2 | N200: 4.5 | O200: 5.3
B201: 2001-06-30 | C201: 500 | D201: 2001 | E201: 2 | F201: 500 | G201: 2 | H201: 4.2 | I201: 4.3 | J201: 4.4 | K201: 4.5 | L201: 4.7 | M201: 4.7 | N201: 4.4 | O201: 4.8
B202: 2001-06-30 | C202: 502 | D202: 2001 | E202: 2 | F202: 502 | G202: 2 | H202: 4.2 | I202: 4.3 | J202: 4.7 | K202: 4.9 | L202: 5 | M202: 4.8 | N202: 4.5 | O202: 4.7
... 2909 more rows

Sheet calc
B2: TAB: SAMPLE CALCULATOR
B4: Forecast sample | K4: Sample parameters
B6: Sample parameters | E6: =_xll.AC.data.map(B7:B8, E7:E8) -> java.util.LinkedHashMap@Sun, 4 Nov 2018 11:32:51:389..851238540758055296 | H6: =_xll.AC.data.size(E6, 1) -> 2 | K6: Variable-to-maturity mapping
B7: variable-to-maturity | E7: =_xll.AC.data.map(K7:K12, L7:L12) -> java.util.LinkedHashMap@Sun, 4 Nov 2018 11:02:47:500..1880101886281130691 | H7: =_xll.AC.data.size(E7, 1) -> 6 | K7: =data!H5 -> UNEMP1 | L7: 0
B8: =config!I12 -> sample-type | E8: =config!I13 -> sample-forecast-A | K8: =data!I5 -> UNEMP2 | L8: =L7+1 -> 1
H9: level | I9: count | K9: =data!J5 -> UNEMP3 | L9: =L8+1 -> 2
B10: Forecast sample object (maturity, issue date, forecaster-id) | E10: =_xll.AC.stats.sample.build(OFFSET(data!B7, 0, 0, M15, 2), OFFSET(data!H5, 0, 0, 1, M16), OFFSET(data!H7, 0, 0, M15, M16), 1, , E6) -> jmathkr.lib.stats.sample.model.forecast.ForecastSample@Sun, 4 Nov 2018 11:51:51:444..1171850624867846826 | H10: =_xll.AC.stats.sample.size(E10, -1) -> 0 | I10: 6 | K10: =data!K5 -> UNEMP4 | L10: 3
H11: 1 | I11: 75 | K11: =data!L5 -> UNEMP5 | L11: 4
H12: 2 | I12: 53 | K12: =data!M5 -> UNEMP6 | L12: 5
H14: =H9 -> level | I14: =I9 -> count
B15: Sample with values for different forecaster-id converted to list | E15: =_xll.AC.stats.sample.listvalues(E10, _xll.AC.data._list_x(B34, 0, 1)) -> jmathkr.lib.stats.sample.model.forecast.ForecastSample@Sun, 4 Nov 2018 11:51:51:450..5230935802401589158 | H15: =_xll.AC.stats.sample.size(E15, -1) -> 0 | I15: 6 | K15: Sample size | M15: 5000
B16: Sample moments calculated over forecaster-id level | E16: =_xll.AC.stats.sample.moments(E15, _xll.AC.data.list_x(K23:K27, 0, 1), _xll.AC.data.list_x(L23:L27, 0, 0)) -> jmathkr.lib.stats.sample.model.forecast.ForecastSample@Sun, 4 Nov 2018 11:51:51:461..1106279515433330481 | H16: 1 | I16: 75 | K16: Number of columns | M16: 6
B18: Converted to 'at-maturity' sample (maturity, maturity-date, stats-id) | E18: =_xll.AC.stats.sample.forecast.atmaturity(E16, ) -> jmathkr.lib.stats.sample.model.forecast.ForecastSample@Sun, 4 Nov 2018 11:51:51:467..2199183025354118632
B21: Output parameters | D21: Table A | E21: Table B | K21: Sample Statistics
B23: Sample statistics output | D23: =config!G20 -> values-only | E23: 0 | G23: 0 | K23: =config!G8 -> min
D24: =config!G21 -> key-id | E24: =B33 -> maturity | G24: =E24 -> maturity | K24: =config!G14 -> percentile | L24: 0.25
B25: =_xll.AC.data.map(D23:D28, E23:E28) -> java.util.LinkedHashMap@Sun, 4 Nov 2018 11:32:51:466..8569307752820455448 | C25: =_xll.AC.data.size(B25, 1) -> 6 | D25: =config!G22 -> key-value | E25: =K11 -> UNEMP5 | G25: =E25 -> UNEMP5 | K25: =config!G10 -> mean
B26: =_xll.AC.data.map(D23:D28, G23:G28) -> java.util.LinkedHashMap@Sun, 4 Nov 2018 11:32:51:482..1145654705502525608 | C26: =_xll.AC.data.size(B26, 1) -> 6 | D26: =config!G23 -> key-ids-row | E26: =_xll.AC.data.list_x(B32, 0, 1) -> java.util.ArrayList@Sun, 4 Nov 2018 11:16:17:853..6878887748575010429 | G26: =_xll.AC.data.list_x(B36, 0, 1) -> java.util.ArrayList@Sun, 4 Nov 2018 10:06:10:872..5049068006655929081 | K26: =K24 -> percentile | L26: 0.75
D27: =config!G24 -> key-ids-col | E27: =_xll.AC.data.list_x(B35, 0, 1) -> java.util.ArrayList@Sun, 4 Nov 2018 11:16:17:853..8484275513342818042 | G27: =E27 -> java.util.ArrayList@Sun, 4 Nov 2018 11:16:17:853..8484275513342818042 | K27: =config!G9 -> max
B28: =_xll.AC.data.map(D31:D36, E31:E36) -> java.util.LinkedHashMap@Sun, 4 Nov 2018 11:16:17:868..4376713551074005678 | C28: =_xll.AC.data.size(B28, 1) -> 6 | D28: =config!G26 -> table-header-names | E28: =_xll.AC.data.list_x(K31, 0, 1) -> java.util.ArrayList@Sun, 4 Nov 2018 11:16:17:853..1408317048091918134 | F28: =_xll.AC.data.size(E28, 1) -> 1 | G28: =_xll.AC.data.list_x(K33, 0, 1) -> java.util.ArrayList@Sun, 4 Nov 2018 10:06:10:879..1151946753427157117
K29: Table headers
D30: Table C
D31: =D23 -> values-only | E31: 0 | K31: =config!C19 -> Forecast issue date
B32: =config!G41 -> issue-date | D32: =D24 -> key-id | E32: =B32 -> issue-date | K32: =config!C17 -> Forecast maturity
B33: =config!G36 -> maturity | D33: =config!G22 -> key-value | E33: 2018-09-30 | K33: =config!C18 -> Forecast maturity date
B34: =config!G34 -> forecaster-id | D34: =D26 -> key-ids-row | E34: =E27 -> java.util.ArrayList@Sun, 4 Nov 2018 11:16:17:853..8484275513342818042 | K34: =config!C21 -> Statistics
B35: =config!G38 -> stats-id | D35: =D27 -> key-ids-col | E35: =_xll.AC.data.list_x(B33, 0, 1) -> java.util.ArrayList@Sun, 4 Nov 2018 10:06:10:876..1974526267439168518
B36: =config!G37 -> maturity-date | D36: =config!G26 -> table-header-names | E36: =_xll.AC.data.list_x(K34, 0, 1) -> java.util.ArrayList@Sun, 4 Nov 2018 11:16:17:837..1304608326396772826 | F36: =_xll.AC.data.size(E36, 1) -> 1

Sheet charts
B2: TAB: CHARTS
B4: =stats!B5 -> UNEMP5 | C4: Table A: Forecasts presented as of the issue date | I4: =B4 -> UNEMP5 | J4: TableB: Forecasts presented as of the maturity date
B22: =calc!E33 -> 2018-09-30 | C22: Table C: Term structure of the forecasts rates

Sheet stats
B2: TAB: SAMPLE STATISTICS
C4: =_xll.AC.stats.sample.get(calc!E16, calc!B25) -> java.util.ArrayList@Sun, 4 Nov 2018 11:30:41:132..5113537232288227201 | G4: =_xll.AC.data.size(C4, 1) -> 76 | H4: =_xll.AC.data.size(C4, 2) -> 6 | K4: =_xll.AC.stats.sample.get(calc!E18, calc!B26) -> java.util.ArrayList@Sun, 4 Nov 2018 11:30:41:148..6785703340943204264 | O4: =_xll.AC.data.size(K4, 1) -> 76 | P4: =_xll.AC.data.size(K4, 2) -> 6 | S4: =_xll.AC.stats.sample.get(calc!E16, calc!B28) -> java.util.ArrayList@Sun, 4 Nov 2018 11:35:39:523..4989287243227054456 | W4: =_xll.AC.data.size(S4, 1) -> 6 | X4: =_xll.AC.data.size(S4, 2) -> 7
B5: =calc!E25 -> UNEMP5 | C5: Table A: Forecasts presented as of the issue date | K5: =B5 -> UNEMP5 | L5: Table B: Forecasts presented as of the maturity date | S5: =calc!E33 -> 2018-09-30 | T5: Table C: Forecasts term structure as of given date
T7: Q01 | U7: Q02 | V7: Q03 | W7: Q04 | X7: Q05 | Y7: Q06
B8: Date of forecast | C8: =_xll.AC.data._get(C4, "", 0) -> Forecast issue date | D8: min | E8: percentile [0.25] | F8: mean | G8: percentile [0.75] | H8: max | I8: Historical | K8: =_xll.AC.data._get(K4, "", 0) -> Forecast maturity date | L8: min | M8: percentile [0.25] | N8: mean | O8: percentile [0.75] | P8: max | Q8: =I8 -> Historical | S8: =_xll.AC.data._get(S4, "", 0) -> Statistics | T8: UNEMP1 | U8: UNEMP2 | V8: UNEMP3 | W8: UNEMP4 | X8: UNEMP5 | Y8: UNEMP6
C9: 2000-03-31 | D9: 3.6 | E9: 3.975 | F9: 4.116666667 | G9: 4.3 | H9: 4.6 | I9: =IF(C9="", "", IF(ISERROR(VLOOKUP(C9, data!$R$7:$S$500, 2, FALSE)), "", VLOOKUP(C9, data!$R$7:$S$500, 2, FALSE))) -> 4.033 | K9: 2001-03-31 | L9: 3.6 | M9: 3.975 | N9: 4.116666667 | O9: 4.3 | P9: 4.6 | Q9: =IF(K9="", "", IF(ISERROR(VLOOKUP(K9, data!$R$7:$S$500, 2, FALSE)), "", VLOOKUP(K9, data!$R$7:$S$500, 2, FALSE))) -> 4.233 | S9: min | T9: 3.9 | U9: 3.586 | V9: 3.4645 | W9: 3.4079 | X9: 3.2662 | Y9: 3.1924
B10: =C9 -> 2000-03-31 | C10: 2000-06-30 | D10: 3.6 | E10: 4 | F10: 4.061764706 | G10: 4.2 | H10: 4.5 | I10: =IF(C10="", "", IF(ISERROR(VLOOKUP(C10, data!$R$7:$S$500, 2, FALSE)), "", VLOOKUP(C10, data!$R$7:$S$500, 2, FALSE))) -> 3.933 | K10: 2001-06-30 | L10: 3.6 | M10: 4 | N10: 4.061764706 | O10: 4.2 | P10: 4.5 | Q10: =IF(K10="", "", IF(ISERROR(VLOOKUP(K10, data!$R$7:$S$500, 2, FALSE)), "", VLOOKUP(K10, data!$R$7:$S$500, 2, FALSE))) -> 4.4 | S10: percentile [0.25] | T10: 3.9 | U10: 3.8 | V10: 3.66585 | W10: 3.5926 | X10: 3.5 | Y10: 3.4
B11: =IF(C10="", "", C10) -> 2000-06-30 | C11: 2000-09-30 | D11: 3.7 | E11: 4.025 | F11: 4.179032258 | G11: 4.3 | H11: 4.8 | I11: =IF(C11="", "", IF(ISERROR(VLOOKUP(C11, data!$R$7:$S$500, 2, FALSE)), "", VLOOKUP(C11, data!$R$7:$S$500, 2, FALSE))) -> 4 | K11: 2001-09-30 | L11: 3.7 | M11: 4.025 | N11: 4.179032258 | O11: 4.3 | P11: 4.8 | Q11: =IF(K11="", "", IF(ISERROR(VLOOKUP(K11, data!$R$7:$S$500, 2, FALSE)), "", VLOOKUP(K11, data!$R$7:$S$500, 2, FALSE))) -> 4.833 | S11: mean | T11: 3.9 | U11: 3.831727778 | V11: 3.732338889 | W11: 3.679419444 | X11: 3.668469444 | Y11: 3.643772222
B12: =IF(C11="", "", C11) -> 2000-09-30 | C12: 2000-12-31 | D12: 3.9 | E12: 4.1 | F12: 4.216764706 | G12: 4.2525 | H12: 5.3 | I12: =IF(C12="", "", IF(ISERROR(VLOOKUP(C12, data!$R$7:$S$500, 2, FALSE)), "", VLOOKUP(C12, data!$R$7:$S$500, 2, FALSE))) -> 3.9 | K12: 2001-12-31 | L12: 3.9 | M12: 4.1 | N12: 4.216764706 | O12: 4.2525 | P12: 5.3 | Q12: =IF(K12="", "", IF(ISERROR(VLOOKUP(K12, data!$R$7:$S$500, 2, FALSE)), "", VLOOKUP(K12, data!$R$7:$S$500, 2, FALSE))) -> 5.5 | S12: percentile [0.75] | T12: 3.9 | U12: 3.890425 | V12: 3.8 | W12: 3.75625 | X12: 3.8 | Y12: 3.757175
B13: 2000-12-31 | C13: 2001-03-31 | D13: 4 | E13: 4.3 | F13: 4.535714286 | G13: 4.75 | H13: 5.3 | I13: =IF(C13="", "", IF(ISERROR(VLOOKUP(C13, data!$R$7:$S$500, 2, FALSE)), "", VLOOKUP(C13, data!$R$7:$S$500, 2, FALSE))) -> 4.233 | K13: 2002-03-31 | L13: 4 | M13: 4.3 | N13: 4.535714286 | O13: 4.75 | P13: 5.3 | Q13: =IF(K13="", "", IF(ISERROR(VLOOKUP(K13, data!$R$7:$S$500, 2, FALSE)), "", VLOOKUP(K13, data!$R$7:$S$500, 2, FALSE))) -> 5.7 | S13: max | T13: 3.9 | U13: 4 | V13: 4 | W13: 4.1 | X13: 4.3 | Y13: 4.6
B14: 2001-03-31 | C14: 2001-06-30 | D14: 4.3 | E14: 4.6 | F14: 4.818181818 | G14: 5 | H14: 5.5 | I14: =IF(C14="", "", IF(ISERROR(VLOOKUP(C14, data!$R$7:$S$500, 2, FALSE)), "", VLOOKUP(C14, data!$R$7:$S$500, 2, FALSE))) -> 4.4 | K14: 2002-06-30 | L14: 4.3 | M14: 4.6 | N14: 4.818181818 | O14: 5 | P14: 5.5 | Q14: =IF(K14="", "", IF(ISERROR(VLOOKUP(K14, data!$R$7:$S$500, 2, FALSE)), "", VLOOKUP(K14, data!$R$7:$S$500, 2, FALSE))) -> 5.833
B15: 2001-06-30 | C15: 2001-09-30 | D15: 4.2 | E15: 4.8 | F15: 4.918181818 | G15: 5 | H15: 5.7 | I15: =IF(C15="", "", IF(ISERROR(VLOOKUP(C15, data!$R$7:$S$500, 2, FALSE)), "", VLOOKUP(C15, data!$R$7:$S$500, 2, FALSE))) -> 4.833 | K15: 2002-09-30 | L15: 4.2 | M15: 4.8 | N15: 4.918181818 | O15: 5 | P15: 5.7 | Q15: =IF(K15="", "", IF(ISERROR(VLOOKUP(K15, data!$R$7:$S$500, 2, FALSE)), "", VLOOKUP(K15, data!$R$7:$S$500, 2, FALSE))) -> 5.733
B16: 2001-09-30 | C16: 2001-12-31 | D16: 5.2 | E16: 5.775 | F16: 6.007142857 | G16: 6.3 | H16: 6.8 | I16: =IF(C16="", "", IF(ISERROR(VLOOKUP(C16, data!$R$7:$S$500, 2, FALSE)), "", VLOOKUP(C16, data!$R$7:$S$500, 2, FALSE))) -> 5.5 | K16: 2002-12-31 | L16: 5.2 | M16: 5.775 | N16: 6.007142857 | O16: 6.3 | P16: 6.8 | Q16: =IF(K16="", "", IF(ISERROR(VLOOKUP(K16, data!$R$7:$S$500, 2, FALSE)), "", VLOOKUP(K16, data!$R$7:$S$500, 2, FALSE))) -> 5.867 | S16: Date | T16: =S5 -> 2018-09-30 | U16: =DATE(YEAR(T16), MONTH(T16)+4, 0) -> 2018-12-31 | V16: =DATE(YEAR(U16), MONTH(U16)+4, 0) -> 2019-03-31 | W16: 2019-06-30 | X16: 2019-09-30 | Y16: 2019-12-31
B17: 2001-12-31 | C17: 2002-03-31 | D17: 4.8 | E17: 5.525 | F17: 5.808823529 | G17: 6.075 | H17: 6.5 | I17: =IF(C17="", "", IF(ISERROR(VLOOKUP(C17, data!$R$7:$S$500, 2, FALSE)), "", VLOOKUP(C17, data!$R$7:$S$500, 2, FALSE))) -> 5.7 | K17: 2003-03-31 | L17: 4.8 | M17: 5.525 | N17: 5.808823529 | O17: 6.075 | P17: 6.5 | Q17: =IF(K17="", "", IF(ISERROR(VLOOKUP(K17, data!$R$7:$S$500, 2, FALSE)), "", VLOOKUP(K17, data!$R$7:$S$500, 2, FALSE))) -> 5.867 | S17: =I8 -> Historical | T17: =IF(ISERROR(VLOOKUP(T16, data!$R$7:$S$500, 2, FALSE)), "", VLOOKUP(T16, data!$R$7:$S$500, 2, FALSE)) -> 3.758 | U17: =IF(ISERROR(VLOOKUP(U16, data!$R$7:$S$500, 2, FALSE)), "", VLOOKUP(U16, data!$R$7:$S$500, 2, FALSE)) ->  | V17: =IF(ISERROR(VLOOKUP(V16, data!$R$7:$S$500, 2, FALSE)), "", VLOOKUP(V16, data!$R$7:$S$500, 2, FALSE)) ->  | W17: =IF(ISERROR(VLOOKUP(W16, data!$R$7:$S$500, 2, FALSE)), "", VLOOKUP(W16, data!$R$7:$S$500, 2, FALSE)) ->  | X17: =IF(ISERROR(VLOOKUP(X16, data!$R$7:$S$500, 2, FALSE)), "", VLOOKUP(X16, data!$R$7:$S$500, 2, FALSE)) ->  | Y17: =IF(ISERROR(VLOOKUP(Y16, data!$R$7:$S$500, 2, FALSE)), "", VLOOKUP(Y16, data!$R$7:$S$500, 2, FALSE)) -> 
B18: 2002-03-31 | C18: 2002-06-30 | D18: 5 | E18: 5.4 | F18: 5.624571429 | G18: 5.9 | H18: 6.2 | I18: =IF(C18="", "", IF(ISERROR(VLOOKUP(C18, data!$R$7:$S$500, 2, FALSE)), "", VLOOKUP(C18, data!$R$7:$S$500, 2, FALSE))) -> 5.833 | K18: 2003-06-30 | L18: 5 | M18: 5.4 | N18: 5.624571429 | O18: 5.9 | P18: 6.2 | Q18: =IF(K18="", "", IF(ISERROR(VLOOKUP(K18, data!$R$7:$S$500, 2, FALSE)), "", VLOOKUP(K18, data!$R$7:$S$500, 2, FALSE))) -> 6.133 | S18: =data!V5 -> MA | T18: =OFFSET(data!$V$6, T20, 0) -> 3.71 | U18: =OFFSET(data!$V$6, U20, 0) -> 3.64 | V18: =OFFSET(data!$V$6, V20, 0) -> 3.6 | W18: =OFFSET(data!$V$6, W20, 0) -> 3.52 | X18: =OFFSET(data!$V$6, X20, 0) -> 3.48 | Y18: =OFFSET(data!$V$6, Y20, 0) -> 3.46
B19: 2002-06-30 | C19: 2002-09-30 | D19: 4.9 | E19: 5.6 | F19: 5.728571429 | G19: 5.95 | H19: 6.4 | I19: =IF(C19="", "", IF(ISERROR(VLOOKUP(C19, data!$R$7:$S$500, 2, FALSE)), "", VLOOKUP(C19, data!$R$7:$S$500, 2, FALSE))) -> 5.733 | K19: 2003-09-30 | L19: 4.9 | M19: 5.6 | N19: 5.728571429 | O19: 5.95 | P19: 6.4 | Q19: =IF(K19="", "", IF(ISERROR(VLOOKUP(K19, data!$R$7:$S$500, 2, FALSE)), "", VLOOKUP(K19, data!$R$7:$S$500, 2, FALSE))) -> 6.133 | S19: =data!W5 -> TD | T19: =OFFSET(data!$W$6, T$20, 0) -> 3.758 | U19: =OFFSET(data!$W$6, U$20, 0) -> 3.668 | V19: =OFFSET(data!$W$6, V$20, 0) -> 3.618 | W19: =OFFSET(data!$W$6, W$20, 0) -> 3.57 | X19: =OFFSET(data!$W$6, X$20, 0) -> 3.526 | Y19: =OFFSET(data!$W$6, Y$20, 0) -> 3.495
B20: 2002-09-30 | C20: 2002-12-31 | D20: 4.7 | E20: 5.5 | F20: 5.667647059 | G20: 5.9 | H20: 6.2 | I20: =IF(C20="", "", IF(ISERROR(VLOOKUP(C20, data!$R$7:$S$500, 2, FALSE)), "", VLOOKUP(C20, data!$R$7:$S$500, 2, FALSE))) -> 5.867 | K20: 2003-12-31 | L20: 4.7 | M20: 5.5 | N20: 5.667647059 | O20: 5.9 | P20: 6.2 | Q20: =IF(K20="", "", IF(ISERROR(VLOOKUP(K20, data!$R$7:$S$500, 2, FALSE)), "", VLOOKUP(K20, data!$R$7:$S$500, 2, FALSE))) -> 5.833 | T20: 1 | U20: =T20+1 -> 2 | V20: =U20+1 -> 3 | W20: 4 | X20: 5 | Y20: =X20+1 -> 6
B21: 2002-12-31 | C21: 2003-03-31 | D21: 4.9 | E21: 5.6 | F21: 5.756756757 | G21: 5.9 | H21: 6.3 | I21: =IF(C21="", "", IF(ISERROR(VLOOKUP(C21, data!$R$7:$S$500, 2, FALSE)), "", VLOOKUP(C21, data!$R$7:$S$500, 2, FALSE))) -> 5.867 | K21: 2004-03-31 | L21: 4.9 | M21: 5.6 | N21: 5.756756757 | O21: 5.9 | P21: 6.3 | Q21: =IF(K21="", "", IF(ISERROR(VLOOKUP(K21, data!$R$7:$S$500, 2, FALSE)), "", VLOOKUP(K21, data!$R$7:$S$500, 2, FALSE))) -> 5.7
B22: 2003-03-31 | C22: 2003-06-30 | D22: 5.2 | E22: 5.7 | F22: 5.802941176 | G22: 6 | H22: 6.3 | I22: =IF(C22="", "", IF(ISERROR(VLOOKUP(C22, data!$R$7:$S$500, 2, FALSE)), "", VLOOKUP(C22, data!$R$7:$S$500, 2, FALSE))) -> 6.133 | K22: 2004-06-30 | L22: 5.2 | M22: 5.7 | N22: 5.802941176 | O22: 6 | P22: 6.3 | Q22: =IF(K22="", "", IF(ISERROR(VLOOKUP(K22, data!$R$7:$S$500, 2, FALSE)), "", VLOOKUP(K22, data!$R$7:$S$500, 2, FALSE))) -> 5.6
B23: 2003-06-30 | C23: 2003-09-30 | D23: 5.4 | E23: 5.725 | F23: 5.933333333 | G23: 6.075 | H23: 6.5 | I23: =IF(C23="", "", IF(ISERROR(VLOOKUP(C23, data!$R$7:$S$500, 2, FALSE)), "", VLOOKUP(C23, data!$R$7:$S$500, 2, FALSE))) -> 6.133 | K23: 2004-09-30 | L23: 5.4 | M23: 5.725 | N23: 5.933333333 | O23: 6.075 | P23: 6.5 | Q23: =IF(K23="", "", IF(ISERROR(VLOOKUP(K23, data!$R$7:$S$500, 2, FALSE)), "", VLOOKUP(K23, data!$R$7:$S$500, 2, FALSE))) -> 5.433
B24: 2003-09-30 | C24: 2003-12-31 | D24: 5.06 | E24: 5.6 | F24: 5.725294118 | G24: 5.9 | H24: 6.2 | I24: =IF(C24="", "", IF(ISERROR(VLOOKUP(C24, data!$R$7:$S$500, 2, FALSE)), "", VLOOKUP(C24, data!$R$7:$S$500, 2, FALSE))) -> 5.833 | K24: 2004-12-31 | L24: 5.06 | M24: 5.6 | N24: 5.725294118 | O24: 5.9 | P24: 6.2 | Q24: =IF(K24="", "", IF(ISERROR(VLOOKUP(K24, data!$R$7:$S$500, 2, FALSE)), "", VLOOKUP(K24, data!$R$7:$S$500, 2, FALSE))) -> 5.433
B25: 2003-12-31 | C25: 2004-03-31 | D25: 4.5 | E25: 5.3075 | F25: 5.4425 | G25: 5.6 | H25: 6.2 | I25: =IF(C25="", "", IF(ISERROR(VLOOKUP(C25, data!$R$7:$S$500, 2, FALSE)), "", VLOOKUP(C25, data!$R$7:$S$500, 2, FALSE))) -> 5.7 | K25: 2005-03-31 | L25: 4.5 | M25: 5.3075 | N25: 5.4425 | O25: 5.6 | P25: 6.2 | Q25: =IF(K25="", "", IF(ISERROR(VLOOKUP(K25, data!$R$7:$S$500, 2, FALSE)), "", VLOOKUP(K25, data!$R$7:$S$500, 2, FALSE))) -> 5.3
B26: 2004-03-31 | C26: 2004-06-30 | D26: 4.8 | E26: 5.2335 | F26: 5.335193548 | G26: 5.45 | H26: 5.71 | I26: =IF(C26="", "", IF(ISERROR(VLOOKUP(C26, data!$R$7:$S$500, 2, FALSE)), "", VLOOKUP(C26, data!$R$7:$S$500, 2, FALSE))) -> 5.6 | K26: 2005-06-30 | L26: 4.8 | M26: 5.2335 | N26: 5.335193548 | O26: 5.45 | P26: 5.71 | Q26: =IF(K26="", "", IF(ISERROR(VLOOKUP(K26, data!$R$7:$S$500, 2, FALSE)), "", VLOOKUP(K26, data!$R$7:$S$500, 2, FALSE))) -> 5.1
B27: 2004-06-30 | C27: 2004-09-30 | D27: 4.6 | E27: 5.2 | F27: 5.268366667 | G27: 5.4 | H27: 5.6 | I27: =IF(C27="", "", IF(ISERROR(VLOOKUP(C27, data!$R$7:$S$500, 2, FALSE)), "", VLOOKUP(C27, data!$R$7:$S$500, 2, FALSE))) -> 5.433 | K27: 2005-09-30 | L27: 4.6 | M27: 5.2 | N27: 5.268366667 | O27: 5.4 | P27: 5.6 | Q27: =IF(K27="", "", IF(ISERROR(VLOOKUP(K27, data!$R$7:$S$500, 2, FALSE)), "", VLOOKUP(K27, data!$R$7:$S$500, 2, FALSE))) -> 4.967
B28: 2004-09-30 | C28: 2004-12-31 | D28: 4.7 | E28: 5.11675 | F28: 5.235029412 | G28: 5.375 | H28: 5.6 | I28: =IF(C28="", "", IF(ISERROR(VLOOKUP(C28, data!$R$7:$S$500, 2, FALSE)), "", VLOOKUP(C28, data!$R$7:$S$500, 2, FALSE))) -> 5.433 | K28: 2005-12-31 | L28: 4.7 | M28: 5.11675 | N28: 5.235029412 | O28: 5.375 | P28: 5.6 | Q28: =IF(K28="", "", IF(ISERROR(VLOOKUP(K28, data!$R$7:$S$500, 2, FALSE)), "", VLOOKUP(K28, data!$R$7:$S$500, 2, FALSE))) -> 4.967
B29: 2004-12-31 | C29: 2005-03-31 | D29: 4.63 | E29: 5.075 | F29: 5.136916667 | G29: 5.2345 | H29: 5.5 | I29: =IF(C29="", "", IF(ISERROR(VLOOKUP(C29, data!$R$7:$S$500, 2, FALSE)), "", VLOOKUP(C29, data!$R$7:$S$500, 2, FALSE))) -> 5.3 | K29: 2006-03-31 | L29: 4.63 | M29: 5.075 | N29: 5.136916667 | O29: 5.2345 | P29: 5.5 | Q29: =IF(K29="", "", IF(ISERROR(VLOOKUP(K29, data!$R$7:$S$500, 2, FALSE)), "", VLOOKUP(K29, data!$R$7:$S$500, 2, FALSE))) -> 4.733
B30: 2005-03-31 | C30: 2005-06-30 | D30: 4.6 | E30: 5 | F30: 5.098090909 | G30: 5.2 | H30: 5.5 | I30: =IF(C30="", "", IF(ISERROR(VLOOKUP(C30, data!$R$7:$S$500, 2, FALSE)), "", VLOOKUP(C30, data!$R$7:$S$500, 2, FALSE))) -> 5.1 | K30: 2006-06-30 | L30: 4.6 | M30: 5 | N30: 5.098090909 | O30: 5.2 | P30: 5.5 | Q30: =IF(K30="", "", IF(ISERROR(VLOOKUP(K30, data!$R$7:$S$500, 2, FALSE)), "", VLOOKUP(K30, data!$R$7:$S$500, 2, FALSE))) -> 4.633
B31: 2005-06-30 | C31: 2005-09-30 | D31: 4.5 | E31: 4.8 | F31: 4.944320755 | G31: 5.04 | H31: 5.8 | I31: =IF(C31="", "", IF(ISERROR(VLOOKUP(C31, data!$R$7:$S$500, 2, FALSE)), "", VLOOKUP(C31, data!$R$7:$S$500, 2, FALSE))) -> 4.967 | K31: 2006-09-30 | L31: 4.5 | M31: 4.8 | N31: 4.944320755 | O31: 5.04 | P31: 5.8 | Q31: =IF(K31="", "", IF(ISERROR(VLOOKUP(K31, data!$R$7:$S$500, 2, FALSE)), "", VLOOKUP(K31, data!$R$7:$S$500, 2, FALSE))) -> 4.633
B32: 2005-09-30 | C32: 2005-12-31 | D32: 4.5 | E32: 4.808 | F32: 4.931098039 | G32: 5 | H32: 5.5 | I32: =IF(C32="", "", IF(ISERROR(VLOOKUP(C32, data!$R$7:$S$500, 2, FALSE)), "", VLOOKUP(C32, data!$R$7:$S$500, 2, FALSE))) -> 4.967 | K32: 2006-12-31 | L32: 4.5 | M32: 4.808 | N32: 4.931098039 | O32: 5 | P32: 5.5 | Q32: =IF(K32="", "", IF(ISERROR(VLOOKUP(K32, data!$R$7:$S$500, 2, FALSE)), "", VLOOKUP(K32, data!$R$7:$S$500, 2, FALSE))) -> 4.433
B33: 2005-12-31 | C33: 2006-03-31 | D33: 4.4 | E33: 4.673 | F33: 4.841509434 | G33: 5 | H33: 5.5 | I33: =IF(C33="", "", IF(ISERROR(VLOOKUP(C33, data!$R$7:$S$500, 2, FALSE)), "", VLOOKUP(C33, data!$R$7:$S$500, 2, FALSE))) -> 4.733 | K33: 2007-03-31 | L33: 4.4 | M33: 4.673 | N33: 4.841509434 | O33: 5 | P33: 5.5 | Q33: =IF(K33="", "", IF(ISERROR(VLOOKUP(K33, data!$R$7:$S$500, 2, FALSE)), "", VLOOKUP(K33, data!$R$7:$S$500, 2, FALSE))) -> 4.5
B34: 2006-03-31 | C34: 2006-06-30 | D34: 4.3 | E34: 4.6 | F34: 4.790975 | G34: 4.974825 | H34: 5.6 | I34: =IF(C34="", "", IF(ISERROR(VLOOKUP(C34, data!$R$7:$S$500, 2, FALSE)), "", VLOOKUP(C34, data!$R$7:$S$500, 2, FALSE))) -> 4.633 | K34: 2007-06-30 | L34: 4.3 | M34: 4.6 | N34: 4.790975 | O34: 4.974825 | P34: 5.6 | Q34: =IF(K34="", "", IF(ISERROR(VLOOKUP(K34, data!$R$7:$S$500, 2, FALSE)), "", VLOOKUP(K34, data!$R$7:$S$500, 2, FALSE))) -> 4.5
B35: 2006-06-30 | C35: 2006-09-30 | D35: 4.3 | E35: 4.7 | F35: 4.855262745 | G35: 5.0202 | H35: 5.6 | I35: =IF(C35="", "", IF(ISERROR(VLOOKUP(C35, data!$R$7:$S$500, 2, FALSE)), "", VLOOKUP(C35, data!$R$7:$S$500, 2, FALSE))) -> 4.633 | K35: 2007-09-30 | L35: 4.3 | M35: 4.7 | N35: 4.855262745 | O35: 5.0202 | P35: 5.6 | Q35: =IF(K35="", "", IF(ISERROR(VLOOKUP(K35, data!$R$7:$S$500, 2, FALSE)), "", VLOOKUP(K35, data!$R$7:$S$500, 2, FALSE))) -> 4.667
B36: 2006-09-30 | C36: 2006-12-31 | D36: 4.2 | E36: 4.6003 | F36: 4.801921569 | G36: 5 | H36: 5.5 | I36: =IF(C36="", "", IF(ISERROR(VLOOKUP(C36, data!$R$7:$S$500, 2, FALSE)), "", VLOOKUP(C36, data!$R$7:$S$500, 2, FALSE))) -> 4.433 | K36: 2007-12-31 | L36: 4.2 | M36: 4.6003 | N36: 4.801921569 | O36: 5 | P36: 5.5 | Q36: =IF(K36="", "", IF(ISERROR(VLOOKUP(K36, data!$R$7:$S$500, 2, FALSE)), "", VLOOKUP(K36, data!$R$7:$S$500, 2, FALSE))) -> 4.8
B37: 2006-12-31 | C37: 2007-03-31 | D37: 4.3 | E37: 4.5 | F37: 4.738818367 | G37: 4.9 | H37: 5.1 | I37: =IF(C37="", "", IF(ISERROR(VLOOKUP(C37, data!$R$7:$S$500, 2, FALSE)), "", VLOOKUP(C37, data!$R$7:$S$500, 2, FALSE))) -> 4.5 | K37: 2008-03-31 | L37: 4.3 | M37: 4.5 | N37: 4.738818367 | O37: 4.9 | P37: 5.1 | Q37: =IF(K37="", "", IF(ISERROR(VLOOKUP(K37, data!$R$7:$S$500, 2, FALSE)), "", VLOOKUP(K37, data!$R$7:$S$500, 2, FALSE))) -> 5
B38: 2007-03-31 | C38: 2007-06-30 | D38: 4.16 | E38: 4.5 | F38: 4.717929412 | G38: 4.9 | H38: 5.2 | I38: =IF(C38="", "", IF(ISERROR(VLOOKUP(C38, data!$R$7:$S$500, 2, FALSE)), "", VLOOKUP(C38, data!$R$7:$S$500, 2, FALSE))) -> 4.5 | K38: 2008-06-30 | L38: 4.16 | M38: 4.5 | N38: 4.717929412 | O38: 4.9 | P38: 5.2 | Q38: =IF(K38="", "", IF(ISERROR(VLOOKUP(K38, data!$R$7:$S$500, 2, FALSE)), "", VLOOKUP(K38, data!$R$7:$S$500, 2, FALSE))) -> 5.333
B39: 2007-06-30 | C39: 2007-09-30 | D39: 4.0972 | E39: 4.6 | F39: 4.686440816 | G39: 4.8 | H39: 5.2 | I39: =IF(C39="", "", IF(ISERROR(VLOOKUP(C39, data!$R$7:$S$500, 2, FALSE)), "", VLOOKUP(C39, data!$R$7:$S$500, 2, FALSE))) -> 4.667 | K39: 2008-09-30 | L39: 4.0972 | M39: 4.6 | N39: 4.686440816 | O39: 4.8 | P39: 5.2 | Q39: =IF(K39="", "", IF(ISERROR(VLOOKUP(K39, data!$R$7:$S$500, 2, FALSE)), "", VLOOKUP(K39, data!$R$7:$S$500, 2, FALSE))) -> 6
B40: 2007-09-30 | C40: 2007-12-31 | D40: 4.5 | E40: 4.8 | F40: 4.95241875 | G40: 5.1 | H40: 5.6 | I40: =IF(C40="", "", IF(ISERROR(VLOOKUP(C40, data!$R$7:$S$500, 2, FALSE)), "", VLOOKUP(C40, data!$R$7:$S$500, 2, FALSE))) -> 4.8 | K40: 2008-12-31 | L40: 4.5 | M40: 4.8 | N40: 4.95241875 | O40: 5.1 | P40: 5.6 | Q40: =IF(K40="", "", IF(ISERROR(VLOOKUP(K40, data!$R$7:$S$500, 2, FALSE)), "", VLOOKUP(K40, data!$R$7:$S$500, 2, FALSE))) -> 6.867
B41: 2007-12-31 | C41: 2008-03-31 | D41: 4.5 | E41: 5.1 | F41: 5.289461224 | G41: 5.5 | H41: 6.2 | I41: =IF(C41="", "", IF(ISERROR(VLOOKUP(C41, data!$R$7:$S$500, 2, FALSE)), "", VLOOKUP(C41, data!$R$7:$S$500, 2, FALSE))) -> 5 | K41: 2009-03-31 | L41: 4.5 | M41: 5.1 | N41: 5.289461224 | O41: 5.5 | P41: 6.2 | Q41: =IF(K41="", "", IF(ISERROR(VLOOKUP(K41, data!$R$7:$S$500, 2, FALSE)), "", VLOOKUP(K41, data!$R$7:$S$500, 2, FALSE))) -> 8.267
B42: 2008-03-31 | C42: 2008-06-30 | D42: 4.9 | E42: 5.3 | F42: 5.490651064 | G42: 5.7 | H42: 6.1 | I42: =IF(C42="", "", IF(ISERROR(VLOOKUP(C42, data!$R$7:$S$500, 2, FALSE)), "", VLOOKUP(C42, data!$R$7:$S$500, 2, FALSE))) -> 5.333 | K42: 2009-06-30 | L42: 4.9 | M42: 5.3 | N42: 5.490651064 | O42: 5.7 | P42: 6.1 | Q42: =IF(K42="", "", IF(ISERROR(VLOOKUP(K42, data!$R$7:$S$500, 2, FALSE)), "", VLOOKUP(K42, data!$R$7:$S$500, 2, FALSE))) -> 9.3
B43: 2008-06-30 | C43: 2008-09-30 | D43: 4.71 | E43: 5.9 | F43: 5.964459574 | G43: 6.22835 | H43: 6.8 | I43: =IF(C43="", "", IF(ISERROR(VLOOKUP(C43, data!$R$7:$S$500, 2, FALSE)), "", VLOOKUP(C43, data!$R$7:$S$500, 2, FALSE))) -> 6 | K43: 2009-09-30 | L43: 4.71 | M43: 5.9 | N43: 5.964459574 | O43: 6.22835 | P43: 6.8 | Q43: =IF(K43="", "", IF(ISERROR(VLOOKUP(K43, data!$R$7:$S$500, 2, FALSE)), "", VLOOKUP(K43, data!$R$7:$S$500, 2, FALSE))) -> 9.633
B44: 2008-09-30 | C44: 2008-12-31 | D44: 5.5 | E44: 7.36055 | F44: 7.549462745 | G44: 7.8 | H44: 8.5904 | I44: =IF(C44="", "", IF(ISERROR(VLOOKUP(C44, data!$R$7:$S$500, 2, FALSE)), "", VLOOKUP(C44, data!$R$7:$S$500, 2, FALSE))) -> 6.867 | K44: 2009-12-31 | L44: 5.5 | M44: 7.36055 | N44: 7.549462745 | O44: 7.8 | P44: 8.5904 | Q44: =IF(K44="", "", IF(ISERROR(VLOOKUP(K44, data!$R$7:$S$500, 2, FALSE)), "", VLOOKUP(K44, data!$R$7:$S$500, 2, FALSE))) -> 9.933
B45: 2008-12-31 | C45: 2009-03-31 | D45: 6.8 | E45: 8.6 | F45: 8.875137209 | G45: 9.18995 | H45: 10.6 | I45: =IF(C45="", "", IF(ISERROR(VLOOKUP(C45, data!$R$7:$S$500, 2, FALSE)), "", VLOOKUP(C45, data!$R$7:$S$500, 2, FALSE))) -> 8.267 | K45: 2010-03-31 | L45: 6.8 | M45: 8.6 | N45: 8.875137209 | O45: 9.18995 | P45: 10.6 | Q45: =IF(K45="", "", IF(ISERROR(VLOOKUP(K45, data!$R$7:$S$500, 2, FALSE)), "", VLOOKUP(K45, data!$R$7:$S$500, 2, FALSE))) -> 9.833
B46: 2009-03-31 | C46: 2009-06-30 | D46: 7.3 | E46: 9.6 | F46: 9.75482449 | G46: 10.1 | H46: 10.9159 | I46: =IF(C46="", "", IF(ISERROR(VLOOKUP(C46, data!$R$7:$S$500, 2, FALSE)), "", VLOOKUP(C46, data!$R$7:$S$500, 2, FALSE))) -> 9.3 | K46: 2010-06-30 | L46: 7.3 | M46: 9.6 | N46: 9.75482449 | O46: 10.1 | P46: 10.9159 | Q46: =IF(K46="", "", IF(ISERROR(VLOOKUP(K46, data!$R$7:$S$500, 2, FALSE)), "", VLOOKUP(K46, data!$R$7:$S$500, 2, FALSE))) -> 9.633
B47: 2009-06-30 | C47: 2009-09-30 | D47: 6.9 | E47: 9.553875 | F47: 9.735982353 | G47: 10.025125 | H47: 10.7229 | I47: =IF(C47="", "", IF(ISERROR(VLOOKUP(C47, data!$R$7:$S$500, 2, FALSE)), "", VLOOKUP(C47, data!$R$7:$S$500, 2, FALSE))) -> 9.633 | K47: 2010-09-30 | L47: 6.9 | M47: 9.553875 | N47: 9.735982353 | O47: 10.025125 | P47: 10.7229 | Q47: =IF(K47="", "", IF(ISERROR(VLOOKUP(K47, data!$R$7:$S$500, 2, FALSE)), "", VLOOKUP(K47, data!$R$7:$S$500, 2, FALSE))) -> 9.467
B48: 2009-09-30 | C48: 2009-12-31 | D48: 9 | E48: 9.7 | F48: 9.989448718 | G48: 10.2 | H48: 10.9908 | I48: =IF(C48="", "", IF(ISERROR(VLOOKUP(C48, data!$R$7:$S$500, 2, FALSE)), "", VLOOKUP(C48, data!$R$7:$S$500, 2, FALSE))) -> 9.933 | K48: 2010-12-31 | L48: 9 | M48: 9.7 | N48: 9.989448718 | O48: 10.2 | P48: 10.9908 | Q48: =IF(K48="", "", IF(ISERROR(VLOOKUP(K48, data!$R$7:$S$500, 2, FALSE)), "", VLOOKUP(K48, data!$R$7:$S$500, 2, FALSE))) -> 9.5
B49: 2009-12-31 | C49: 2010-03-31 | D49: 8.5 | E49: 9.3 | F49: 9.615968293 | G49: 9.8333 | H49: 10.76 | I49: =IF(C49="", "", IF(ISERROR(VLOOKUP(C49, data!$R$7:$S$500, 2, FALSE)), "", VLOOKUP(C49, data!$R$7:$S$500, 2, FALSE))) -> 9.833 | K49: 2011-03-31 | L49: 8.5 | M49: 9.3 | N49: 9.615968293 | O49: 9.8333 | P49: 10.76 | Q49: =IF(K49="", "", IF(ISERROR(VLOOKUP(K49, data!$R$7:$S$500, 2, FALSE)), "", VLOOKUP(K49, data!$R$7:$S$500, 2, FALSE))) -> 9.033
B50: 2010-03-31 | C50: 2010-06-30 | D50: 7.8 | E50: 8.915 | F50: 9.214369767 | G50: 9.5 | H50: 10.09 | I50: =IF(C50="", "", IF(ISERROR(VLOOKUP(C50, data!$R$7:$S$500, 2, FALSE)), "", VLOOKUP(C50, data!$R$7:$S$500, 2, FALSE))) -> 9.633 | K50: 2011-06-30 | L50: 7.8 | M50: 8.915 | N50: 9.214369767 | O50: 9.5 | P50: 10.09 | Q50: =IF(K50="", "", IF(ISERROR(VLOOKUP(K50, data!$R$7:$S$500, 2, FALSE)), "", VLOOKUP(K50, data!$R$7:$S$500, 2, FALSE))) -> 9.067
B51: 2010-06-30 | C51: 2010-09-30 | D51: 8.5 | E51: 8.95595 | F51: 9.208685714 | G51: 9.4379 | H51: 10.02 | I51: =IF(C51="", "", IF(ISERROR(VLOOKUP(C51, data!$R$7:$S$500, 2, FALSE)), "", VLOOKUP(C51, data!$R$7:$S$500, 2, FALSE))) -> 9.467 | K51: 2011-09-30 | L51: 8.5 | M51: 8.95595 | N51: 9.208685714 | O51: 9.4379 | P51: 10.02 | Q51: =IF(K51="", "", IF(ISERROR(VLOOKUP(K51, data!$R$7:$S$500, 2, FALSE)), "", VLOOKUP(K51, data!$R$7:$S$500, 2, FALSE))) -> 9
B52: 2010-09-30 | C52: 2010-12-31 | D52: 7.9 | E52: 9.0075 | F52: 9.238083333 | G52: 9.5 | H52: 10 | I52: =IF(C52="", "", IF(ISERROR(VLOOKUP(C52, data!$R$7:$S$500, 2, FALSE)), "", VLOOKUP(C52, data!$R$7:$S$500, 2, FALSE))) -> 9.5 | K52: 2011-12-31 | L52: 7.9 | M52: 9.0075 | N52: 9.238083333 | O52: 9.5 | P52: 10 | Q52: =IF(K52="", "", IF(ISERROR(VLOOKUP(K52, data!$R$7:$S$500, 2, FALSE)), "", VLOOKUP(K52, data!$R$7:$S$500, 2, FALSE))) -> 8.633
B53: 2010-12-31 | C53: 2011-03-31 | D53: 7.9 | E53: 8.6 | F53: 8.833578049 | G53: 9.1 | H53: 9.2912 | I53: =IF(C53="", "", IF(ISERROR(VLOOKUP(C53, data!$R$7:$S$500, 2, FALSE)), "", VLOOKUP(C53, data!$R$7:$S$500, 2, FALSE))) -> 9.033 | K53: 2012-03-31 | L53: 7.9 | M53: 8.6 | N53: 8.833578049 | O53: 9.1 | P53: 9.2912 | Q53: =IF(K53="", "", IF(ISERROR(VLOOKUP(K53, data!$R$7:$S$500, 2, FALSE)), "", VLOOKUP(K53, data!$R$7:$S$500, 2, FALSE))) -> 8.267
B54: 2011-03-31 | C54: 2011-06-30 | D54: 7.33 | E54: 8.195 | F54: 8.316053488 | G54: 8.5 | H54: 8.9719 | I54: =IF(C54="", "", IF(ISERROR(VLOOKUP(C54, data!$R$7:$S$500, 2, FALSE)), "", VLOOKUP(C54, data!$R$7:$S$500, 2, FALSE))) -> 9.067 | K54: 2012-06-30 | L54: 7.33 | M54: 8.195 | N54: 8.316053488 | O54: 8.5 | P54: 8.9719 | Q54: =IF(K54="", "", IF(ISERROR(VLOOKUP(K54, data!$R$7:$S$500, 2, FALSE)), "", VLOOKUP(K54, data!$R$7:$S$500, 2, FALSE))) -> 8.2
B55: 2011-06-30 | C55: 2011-09-30 | D55: 7.56 | E55: 8.5169 | F55: 8.725068571 | G55: 8.9 | H55: 9.71 | I55: =IF(C55="", "", IF(ISERROR(VLOOKUP(C55, data!$R$7:$S$500, 2, FALSE)), "", VLOOKUP(C55, data!$R$7:$S$500, 2, FALSE))) -> 9 | K55: 2012-09-30 | L55: 7.56 | M55: 8.5169 | N55: 8.725068571 | O55: 8.9 | P55: 9.71 | Q55: =IF(K55="", "", IF(ISERROR(VLOOKUP(K55, data!$R$7:$S$500, 2, FALSE)), "", VLOOKUP(K55, data!$R$7:$S$500, 2, FALSE))) -> 8.033
B56: 2011-09-30 | C56: 2011-12-31 | D56: 7.33 | E56: 8.576525 | F56: 8.769693182 | G56: 9 | H56: 9.5 | I56: =IF(C56="", "", IF(ISERROR(VLOOKUP(C56, data!$R$7:$S$500, 2, FALSE)), "", VLOOKUP(C56, data!$R$7:$S$500, 2, FALSE))) -> 8.633 | K56: 2012-12-31 | L56: 7.33 | M56: 8.576525 | N56: 8.769693182 | O56: 9 | P56: 9.5 | Q56: =IF(K56="", "", IF(ISERROR(VLOOKUP(K56, data!$R$7:$S$500, 2, FALSE)), "", VLOOKUP(K56, data!$R$7:$S$500, 2, FALSE))) -> 7.8
B57: 2011-12-31 | C57: 2012-03-31 | D57: 7.25 | E57: 7.90435 | F57: 8.119131818 | G57: 8.355 | H57: 8.8 | I57: =IF(C57="", "", IF(ISERROR(VLOOKUP(C57, data!$R$7:$S$500, 2, FALSE)), "", VLOOKUP(C57, data!$R$7:$S$500, 2, FALSE))) -> 8.267 | K57: 2013-03-31 | L57: 7.25 | M57: 7.90435 | N57: 8.119131818 | O57: 8.355 | P57: 8.8 | Q57: =IF(K57="", "", IF(ISERROR(VLOOKUP(K57, data!$R$7:$S$500, 2, FALSE)), "", VLOOKUP(K57, data!$R$7:$S$500, 2, FALSE))) -> 7.733
B58: 2012-03-31 | C58: 2012-06-30 | D58: 7.1 | E58: 7.600925 | F58: 7.808757895 | G58: 7.995 | H58: 8.2 | I58: =IF(C58="", "", IF(ISERROR(VLOOKUP(C58, data!$R$7:$S$500, 2, FALSE)), "", VLOOKUP(C58, data!$R$7:$S$500, 2, FALSE))) -> 8.2 | K58: 2013-06-30 | L58: 7.1 | M58: 7.600925 | N58: 7.808757895 | O58: 7.995 | P58: 8.2 | Q58: =IF(K58="", "", IF(ISERROR(VLOOKUP(K58, data!$R$7:$S$500, 2, FALSE)), "", VLOOKUP(K58, data!$R$7:$S$500, 2, FALSE))) -> 7.533
B59: 2012-06-30 | C59: 2012-09-30 | D59: 6.7 | E59: 7.83 | F59: 7.930395745 | G59: 8.0563 | H59: 8.6 | I59: =IF(C59="", "", IF(ISERROR(VLOOKUP(C59, data!$R$7:$S$500, 2, FALSE)), "", VLOOKUP(C59, data!$R$7:$S$500, 2, FALSE))) -> 8.033 | K59: 2013-09-30 | L59: 6.7 | M59: 7.83 | N59: 7.930395745 | O59: 8.0563 | P59: 8.6 | Q59: =IF(K59="", "", IF(ISERROR(VLOOKUP(K59, data!$R$7:$S$500, 2, FALSE)), "", VLOOKUP(K59, data!$R$7:$S$500, 2, FALSE))) -> 7.233
B60: 2012-09-30 | C60: 2012-12-31 | D60: 7 | E60: 7.575025 | F60: 7.733281579 | G60: 7.8375 | H60: 8.4 | I60: =IF(C60="", "", IF(ISERROR(VLOOKUP(C60, data!$R$7:$S$500, 2, FALSE)), "", VLOOKUP(C60, data!$R$7:$S$500, 2, FALSE))) -> 7.8 | K60: 2013-12-31 | L60: 7 | M60: 7.575025 | N60: 7.733281579 | O60: 7.8375 | P60: 8.4 | Q60: =IF(K60="", "", IF(ISERROR(VLOOKUP(K60, data!$R$7:$S$500, 2, FALSE)), "", VLOOKUP(K60, data!$R$7:$S$500, 2, FALSE))) -> 6.933
B61: 2012-12-31 | C61: 2013-03-31 | D61: 6.7527 | E61: 7.375 | F61: 7.5047 | G61: 7.6306 | H61: 8.2 | I61: =IF(C61="", "", IF(ISERROR(VLOOKUP(C61, data!$R$7:$S$500, 2, FALSE)), "", VLOOKUP(C61, data!$R$7:$S$500, 2, FALSE))) -> 7.733 | K61: 2014-03-31 | L61: 6.7527 | M61: 7.375 | N61: 7.5047 | O61: 7.6306 | P61: 8.2 | Q61: =IF(K61="", "", IF(ISERROR(VLOOKUP(K61, data!$R$7:$S$500, 2, FALSE)), "", VLOOKUP(K61, data!$R$7:$S$500, 2, FALSE))) -> 6.667
B62: 2013-03-31 | C62: 2013-06-30 | D62: 6.8 | E62: 7.1 | F62: 7.28497 | G62: 7.401025 | H62: 7.854 | I62: =IF(C62="", "", IF(ISERROR(VLOOKUP(C62, data!$R$7:$S$500, 2, FALSE)), "", VLOOKUP(C62, data!$R$7:$S$500, 2, FALSE))) -> 7.533 | K62: 2014-06-30 | L62: 6.8 | M62: 7.1 | N62: 7.28497 | O62: 7.401025 | P62: 7.854 | Q62: =IF(K62="", "", IF(ISERROR(VLOOKUP(K62, data!$R$7:$S$500, 2, FALSE)), "", VLOOKUP(K62, data!$R$7:$S$500, 2, FALSE))) -> 6.233
B63: 2013-06-30 | C63: 2013-09-30 | D63: 6.7 | E63: 7 | F63: 7.129297436 | G63: 7.20275 | H63: 7.6183 | I63: =IF(C63="", "", IF(ISERROR(VLOOKUP(C63, data!$R$7:$S$500, 2, FALSE)), "", VLOOKUP(C63, data!$R$7:$S$500, 2, FALSE))) -> 7.233 | K63: 2014-09-30 | L63: 6.7 | M63: 7 | N63: 7.129297436 | O63: 7.20275 | P63: 7.6183 | Q63: =IF(K63="", "", IF(ISERROR(VLOOKUP(K63, data!$R$7:$S$500, 2, FALSE)), "", VLOOKUP(K63, data!$R$7:$S$500, 2, FALSE))) -> 6.1
B64: 2013-09-30 | C64: 2013-12-31 | D64: 6.5 | E64: 6.7 | F64: 6.867663415 | G64: 7 | H64: 7.3151 | I64: =IF(C64="", "", IF(ISERROR(VLOOKUP(C64, data!$R$7:$S$500, 2, FALSE)), "", VLOOKUP(C64, data!$R$7:$S$500, 2, FALSE))) -> 6.933 | K64: 2014-12-31 | L64: 6.5 | M64: 6.7 | N64: 6.867663415 | O64: 7 | P64: 7.3151 | Q64: =IF(K64="", "", IF(ISERROR(VLOOKUP(K64, data!$R$7:$S$500, 2, FALSE)), "", VLOOKUP(K64, data!$R$7:$S$500, 2, FALSE))) -> 5.7
B65: 2013-12-31 | C65: 2014-03-31 | D65: 5.996 | E65: 6.2 | F65: 6.353559091 | G65: 6.5 | H65: 6.962 | I65: =IF(C65="", "", IF(ISERROR(VLOOKUP(C65, data!$R$7:$S$500, 2, FALSE)), "", VLOOKUP(C65, data!$R$7:$S$500, 2, FALSE))) -> 6.667 | K65: 2015-03-31 | L65: 5.996 | M65: 6.2 | N65: 6.353559091 | O65: 6.5 | P65: 6.962 | Q65: =IF(K65="", "", IF(ISERROR(VLOOKUP(K65, data!$R$7:$S$500, 2, FALSE)), "", VLOOKUP(K65, data!$R$7:$S$500, 2, FALSE))) -> 5.567
B66: 2014-03-31 | C66: 2014-06-30 | D66: 5.7 | E66: 5.9 | F66: 6.0874725 | G66: 6.2226 | H66: 6.8 | I66: =IF(C66="", "", IF(ISERROR(VLOOKUP(C66, data!$R$7:$S$500, 2, FALSE)), "", VLOOKUP(C66, data!$R$7:$S$500, 2, FALSE))) -> 6.233 | K66: 2015-06-30 | L66: 5.7 | M66: 5.9 | N66: 6.0874725 | O66: 6.2226 | P66: 6.8 | Q66: =IF(K66="", "", IF(ISERROR(VLOOKUP(K66, data!$R$7:$S$500, 2, FALSE)), "", VLOOKUP(K66, data!$R$7:$S$500, 2, FALSE))) -> 5.4
B67: 2014-06-30 | C67: 2014-09-30 | D67: 5.3 | E67: 5.6 | F67: 5.7728025 | G67: 5.9 | H67: 6.3 | I67: =IF(C67="", "", IF(ISERROR(VLOOKUP(C67, data!$R$7:$S$500, 2, FALSE)), "", VLOOKUP(C67, data!$R$7:$S$500, 2, FALSE))) -> 6.1 | K67: 2015-09-30 | L67: 5.3 | M67: 5.6 | N67: 5.7728025 | O67: 5.9 | P67: 6.3 | Q67: =IF(K67="", "", IF(ISERROR(VLOOKUP(K67, data!$R$7:$S$500, 2, FALSE)), "", VLOOKUP(K67, data!$R$7:$S$500, 2, FALSE))) -> 5.1
B68: 2014-09-30 | C68: 2014-12-31 | D68: 5.0358 | E68: 5.4308 | F68: 5.575009524 | G68: 5.711725 | H68: 6 | I68: =IF(C68="", "", IF(ISERROR(VLOOKUP(C68, data!$R$7:$S$500, 2, FALSE)), "", VLOOKUP(C68, data!$R$7:$S$500, 2, FALSE))) -> 5.7 | K68: 2015-12-31 | L68: 5.0358 | M68: 5.4308 | N68: 5.575009524 | O68: 5.711725 | P68: 6 | Q68: =IF(K68="", "", IF(ISERROR(VLOOKUP(K68, data!$R$7:$S$500, 2, FALSE)), "", VLOOKUP(K68, data!$R$7:$S$500, 2, FALSE))) -> 5
B69: 2014-12-31 | C69: 2015-03-31 | D69: 4.7 | E69: 5.14225 | F69: 5.276997436 | G69: 5.3993 | H69: 5.8 | I69: =IF(C69="", "", IF(ISERROR(VLOOKUP(C69, data!$R$7:$S$500, 2, FALSE)), "", VLOOKUP(C69, data!$R$7:$S$500, 2, FALSE))) -> 5.567 | K69: 2016-03-31 | L69: 4.7 | M69: 5.14225 | N69: 5.276997436 | O69: 5.3993 | P69: 5.8 | Q69: =IF(K69="", "", IF(ISERROR(VLOOKUP(K69, data!$R$7:$S$500, 2, FALSE)), "", VLOOKUP(K69, data!$R$7:$S$500, 2, FALSE))) -> 4.933
B70: 2015-03-31 | C70: 2015-06-30 | D70: 4.4346 | E70: 4.9 | F70: 5.095790476 | G70: 5.2 | H70: 6.4 | I70: =IF(C70="", "", IF(ISERROR(VLOOKUP(C70, data!$R$7:$S$500, 2, FALSE)), "", VLOOKUP(C70, data!$R$7:$S$500, 2, FALSE))) -> 5.4 | K70: 2016-06-30 | L70: 4.4346 | M70: 4.9 | N70: 5.095790476 | O70: 5.2 | P70: 6.4 | Q70: =IF(K70="", "", IF(ISERROR(VLOOKUP(K70, data!$R$7:$S$500, 2, FALSE)), "", VLOOKUP(K70, data!$R$7:$S$500, 2, FALSE))) -> 4.867
B71: 2015-06-30 | C71: 2015-09-30 | D71: 4.2824 | E71: 4.8632 | F71: 4.978365854 | G71: 5.1 | H71: 5.7 | I71: =IF(C71="", "", IF(ISERROR(VLOOKUP(C71, data!$R$7:$S$500, 2, FALSE)), "", VLOOKUP(C71, data!$R$7:$S$500, 2, FALSE))) -> 5.1 | K71: 2016-09-30 | L71: 4.2824 | M71: 4.8632 | N71: 4.978365854 | O71: 5.1 | P71: 5.7 | Q71: =IF(K71="", "", IF(ISERROR(VLOOKUP(K71, data!$R$7:$S$500, 2, FALSE)), "", VLOOKUP(K71, data!$R$7:$S$500, 2, FALSE))) -> 4.933
B72: 2015-09-30 | C72: 2015-12-31 | D72: 4.426 | E72: 4.7 | F72: 4.843374419 | G72: 4.9215 | H72: 5.52 | I72: =IF(C72="", "", IF(ISERROR(VLOOKUP(C72, data!$R$7:$S$500, 2, FALSE)), "", VLOOKUP(C72, data!$R$7:$S$500, 2, FALSE))) -> 5 | K72: 2016-12-31 | L72: 4.426 | M72: 4.7 | N72: 4.843374419 | O72: 4.9215 | P72: 5.52 | Q72: =IF(K72="", "", IF(ISERROR(VLOOKUP(K72, data!$R$7:$S$500, 2, FALSE)), "", VLOOKUP(K72, data!$R$7:$S$500, 2, FALSE))) -> 4.733
B73: 2015-12-31 | C73: 2016-03-31 | D73: 4.2606 | E73: 4.50515 | F73: 4.667934211 | G73: 4.746375 | H73: 5.4 | I73: =IF(C73="", "", IF(ISERROR(VLOOKUP(C73, data!$R$7:$S$500, 2, FALSE)), "", VLOOKUP(C73, data!$R$7:$S$500, 2, FALSE))) -> 4.933 | K73: 2017-03-31 | L73: 4.2606 | M73: 4.50515 | N73: 4.667934211 | O73: 4.746375 | P73: 5.4 | Q73: =IF(K73="", "", IF(ISERROR(VLOOKUP(K73, data!$R$7:$S$500, 2, FALSE)), "", VLOOKUP(K73, data!$R$7:$S$500, 2, FALSE))) -> 4.667
B74: 2016-03-31 | C74: 2016-06-30 | D74: 4.2411 | E74: 4.591925 | F74: 4.69331 | G74: 4.755225 | H74: 5.37 | I74: =IF(C74="", "", IF(ISERROR(VLOOKUP(C74, data!$R$7:$S$500, 2, FALSE)), "", VLOOKUP(C74, data!$R$7:$S$500, 2, FALSE))) -> 4.867 | K74: 2017-06-30 | L74: 4.2411 | M74: 4.591925 | N74: 4.69331 | O74: 4.755225 | P74: 5.37 | Q74: =IF(K74="", "", IF(ISERROR(VLOOKUP(K74, data!$R$7:$S$500, 2, FALSE)), "", VLOOKUP(K74, data!$R$7:$S$500, 2, FALSE))) -> 4.333
B75: 2016-06-30 | C75: 2016-09-30 | D75: 4.3 | E75: 4.5842 | F75: 4.661841026 | G75: 4.73565 | H75: 5.4 | I75: =IF(C75="", "", IF(ISERROR(VLOOKUP(C75, data!$R$7:$S$500, 2, FALSE)), "", VLOOKUP(C75, data!$R$7:$S$500, 2, FALSE))) -> 4.933 | K75: 2017-09-30 | L75: 4.3 | M75: 4.5842 | N75: 4.661841026 | O75: 4.73565 | P75: 5.4 | Q75: =IF(K75="", "", IF(ISERROR(VLOOKUP(K75, data!$R$7:$S$500, 2, FALSE)), "", VLOOKUP(K75, data!$R$7:$S$500, 2, FALSE))) -> 4.3
B76: =IF(C75="", "", C75) -> 2016-09-30 | C76: 2016-12-31 | D76: 4.2 | E76: 4.59165 | F76: 4.701823077 | G76: 4.78395 | H76: 5.4 | I76: =IF(C76="", "", IF(ISERROR(VLOOKUP(C76, data!$R$7:$S$500, 2, FALSE)), "", VLOOKUP(C76, data!$R$7:$S$500, 2, FALSE))) -> 4.733 | K76: 2017-12-31 | L76: 4.2 | M76: 4.59165 | N76: 4.701823077 | O76: 4.78395 | P76: 5.4 | Q76: =IF(K76="", "", IF(ISERROR(VLOOKUP(K76, data!$R$7:$S$500, 2, FALSE)), "", VLOOKUP(K76, data!$R$7:$S$500, 2, FALSE))) -> 4.1
B77: 2016-12-31 | C77: 2017-03-31 | D77: 3.8 | E77: 4.41225 | F77: 4.557892308 | G77: 4.6009 | H77: 5.3 | I77: =IF(C77="", "", IF(ISERROR(VLOOKUP(C77, data!$R$7:$S$500, 2, FALSE)), "", VLOOKUP(C77, data!$R$7:$S$500, 2, FALSE))) -> 4.667 | K77: 2018-03-31 | L77: 3.8 | M77: 4.41225 | N77: 4.557892308 | O77: 4.6009 | P77: 5.3 | Q77: =IF(K77="", "", IF(ISERROR(VLOOKUP(K77, data!$R$7:$S$500, 2, FALSE)), "", VLOOKUP(K77, data!$R$7:$S$500, 2, FALSE))) -> 4.1
B78: 2017-03-31 | C78: 2017-06-30 | D78: 3.7 | E78: 4.2 | F78: 4.345531429 | G78: 4.475 | H78: 5.1 | I78: =IF(C78="", "", IF(ISERROR(VLOOKUP(C78, data!$R$7:$S$500, 2, FALSE)), "", VLOOKUP(C78, data!$R$7:$S$500, 2, FALSE))) -> 4.333 | K78: 2018-06-30 | L78: 3.7 | M78: 4.2 | N78: 4.345531429 | O78: 4.475 | P78: 5.1 | Q78: =IF(K78="", "", IF(ISERROR(VLOOKUP(K78, data!$R$7:$S$500, 2, FALSE)), "", VLOOKUP(K78, data!$R$7:$S$500, 2, FALSE))) -> 3.851
B79: 2017-06-30 | C79: 2017-09-30 | D79: 3.7642 | E79: 4 | F79: 4.175497297 | G79: 4.3 | H79: 4.8 | I79: =IF(C79="", "", IF(ISERROR(VLOOKUP(C79, data!$R$7:$S$500, 2, FALSE)), "", VLOOKUP(C79, data!$R$7:$S$500, 2, FALSE))) -> 4.3 | K79: 2018-09-30 | L79: 3.7642 | M79: 4 | N79: 4.175497297 | O79: 4.3 | P79: 4.8 | Q79: =IF(K79="", "", IF(ISERROR(VLOOKUP(K79, data!$R$7:$S$500, 2, FALSE)), "", VLOOKUP(K79, data!$R$7:$S$500, 2, FALSE))) -> 3.758
B80: 2017-09-30 | C80: 2017-12-31 | D80: 3.79 | E80: 3.90875 | F80: 4.083482051 | G80: 4.2 | H80: 4.7 | I80: =IF(C80="", "", IF(ISERROR(VLOOKUP(C80, data!$R$7:$S$500, 2, FALSE)), "", VLOOKUP(C80, data!$R$7:$S$500, 2, FALSE))) -> 4.1 | K80: 2018-12-31 | L80: 3.79 | M80: 3.90875 | N80: 4.083482051 | O80: 4.2 | P80: 4.7 | Q80: =IF(K80="", "", IF(ISERROR(VLOOKUP(K80, data!$R$7:$S$500, 2, FALSE)), "", VLOOKUP(K80, data!$R$7:$S$500, 2, FALSE))) -> 
B81: 2017-12-31 | C81: 2018-03-31 | D81: 3.5228 | E81: 3.770225 | F81: 3.848614706 | G81: 3.9845 | H81: 4.3 | I81: =IF(C81="", "", IF(ISERROR(VLOOKUP(C81, data!$R$7:$S$500, 2, FALSE)), "", VLOOKUP(C81, data!$R$7:$S$500, 2, FALSE))) -> 4.1 | K81: 2019-03-31 | L81: 3.5228 | M81: 3.770225 | N81: 3.848614706 | O81: 3.9845 | P81: 4.3 | Q81: =IF(K81="", "", IF(ISERROR(VLOOKUP(K81, data!$R$7:$S$500, 2, FALSE)), "", VLOOKUP(K81, data!$R$7:$S$500, 2, FALSE))) -> 
B82: 2018-03-31 | C82: 2018-06-30 | D82: 3.3852 | E82: 3.692175 | F82: 3.771220588 | G82: 3.887675 | H82: 4.3 | I82: =IF(C82="", "", IF(ISERROR(VLOOKUP(C82, data!$R$7:$S$500, 2, FALSE)), "", VLOOKUP(C82, data!$R$7:$S$500, 2, FALSE))) -> 3.851 | K82: 2019-06-30 | L82: 3.3852 | M82: 3.692175 | N82: 3.771220588 | O82: 3.887675 | P82: 4.3 | Q82: =IF(K82="", "", IF(ISERROR(VLOOKUP(K82, data!$R$7:$S$500, 2, FALSE)), "", VLOOKUP(K82, data!$R$7:$S$500, 2, FALSE))) -> 
B83: 2018-06-30 | C83: 2018-09-30 | D83: 3.2662 | E83: 3.5 | F83: 3.668469444 | G83: 3.8 | H83: 4.3 | I83: =IF(C83="", "", IF(ISERROR(VLOOKUP(C83, data!$R$7:$S$500, 2, FALSE)), "", VLOOKUP(C83, data!$R$7:$S$500, 2, FALSE))) -> 3.758 | K83: 2019-09-30 | L83: 3.2662 | M83: 3.5 | N83: 3.668469444 | O83: 3.8 | P83: 4.3 | Q83: =IF(K83="", "", IF(ISERROR(VLOOKUP(K83, data!$R$7:$S$500, 2, FALSE)), "", VLOOKUP(K83, data!$R$7:$S$500, 2, FALSE))) -> 
B84: 2018-09-30 | I84: =IF(C84="", "", IF(ISERROR(VLOOKUP(C84, data!$R$7:$S$500, 2, FALSE)), "", VLOOKUP(C84, data!$R$7:$S$500, 2, FALSE))) ->  | Q84: =IF(K84="", "", IF(ISERROR(VLOOKUP(K84, data!$R$7:$S$500, 2, FALSE)), "", VLOOKUP(K84, data!$R$7:$S$500, 2, FALSE))) -> 
I85: =IF(C85="", "", IF(ISERROR(VLOOKUP(C85, data!$R$7:$S$500, 2, FALSE)), "", VLOOKUP(C85, data!$R$7:$S$500, 2, FALSE))) ->  | Q85: =IF(K85="", "", IF(ISERROR(VLOOKUP(K85, data!$R$7:$S$500, 2, FALSE)), "", VLOOKUP(K85, data!$R$7:$S$500, 2, FALSE))) -> 
I86: =IF(C86="", "", IF(ISERROR(VLOOKUP(C86, data!$R$7:$S$500, 2, FALSE)), "", VLOOKUP(C86, data!$R$7:$S$500, 2, FALSE))) ->  | Q86: =IF(K86="", "", IF(ISERROR(VLOOKUP(K86, data!$R$7:$S$500, 2, FALSE)), "", VLOOKUP(K86, data!$R$7:$S$500, 2, FALSE))) -> 
I87: =IF(C87="", "", IF(ISERROR(VLOOKUP(C87, data!$R$7:$S$500, 2, FALSE)), "", VLOOKUP(C87, data!$R$7:$S$500, 2, FALSE))) ->  | Q87: =IF(K87="", "", IF(ISERROR(VLOOKUP(K87, data!$R$7:$S$500, 2, FALSE)), "", VLOOKUP(K87, data!$R$7:$S$500, 2, FALSE))) -> 
I88: =IF(C88="", "", IF(ISERROR(VLOOKUP(C88, data!$R$7:$S$500, 2, FALSE)), "", VLOOKUP(C88, data!$R$7:$S$500, 2, FALSE))) ->  | Q88: =IF(K88="", "", IF(ISERROR(VLOOKUP(K88, data!$R$7:$S$500, 2, FALSE)), "", VLOOKUP(K88, data!$R$7:$S$500, 2, FALSE))) -> 
I89: =IF(C89="", "", IF(ISERROR(VLOOKUP(C89, data!$R$7:$S$500, 2, FALSE)), "", VLOOKUP(C89, data!$R$7:$S$500, 2, FALSE))) ->  | Q89: =IF(K89="", "", IF(ISERROR(VLOOKUP(K89, data!$R$7:$S$500, 2, FALSE)), "", VLOOKUP(K89, data!$R$7:$S$500, 2, FALSE))) -> 
I90: =IF(C90="", "", IF(ISERROR(VLOOKUP(C90, data!$R$7:$S$500, 2, FALSE)), "", VLOOKUP(C90, data!$R$7:$S$500, 2, FALSE))) ->  | Q90: =IF(K90="", "", IF(ISERROR(VLOOKUP(K90, data!$R$7:$S$500, 2, FALSE)), "", VLOOKUP(K90, data!$R$7:$S$500, 2, FALSE))) -> 
I91: =IF(C91="", "", IF(ISERROR(VLOOKUP(C91, data!$R$7:$S$500, 2, FALSE)), "", VLOOKUP(C91, data!$R$7:$S$500, 2, FALSE))) ->  | Q91: =IF(K91="", "", IF(ISERROR(VLOOKUP(K91, data!$R$7:$S$500, 2, FALSE)), "", VLOOKUP(K91, data!$R$7:$S$500, 2, FALSE))) -> 
I92: =IF(C92="", "", IF(ISERROR(VLOOKUP(C92, data!$R$7:$S$500, 2, FALSE)), "", VLOOKUP(C92, data!$R$7:$S$500, 2, FALSE))) ->  | Q92: =IF(K92="", "", IF(ISERROR(VLOOKUP(K92, data!$R$7:$S$500, 2, FALSE)), "", VLOOKUP(K92, data!$R$7:$S$500, 2, FALSE))) -> 
I93: =IF(C93="", "", IF(ISERROR(VLOOKUP(C93, data!$R$7:$S$500, 2, FALSE)), "", VLOOKUP(C93, data!$R$7:$S$500, 2, FALSE))) ->  | Q93: =IF(K93="", "", IF(ISERROR(VLOOKUP(K93, data!$R$7:$S$500, 2, FALSE)), "", VLOOKUP(K93, data!$R$7:$S$500, 2, FALSE))) -> 
I94: =IF(C94="", "", IF(ISERROR(VLOOKUP(C94, data!$R$7:$S$500, 2, FALSE)), "", VLOOKUP(C94, data!$R$7:$S$500, 2, FALSE))) -> 
I95: =IF(C95="", "", IF(ISERROR(VLOOKUP(C95, data!$R$7:$S$500, 2, FALSE)), "", VLOOKUP(C95, data!$R$7:$S$500, 2, FALSE))) -> 
I96: =IF(C96="", "", IF(ISERROR(VLOOKUP(C96, data!$R$7:$S$500, 2, FALSE)), "", VLOOKUP(C96, data!$R$7:$S$500, 2, FALSE))) -> 
I97: =IF(C97="", "", IF(ISERROR(VLOOKUP(C97, data!$R$7:$S$500, 2, FALSE)), "", VLOOKUP(C97, data!$R$7:$S$500, 2, FALSE))) -> 
I98: =IF(C98="", "", IF(ISERROR(VLOOKUP(C98, data!$R$7:$S$500, 2, FALSE)), "", VLOOKUP(C98, data!$R$7:$S$500, 2, FALSE))) -> 
I99: =IF(C99="", "", IF(ISERROR(VLOOKUP(C99, data!$R$7:$S$500, 2, FALSE)), "", VLOOKUP(C99, data!$R$7:$S$500, 2, FALSE))) -> 
I100: =IF(C100="", "", IF(ISERROR(VLOOKUP(C100, data!$R$7:$S$500, 2, FALSE)), "", VLOOKUP(C100, data!$R$7:$S$500, 2, FALSE))) -> 
I101: =IF(C101="", "", IF(ISERROR(VLOOKUP(C101, data!$R$7:$S$500, 2, FALSE)), "", VLOOKUP(C101, data!$R$7:$S$500, 2, FALSE))) -> 
I102: =IF(C102="", "", IF(ISERROR(VLOOKUP(C102, data!$R$7:$S$500, 2, FALSE)), "", VLOOKUP(C102, data!$R$7:$S$500, 2, FALSE))) -> 
I103: =IF(C103="", "", IF(ISERROR(VLOOKUP(C103, data!$R$7:$S$500, 2, FALSE)), "", VLOOKUP(C103, data!$R$7:$S$500, 2, FALSE))) -> 
I104: =IF(C104="", "", IF(ISERROR(VLOOKUP(C104, data!$R$7:$S$500, 2, FALSE)), "", VLOOKUP(C104, data!$R$7:$S$500, 2, FALSE))) -> 
I105: =IF(C105="", "", IF(ISERROR(VLOOKUP(C105, data!$R$7:$S$500, 2, FALSE)), "", VLOOKUP(C105, data!$R$7:$S$500, 2, FALSE))) -> 

Sheet test
B2: SAMPLE TESTING
X3: =B7 -> issue-date | AD3: =_xll.AC.stats.sample.size(Y5, -1) -> 0 | AE3: 75
B4: Test (difference between Feds and estimated mean forecasts) | N4: Sample view as of issue date | X4: =B8 -> forecaster-id | AD4: 1 | AE4: 53
X5: =B10 -> maturity | Y5: =_xll.AC.stats.sample.permute(calc!E10, _xll.AC.data.list_x(X3:X5, 0, 1)) -> jmathkr.lib.stats.sample.model.forecast.ForecastSample@Sun, 4 Nov 2018 11:51:51:464..8617707287225909542 | AD5: 2 | AE5: 6
B6: Key ids | D6: Column names | G6: Parameter key | J6: Parameter value | N6: =J6 -> Parameter value | Q6: =J6 -> Parameter value | X6: =Q6 -> Parameter value
B7: =config!G41 -> issue-date | D7: =config!C19 -> Forecast issue date | G7: =config!G40 -> field-key | Q7: =config!G43 -> forecast-value | X7: =Q7 -> forecast-value
B8: =config!G34 -> forecaster-id | D8: =config!C20 -> Forecaster id | G8: =config!G20 -> values-only | J8: 0 | N8: 0 | Q8: 0 | X8: 0
B9: =B7 -> issue-date | D9: =D7 -> Forecast issue date | G9: =config!G21 -> key-id | J9: =config!G41 -> issue-date | N9: =J9 -> issue-date | Q9: =config!G41 -> issue-date | X9: issue-date
B10: =config!G36 -> maturity | D10: =config!C17 -> Forecast maturity | G10: =config!G22 -> key-value | J10: =calc!E33 -> 2018-09-30 | N10: =J10 -> 2018-09-30 | Q10: =calc!E33 -> 2018-09-30 | X10: 2018-09-30
B11: =config!G38 -> stats-id | G11: =config!G23 -> key-ids-row | J11: =_xll.AC.data.list_x(B7, 0, 1) -> java.util.ArrayList@Sun, 4 Nov 2018 11:16:17:853..6878887748575010429 | N11: =_xll.AC.data.list_x(B9:B10, 0, 1) -> java.util.ArrayList@Sun, 4 Nov 2018 10:06:10:871..4641861212243486907 | Q11: =_xll.AC.data.list_x(B7:B8, 0, 1) -> java.util.ArrayList@Sun, 4 Nov 2018 10:06:11:341..4787787208283434997 | X11: java.util.ArrayList@Sun, 4 Nov 2018 10:06:11:341..4787787208283434997
G12: =config!G24 -> key-ids-col | J12: =_xll.AC.data.list_x(B10, 0, 1) -> java.util.ArrayList@Sun, 4 Nov 2018 10:06:10:876..1974526267439168518 | N12: =_xll.AC.data.list_x(B11, 0, 1) -> java.util.ArrayList@Sun, 4 Nov 2018 11:16:17:853..8484275513342818042 | Q12: =_xll.AC.data.list_x(B10, 0, 1) -> java.util.ArrayList@Sun, 4 Nov 2018 10:06:10:876..1974526267439168518 | X12: java.util.ArrayList@Sun, 4 Nov 2018 10:06:10:876..1974526267439168518
G13: =config!G26 -> table-header-names | J13: =_xll.AC.data.list_x(D7, 0, 1) -> java.util.ArrayList@Sun, 4 Nov 2018 11:16:17:853..1408317048091918134 | N13: =_xll.AC.data.list_x(D9:D10, 0, 1) -> java.util.ArrayList@Sun, 4 Nov 2018 10:06:10:873..8272845387448187836 | Q13: =_xll.AC.data.list_x(D7:D8, 0, 1) -> java.util.ArrayList@Sun, 4 Nov 2018 11:16:17:853..6945682525923402728 | X13: java.util.ArrayList@Sun, 4 Nov 2018 11:16:17:853..6945682525923402728
G14: =config!G28 -> log-level-debug | J14: =Q14 -> 0 | N14: 0 | Q14: 0 | X14: 0
J15: =_xll.AC.data.map(G8:G14, J8:J14) -> java.util.LinkedHashMap@Sun, 4 Nov 2018 11:16:18:040..1760577246356352006 | M15: =_xll.AC.data.size(J15, 1) -> 7 | N15: =_xll.AC.data.map(G8:G14, N8:N14) -> java.util.LinkedHashMap@Sun, 4 Nov 2018 11:16:18:056..308839915315577908 | P15: =_xll.AC.data.size(N15, 1) -> 7 | Q15: =_xll.AC.data.map(G7:G14, Q7:Q14) -> java.util.LinkedHashMap@Sun, 4 Nov 2018 11:16:18:040..1488118861106218473 | S15: =_xll.AC.data.size(Q15, 1) -> 8 | X15: =_xll.AC.data.map(G7:G14, X7:X14) -> java.util.LinkedHashMap@Sun, 4 Nov 2018 11:16:18:040..1488118861106218473 | AA15: =_xll.AC.data.size(X15, 1) -> 8
K16: =MATCH(K19, $E$19:$J$19, 0) -> 5 | L16: =MAX(L20:L1011) -> 5.128205128e-05
M17: =_xll.AC.stats.sample.get(calc!E15, J15) -> java.util.ArrayList@Sun, 4 Nov 2018 11:35:39:523..5825706203791029875 | P17: =_xll.AC.data.size(M17, 1) -> 2 | Q17: =_xll.AC.data.size(M17, 2) -> 7 | X17: =_xll.AC.stats.sample.get(Y5, X15) -> java.util.ArrayList@Sun, 4 Nov 2018 11:35:39:523..6241810769709998838 | AA17: =_xll.AC.data.size(X17, 1) -> 37 | AB17: =_xll.AC.data.size(X17, 2) -> 8
B18: Mean Forecasts (from Feds website) | K18: Estimated data | M18: Sample with forecaster-id values repersented as lists | X18: Sample with permutated keys | AA18: =AVERAGE(AA20:AA172) -> 3.9 | AB18: =AVERAGE(AB20:AB172) -> 3.831727778 | AC18: 3.732338889 | AD18: 3.679419444 | AE18: 3.668469444 | AF18: 3.643772222
B19: =data!D5 -> YEAR | C19: =data!E5 -> QUARTER | D19: =data!B5 -> Date | E19: =data!H5 -> UNEMP1 | F19: =data!I5 -> UNEMP2 | G19: =data!J5 -> UNEMP3 | H19: =data!K5 -> UNEMP4 | I19: =data!L5 -> UNEMP5 | J19: =data!M5 -> UNEMP6 | K19: =calc!E25 -> UNEMP5 | L19: Difference | M19: # | N19: =_xll.AC.data._get(M17, "", 0) -> Forecast issue date | O19: UNEMP1 | P19: UNEMP2 | Q19: UNEMP3 | R19: UNEMP4 | S19: UNEMP5 | T19: UNEMP6 | X19: # | Y19: =_xll.AC.data._get(X17, "", 0) -> Forecast issue date | Z19: Forecaster id | AA19: UNEMP1 | AB19: UNEMP2 | AC19: UNEMP3 | AD19: UNEMP4 | AE19: UNEMP5 | AF19: UNEMP6
B20: 2000 | C20: 1 | D20: =IF(B20="", "", DATE(B20, 3*C20+1, 0)) -> 2000-03-31 | E20: 4.1 | F20: 4.025 | G20: 4.025 | H20: 4.075 | I20: 4.1167 | J20: 4.2 | K20: =IF(ISERROR(VLOOKUP(D20, stats!$C$9:$H$1002, 4, FALSE)), "", VLOOKUP(D20, stats!$C$9:$H$1002, 4, FALSE)) -> 4.116666667 | L20: =IF(K20="", "", ABS(K20-OFFSET(D20, 0, $K$16))) -> 3.333333333e-05 | M20: 1 | N20: 2018-09-30 | O20: 36 | P20: 36 | Q20: 36 | R20: 36 | S20: 36 | T20: 36 | X20: 1 | Y20: 2018-09-30 | Z20: 411 | AA20: 3.9 | AB20: 3.8 | AC20: 3.6 | AD20: 3.5 | AE20: 3.5 | AF20: 3.5
B21: 2000 | C21: 2 | D21: =IF(B21="", "", DATE(B21, 3*C21+1, 0)) -> 2000-06-30 | E21: 4.0941 | F21: 3.9441 | G21: 3.9559 | H21: 4.0029 | I21: 4.0618 | J21: 4.1125 | K21: =IF(ISERROR(VLOOKUP(D21, stats!$C$9:$H$1002, 4, FALSE)), "", VLOOKUP(D21, stats!$C$9:$H$1002, 4, FALSE)) -> 4.061764706 | L21: 3.529411765e-05 | M21: =IF(N21="", "", M20+1) ->  | X21: =IF(Y21="", "", X20+1) -> 2 | Y21: 2018-09-30 | Z21: 421 | AA21: 3.9 | AB21: 3.8 | AC21: 3.7 | AD21: 3.6 | AE21: 3.6 | AF21: 3.6
B22: 2000 | C22: 3 | D22: 2000-09-30 | E22: 4 | F22: 4.0065 | G22: 4.0626 | H22: 4.1284 | I22: 4.179 | J22: 4.2497 | K22: =IF(ISERROR(VLOOKUP(D22, stats!$C$9:$H$1002, 4, FALSE)), "", VLOOKUP(D22, stats!$C$9:$H$1002, 4, FALSE)) -> 4.179032258 | L22: 3.225806452e-05 | X22: 3 | Y22: 2018-09-30 | Z22: 422 | AA22: 3.9 | AB22: 3.8 | AC22: 3.6 | AD22: 3.5 | AE22: 3.5 | AF22: 3.4
B23: 2000 | C23: 4 | D23: 2000-12-31 | E23: 4.0006 | F23: 4.0185 | G23: 4.0991 | H23: 4.1744 | I23: 4.2168 | J23: 4.2732 | K23: =IF(ISERROR(VLOOKUP(D23, stats!$C$9:$H$1002, 4, FALSE)), "", VLOOKUP(D23, stats!$C$9:$H$1002, 4, FALSE)) -> 4.216764706 | L23: 3.529411765e-05 | X23: 4 | Y23: 2018-09-30 | Z23: 424 | AA23: 3.9 | AB23: 3.8 | AC23: 3.8 | AD23: 3.8 | AE23: 3.8 | AF23: 3.8
B24: 2001 | C24: 1 | D24: 2001-03-31 | E24: 4 | F24: 4.2471 | G24: 4.4329 | H24: 4.5071 | I24: 4.5357 | J24: 4.5456 | K24: =IF(ISERROR(VLOOKUP(D24, stats!$C$9:$H$1002, 4, FALSE)), "", VLOOKUP(D24, stats!$C$9:$H$1002, 4, FALSE)) -> 4.535714286 | L24: 1.428571428e-05 | X24: 5 | Y24: 2018-09-30 | Z24: 426 | AA24: 3.9 | AB24: 3.8 | AC24: 3.7 | AD24: 3.7 | AE24: 3.8 | AF24: 3.7
B25: 2001 | C25: 2 | D25: 2001-06-30 | E25: 4.2 | F25: 4.4939 | G25: 4.6879 | H25: 4.7727 | I25: 4.8182 | J25: 4.8152 | K25: =IF(ISERROR(VLOOKUP(D25, stats!$C$9:$H$1002, 4, FALSE)), "", VLOOKUP(D25, stats!$C$9:$H$1002, 4, FALSE)) -> 4.818181818 | L25: 1.818181818e-05 | X25: 6 | Y25: 2018-09-30 | Z25: 428 | AA25: 3.9 | AB25: 3.8249 | AC25: 3.6549 | AD25: 3.5188 | AE25: 3.4458 | AF25: 3.3863
B26: 2001 | C26: 3 | D26: 2001-09-30 | E26: 4.5 | F26: 4.6606 | G26: 4.8485 | H26: 4.9121 | I26: 4.9182 | J26: 4.903 | K26: =IF(ISERROR(VLOOKUP(D26, stats!$C$9:$H$1002, 4, FALSE)), "", VLOOKUP(D26, stats!$C$9:$H$1002, 4, FALSE)) -> 4.918181818 | L26: 1.818181818e-05 | X26: 7 | Y26: 2018-09-30 | Z26: 433 | AA26: 3.9 | AB26: 3.89 | AC26: 3.75 | AD26: 3.665 | AE26: 3.6275 | AF26: 3.6324
B27: 2001 | C27: 4 | D27: 2001-12-31 | E27: 4.8 | F27: 5.5448 | G27: 5.8931 | H27: 6.0138 | I27: 6.0071 | J27: 5.8786 | K27: =IF(ISERROR(VLOOKUP(D27, stats!$C$9:$H$1002, 4, FALSE)), "", VLOOKUP(D27, stats!$C$9:$H$1002, 4, FALSE)) -> 6.007142857 | L27: 4.285714286e-05 | X27: 8 | Y27: 2018-09-30 | Z27: 456 | AA27: 3.9 | AB27: 3.7751 | AC27: 3.5657 | AD27: 3.4079 | AE27: 3.2662 | AF27: 3.1924
B28: 2002 | C28: 1 | D28: 2002-03-31 | E28: 5.6 | F28: 5.8265 | G28: 5.9824 | H28: 5.9441 | I28: 5.8088 | J28: 5.6848 | K28: =IF(ISERROR(VLOOKUP(D28, stats!$C$9:$H$1002, 4, FALSE)), "", VLOOKUP(D28, stats!$C$9:$H$1002, 4, FALSE)) -> 5.808823529 | L28: 2.352941176e-05 | X28: 9 | Y28: 2018-09-30 | Z28: 472 | AA28: 3.9 | AB28: 3.87 | AC28: 3.77 | AD28: 3.76 | AE28: 3.73 | AF28: 3.7
B29: 2002 | C29: 2 | D29: 2002-06-30 | E29: 5.6 | F29: 5.8819 | G29: 5.8431 | H29: 5.7361 | I29: 5.6246 | J29: 5.496 | K29: =IF(ISERROR(VLOOKUP(D29, stats!$C$9:$H$1002, 4, FALSE)), "", VLOOKUP(D29, stats!$C$9:$H$1002, 4, FALSE)) -> 5.624571429 | L29: 2.857142857e-05 | X29: 10 | Y29: 2018-09-30 | Z29: 504 | AA29: 3.9 | AB29: 3.8 | AC29: 3.7 | AD29: 3.7 | AE29: 3.7 | AF29: 3.6
B30: 2002 | C30: 3 | D30: 2002-09-30 | E30: 5.9 | F30: 5.96 | G30: 5.9657 | H30: 5.86 | I30: 5.7286 | J30: 5.6206 | K30: =IF(ISERROR(VLOOKUP(D30, stats!$C$9:$H$1002, 4, FALSE)), "", VLOOKUP(D30, stats!$C$9:$H$1002, 4, FALSE)) -> 5.728571429 | L30: 2.857142857e-05 | X30: 11 | Y30: 2018-09-30 | Z30: 507 | AA30: 3.9 | AB30: 3.8917 | AC30: 3.75 | AD30: 3.7125 | AE30: 3.6417 | AF30: 3.6542
B31: 2002 | C31: 4 | D31: 2002-12-31 | E31: 5.7 | F31: 5.8206 | G31: 5.8912 | H31: 5.8029 | I31: 5.6676 | J31: 5.5294 | K31: =IF(ISERROR(VLOOKUP(D31, stats!$C$9:$H$1002, 4, FALSE)), "", VLOOKUP(D31, stats!$C$9:$H$1002, 4, FALSE)) -> 5.667647059 | L31: 4.705882353e-05 | M31: =_xll.AC.stats.sample.get(calc!E16, N15) -> java.util.ArrayList@Sun, 4 Nov 2018 11:35:39:538..4738666043989877655 | P31: =_xll.AC.data.size(M31, 1) -> 7 | Q31: =_xll.AC.data.size(M31, 2) -> 7 | X31: 12 | Y31: 2018-09-30 | Z31: 508 | AA31: 3.9 | AB31: 3.6928 | AC31: 3.5237 | AD31: 3.4109 | AE31: 3.3795 | AF31: 3.3992
B32: 2003 | C32: 1 | D32: 2003-03-31 | E32: 5.9 | F32: 5.9622 | G32: 6 | H32: 5.9081 | I32: 5.7568 | J32: 5.6459 | K32: =IF(ISERROR(VLOOKUP(D32, stats!$C$9:$H$1002, 4, FALSE)), "", VLOOKUP(D32, stats!$C$9:$H$1002, 4, FALSE)) -> 5.756756757 | L32: 4.324324324e-05 | M32: Sample with statistics calculated over the forecaster-id values | X32: 13 | Y32: 2018-09-30 | Z32: 510 | AA32: 3.9 | AB32: 4 | AC32: 3.9 | AD32: 4 | AE32: 4 | AF32: 4
B33: 2003 | C33: 2 | D33: 2003-06-30 | E33: 5.8 | F33: 6.0029 | G33: 5.9912 | H33: 5.9 | I33: 5.8029 | J33: 5.697 | K33: =IF(ISERROR(VLOOKUP(D33, stats!$C$9:$H$1002, 4, FALSE)), "", VLOOKUP(D33, stats!$C$9:$H$1002, 4, FALSE)) -> 5.802941176 | L33: 4.117647059e-05 | M33: # | N33: =_xll.AC.data._get(M31, "", 0) -> Forecast issue date | O33: Forecast maturity | P33: min | Q33: percentile [0.25] | R33: mean | S33: percentile [0.75] | T33: max | X33: 14 | Y33: 2018-09-30 | Z33: 518 | AA33: 3.9 | AB33: 4 | AC33: 3.9 | AD33: 3.7 | AE33: 3.8 | AF33: 3.9
B34: 2003 | C34: 3 | D34: 2003-09-30 | E34: 6.1989 | F34: 6.2187 | G34: 6.13 | H34: 6.0267 | I34: 5.9333 | J34: 5.8333 | K34: =IF(ISERROR(VLOOKUP(D34, stats!$C$9:$H$1002, 4, FALSE)), "", VLOOKUP(D34, stats!$C$9:$H$1002, 4, FALSE)) -> 5.933333333 | L34: 3.333333333e-05 | M34: 1 | N34: 2018-09-30 | O34: UNEMP1 | P34: 3.9 | Q34: 3.9 | R34: 3.9 | S34: 3.9 | T34: 3.9 | X34: 15 | Y34: 2018-09-30 | Z34: 524 | AA34: 3.9 | AB34: 3.586 | AC34: 3.4645 | AD34: 3.4649 | AE34: 3.4451 | AF34: 3.3746
B35: 2003 | C35: 4 | D35: 2003-12-31 | E35: 6.1029 | F35: 6.0321 | G35: 5.9532 | H35: 5.8491 | I35: 5.7253 | J35: 5.6053 | K35: =IF(ISERROR(VLOOKUP(D35, stats!$C$9:$H$1002, 4, FALSE)), "", VLOOKUP(D35, stats!$C$9:$H$1002, 4, FALSE)) -> 5.725294118 | L35: 5.882352941e-06 | M35: =IF(N35="", "", M34+1) -> 2 | N35: 2018-09-30 | O35: UNEMP2 | P35: 3.586 | Q35: 3.8 | R35: 3.831727778 | S35: 3.890425 | T35: 4 | X35: 16 | Y35: 2018-09-30 | Z35: 528 | AA35: 3.9 | AB35: 3.8127 | AC35: 3.6695 | AD35: 3.5704 | AE35: 3.6368 | AF35: 3.477
B36: 2004 | C36: 1 | D36: 2004-03-31 | E36: 5.8991 | F36: 5.7075 | G36: 5.6231 | H36: 5.5359 | I36: 5.4425 | J36: 5.3652 | K36: =IF(ISERROR(VLOOKUP(D36, stats!$C$9:$H$1002, 4, FALSE)), "", VLOOKUP(D36, stats!$C$9:$H$1002, 4, FALSE)) -> 5.4425 | L36: 8.881784197e-16 | M36: 3 | N36: 2018-09-30 | O36: UNEMP3 | P36: 3.4645 | Q36: 3.66585 | R36: 3.732338889 | S36: 3.8 | T36: 4 | X36: 17 | Y36: 2018-09-30 | Z36: 535 | AA36: 3.9 | AB36: 3.8 | AC36: 3.7 | AD36: 3.6 | AE36: 3.5 | AF36: 3.4
B37: 2004 | C37: 2 | D37: 2004-06-30 | E37: 5.6023 | F37: 5.6033 | G37: 5.5048 | H37: 5.4116 | I37: 5.3352 | J37: 5.2763 | K37: =IF(ISERROR(VLOOKUP(D37, stats!$C$9:$H$1002, 4, FALSE)), "", VLOOKUP(D37, stats!$C$9:$H$1002, 4, FALSE)) -> 5.335193548 | L37: 6.451612902e-06 | M37: 4 | N37: 2018-09-30 | O37: UNEMP4 | P37: 3.4079 | Q37: 3.5926 | R37: 3.679419444 | S37: 3.75625 | T37: 4.1 | X37: 18 | Y37: 2018-09-30 | Z37: 546 | AA37: 3.9 | AB37: 3.8 | AC37: 3.7 | AD37: 3.6 | AE37: 3.5 | AF37: 3.4
B38: 2004 | C38: 3 | D38: 2004-09-30 | E38: 5.6 | F38: 5.5072 | G38: 5.4163 | H38: 5.3418 | I38: 5.2684 | J38: 5.2123 | K38: =IF(ISERROR(VLOOKUP(D38, stats!$C$9:$H$1002, 4, FALSE)), "", VLOOKUP(D38, stats!$C$9:$H$1002, 4, FALSE)) -> 5.268366667 | L38: 3.333333333e-05 | M38: 5 | N38: 2018-09-30 | O38: UNEMP5 | P38: 3.2662 | Q38: 3.5 | R38: 3.668469444 | S38: 3.8 | T38: 4.3 | X38: 19 | Y38: 2018-09-30 | Z38: 549 | AA38: 3.9 | AB38: 3.8 | AC38: 3.7 | AD38: 3.6 | AE38: 3.6 | AF38: 3.5
B39: 2004 | C39: 4 | D39: 2004-12-31 | E39: 5.4039 | F39: 5.412 | G39: 5.3545 | H39: 5.2799 | I39: 5.235 | J39: 5.1801 | K39: =IF(ISERROR(VLOOKUP(D39, stats!$C$9:$H$1002, 4, FALSE)), "", VLOOKUP(D39, stats!$C$9:$H$1002, 4, FALSE)) -> 5.235029412 | L39: 2.941176471e-05 | M39: 6 | N39: 2018-09-30 | O39: UNEMP6 | P39: 3.1924 | Q39: 3.4 | R39: 3.643772222 | S39: 3.757175 | T39: 4.6 | X39: 20 | Y39: 2018-09-30 | Z39: 553 | AA39: 3.9 | AB39: 3.9 | AC39: 3.8 | AD39: 3.7 | AE39: 3.7 | AF39: 3.6
B40: 2005 | C40: 1 | D40: 2005-03-31 | E40: 5.4008 | F40: 5.2882 | G40: 5.2326 | H40: 5.1888 | I40: 5.1369 | J40: 5.0778 | K40: =IF(ISERROR(VLOOKUP(D40, stats!$C$9:$H$1002, 4, FALSE)), "", VLOOKUP(D40, stats!$C$9:$H$1002, 4, FALSE)) -> 5.136916667 | L40: 1.666666667e-05 | X40: 21 | Y40: 2018-09-30 | Z40: 555 | AA40: 3.9 | AB40: 3.9 | AC40: 3.8 | AD40: 3.7 | AE40: 3.7 | AF40: 3.6
B41: 2005 | C41: 2 | D41: 2005-06-30 | E41: 5.3 | F41: 5.2 | G41: 5.1642 | H41: 5.1209 | I41: 5.0981 | J41: 5.0744 | K41: =IF(ISERROR(VLOOKUP(D41, stats!$C$9:$H$1002, 4, FALSE)), "", VLOOKUP(D41, stats!$C$9:$H$1002, 4, FALSE)) -> 5.098090909 | L41: 9.090909091e-06 | X41: 22 | Y41: 2018-09-30 | Z41: 557 | AA41: 3.9 | AB41: 3.8847 | AC41: 3.7323 | AD41: 3.755 | AE41: 3.715 | AF41: 3.7183
B42: 2005 | C42: 3 | D42: 2005-09-30 | E42: 5.1 | F42: 5.0124 | G42: 4.9706 | H42: 4.9588 | I42: 4.9443 | J42: 4.9359 | K42: =IF(ISERROR(VLOOKUP(D42, stats!$C$9:$H$1002, 4, FALSE)), "", VLOOKUP(D42, stats!$C$9:$H$1002, 4, FALSE)) -> 4.944320755 | L42: 2.075471698e-05 | X42: 23 | Y42: 2018-09-30 | Z42: 559 | AA42: 3.9 | AB42: 3.6794 | AC42: 3.4907 | AD42: 3.4314 | AE42: 3.372 | AF42: 3.3126
B43: 2005 | C43: 4 | D43: 2005-12-31 | E43: 5.0003 | F43: 5.0196 | G43: 4.9781 | H43: 4.9466 | I43: 4.9311 | J43: 4.9438 | K43: =IF(ISERROR(VLOOKUP(D43, stats!$C$9:$H$1002, 4, FALSE)), "", VLOOKUP(D43, stats!$C$9:$H$1002, 4, FALSE)) -> 4.931098039 | L43: 1.960784314e-06 | X43: 24 | Y43: 2018-09-30 | Z43: 560 | AA43: 3.9 | AB43: 3.89 | AC43: 3.75 | AD43: 3.665 | AE43: 3.6275 | AF43: 3.6324
B44: 2006 | C44: 1 | D44: 2006-03-31 | E44: 4.9012 | F44: 4.8485 | G44: 4.8367 | H44: 4.842 | I44: 4.8415 | J44: 4.8814 | K44: =IF(ISERROR(VLOOKUP(D44, stats!$C$9:$H$1002, 4, FALSE)), "", VLOOKUP(D44, stats!$C$9:$H$1002, 4, FALSE)) -> 4.841509434 | L44: 9.433962264e-06 | X44: 25 | Y44: 2018-09-30 | Z44: 563 | AA44: 3.9 | AB44: 3.9 | AC44: 4 | AD44: 4.1 | AE44: 4.3 | AF44: 4.6
B45: 2006 | C45: 2 | D45: 2006-06-30 | E45: 4.7014 | F45: 4.6977 | G45: 4.7021 | H45: 4.7352 | I45: 4.791 | J45: 4.8076 | K45: =IF(ISERROR(VLOOKUP(D45, stats!$C$9:$H$1002, 4, FALSE)), "", VLOOKUP(D45, stats!$C$9:$H$1002, 4, FALSE)) -> 4.790975 | L45: 2.5e-05 | M45: =_xll.AC.stats.sample.get(calc!E10, Q15) -> java.util.ArrayList@Sun, 4 Nov 2018 11:35:39:523..6241810769709998838 | P45: =_xll.AC.data.size(M45, 1) -> 37 | Q45: =_xll.AC.data.size(M45, 2) -> 8 | X45: 26 | Y45: 2018-09-30 | Z45: 568 | AA45: 3.9 | AB45: 3.8826 | AC45: 3.9788 | AD45: 3.9451 | AE45: 3.9764 | AF45: 3.9605
B46: 2006 | C46: 3 | D46: 2006-09-30 | E46: 4.6011 | F46: 4.7249 | G46: 4.7626 | H46: 4.8128 | I46: 4.8553 | J46: 4.8778 | K46: =IF(ISERROR(VLOOKUP(D46, stats!$C$9:$H$1002, 4, FALSE)), "", VLOOKUP(D46, stats!$C$9:$H$1002, 4, FALSE)) -> 4.855262745 | L46: 3.725490196e-05 | M46: Original sample (at a specific issue date) | P46: =AVERAGE(P48:P200) -> 3.9 | Q46: =AVERAGE(Q48:Q200) -> 3.831727778 | R46: 3.732338889 | S46: 3.679419444 | T46: 3.668469444 | U46: 3.643772222 | X46: 27 | Y46: 2018-09-30 | Z46: 569 | AA46: 3.9 | AB46: 3.9 | AC46: 3.8 | AD46: 3.7 | AE46: 3.6 | AF46: 3.5
B47: 2006 | C47: 4 | D47: 2006-12-31 | E47: 4.6995 | F47: 4.5895 | G47: 4.6876 | H47: 4.7556 | I47: 4.8019 | J47: 4.8513 | K47: =IF(ISERROR(VLOOKUP(D47, stats!$C$9:$H$1002, 4, FALSE)), "", VLOOKUP(D47, stats!$C$9:$H$1002, 4, FALSE)) -> 4.801921569 | L47: 2.156862745e-05 | M47: # | N47: =_xll.AC.data._get(M45, "", 0) -> Forecast issue date | O47: Forecaster id | P47: UNEMP1 | Q47: UNEMP2 | R47: UNEMP3 | S47: UNEMP4 | T47: UNEMP5 | U47: UNEMP6 | X47: 28 | Y47: 2018-09-30 | Z47: 570 | AA47: 3.9 | AB47: 3.8221 | AC47: 3.7646 | AD47: 3.7211 | AE47: 3.7214 | AF47: 3.7429
B48: 2007 | C48: 1 | D48: 2007-03-31 | E48: 4.4985 | F48: 4.6004 | G48: 4.6781 | H48: 4.7055 | I48: 4.7388 | J48: 4.7798 | K48: =IF(ISERROR(VLOOKUP(D48, stats!$C$9:$H$1002, 4, FALSE)), "", VLOOKUP(D48, stats!$C$9:$H$1002, 4, FALSE)) -> 4.738818367 | L48: 1.836734694e-05 | M48: 1 | N48: 2018-09-30 | O48: 411 | P48: 3.9 | Q48: 3.8 | R48: 3.6 | S48: 3.5 | T48: 3.5 | U48: 3.5 | X48: 29 | Y48: 2018-09-30 | Z48: 572 | AA48: 3.9 | AB48: 3.8 | AC48: 3.6 | AD48: 3.8 | AE48: 3.9 | AF48: 4
B49: 2007 | C49: 2 | D49: 2007-06-30 | E49: 4.5 | F49: 4.556 | G49: 4.634 | H49: 4.688 | I49: 4.7179 | J49: 4.7209 | K49: =IF(ISERROR(VLOOKUP(D49, stats!$C$9:$H$1002, 4, FALSE)), "", VLOOKUP(D49, stats!$C$9:$H$1002, 4, FALSE)) -> 4.717929412 | L49: 2.941176471e-05 | M49: =IF(N49="", "", M48+1) -> 2 | N49: 2018-09-30 | O49: 421 | P49: 3.9 | Q49: 3.8 | R49: 3.7 | S49: 3.6 | T49: 3.6 | U49: 3.6 | X49: 30 | Y49: 2018-09-30 | Z49: 574 | AA49: 3.9 | AB49: 3.8085 | AC49: 3.7376 | AD49: 3.6978 | AE49: 3.6887 | AF49: 3.7103
B50: 2007 | C50: 3 | D50: 2007-09-30 | E50: 4.502 | F50: 4.6009 | G50: 4.6603 | H50: 4.6827 | I50: 4.6864 | J50: 4.6948 | K50: =IF(ISERROR(VLOOKUP(D50, stats!$C$9:$H$1002, 4, FALSE)), "", VLOOKUP(D50, stats!$C$9:$H$1002, 4, FALSE)) -> 4.686440816 | L50: 4.081632653e-05 | M50: 3 | N50: 2018-09-30 | O50: 422 | P50: 3.9 | Q50: 3.8 | R50: 3.6 | S50: 3.5 | T50: 3.5 | U50: 3.4 | X50: 31 | Y50: 2018-09-30 | Z50: 576 | AA50: 3.9 | AB50: 3.8689 | AC50: 3.7248 | AD50: 3.7184 | AE50: 3.6085 | AF50: 3.6373
B51: 2007 | C51: 4 | D51: 2007-12-31 | E51: 4.6062 | F51: 4.7415 | G51: 4.8455 | H51: 4.8924 | I51: 4.9524 | J51: 4.9503 | K51: =IF(ISERROR(VLOOKUP(D51, stats!$C$9:$H$1002, 4, FALSE)), "", VLOOKUP(D51, stats!$C$9:$H$1002, 4, FALSE)) -> 4.95241875 | L51: 1.875e-05 | M51: 4 | N51: 2018-09-30 | O51: 424 | P51: 3.9 | Q51: 3.8 | R51: 3.8 | S51: 3.8 | T51: 3.8 | U51: 3.8 | X51: 32 | Y51: 2018-09-30 | Z51: 577 | AA51: 3.9 | AB51: 3.8636 | AC51: 3.8782 | AD51: 3.8996 | AE51: 3.9753 | AF51: 4.0978
B52: 2008 | C52: 1 | D52: 2008-03-31 | E52: 4.8 | F52: 5.0026 | G52: 5.1576 | H52: 5.2576 | I52: 5.2895 | J52: 5.2316 | K52: =IF(ISERROR(VLOOKUP(D52, stats!$C$9:$H$1002, 4, FALSE)), "", VLOOKUP(D52, stats!$C$9:$H$1002, 4, FALSE)) -> 5.289461224 | L52: =IF(K52="", "", ABS(K52-OFFSET(D52, 0, $K$16))) -> 3.87755102e-05 | M52: 5 | N52: 2018-09-30 | O52: 426 | P52: 3.9 | Q52: 3.8 | R52: 3.7 | S52: 3.7 | T52: 3.8 | U52: 3.7 | X52: 33 | Y52: 2018-09-30 | Z52: 578 | AA52: 3.9 | AB52: 3.8 | AC52: 3.7 | AD52: 3.6 | AE52: 3.5 | AF52: 3.3
B53: 2008 | C53: 2 | D53: 2008-06-30 | E53: 4.9 | F53: 5.1516 | G53: 5.3402 | H53: 5.4526 | I53: 5.4907 | J53: 5.4776 | K53: =IF(ISERROR(VLOOKUP(D53, stats!$C$9:$H$1002, 4, FALSE)), "", VLOOKUP(D53, stats!$C$9:$H$1002, 4, FALSE)) -> 5.490651064 | L53: 4.893617021e-05 | M53: 6 | N53: 2018-09-30 | O53: 428 | P53: 3.9 | Q53: 3.8249 | R53: 3.6549 | S53: 3.5188 | T53: 3.4458 | U53: 3.3863 | X53: 34 | Y53: 2018-09-30 | Z53: 579 | AA53: 3.9 | AB53: 3.6992 | AC53: 3.5769 | AD53: 3.4387 | AE53: 3.32 | AF53: 3.225
B54: 2008 | C54: 3 | D54: 2008-09-30 | E54: 5.3004 | F54: 5.6536 | G54: 5.7999 | H54: 5.9235 | I54: 5.9645 | J54: 5.9561 | K54: =IF(ISERROR(VLOOKUP(D54, stats!$C$9:$H$1002, 4, FALSE)), "", VLOOKUP(D54, stats!$C$9:$H$1002, 4, FALSE)) -> 5.964459574 | L54: 4.042553191e-05 | M54: 7 | N54: 2018-09-30 | O54: 433 | P54: 3.9 | Q54: 3.89 | R54: 3.75 | S54: 3.665 | T54: 3.6275 | U54: 3.6324 | X54: 35 | Y54: 2018-09-30 | Z54: 583 | AA54: 3.9 | AB54: 3.9 | AC54: 4 | AD54: 3.9 | AE54: 4 | AF54: 4
B55: 2008 | C55: 4 | D55: 2008-12-31 | E55: 5.9994 | F55: 6.6085 | G55: 7.0731 | H55: 7.3931 | I55: 7.5495 | J55: 7.6113 | K55: =IF(ISERROR(VLOOKUP(D55, stats!$C$9:$H$1002, 4, FALSE)), "", VLOOKUP(D55, stats!$C$9:$H$1002, 4, FALSE)) -> 7.549462745 | L55: 3.725490196e-05 | M55: 8 | N55: 2018-09-30 | O55: 456 | P55: 3.9 | Q55: 3.7751 | R55: 3.5657 | S55: 3.4079 | T55: 3.2662 | U55: 3.1924 | X55: 36 | Y55: 2018-09-30 | Z55: 584 | AA55: 3.9 | AB55: 3.9 | AC55: 3.882 | AD55: 3.8766 | AE55: 3.8875 | AF55: 3.9226
B56: 2009 | C56: 1 | D56: 2009-03-31 | E56: 6.8969 | F56: 7.7649 | G56: 8.327 | H56: 8.6922 | I56: 8.8751 | J56: 8.8929 | K56: =IF(ISERROR(VLOOKUP(D56, stats!$C$9:$H$1002, 4, FALSE)), "", VLOOKUP(D56, stats!$C$9:$H$1002, 4, FALSE)) -> 8.875137209 | L56: 3.720930233e-05 | M56: 9 | N56: 2018-09-30 | O56: 472 | P56: 3.9 | Q56: 3.87 | R56: 3.77 | S56: 3.76 | T56: 3.73 | U56: 3.7
B57: 2009 | C57: 2 | D57: 2009-06-30 | E57: 8.0993 | F57: 9.0424 | G57: 9.5203 | H57: 9.7309 | I57: 9.7548 | J57: 9.6306 | K57: =IF(ISERROR(VLOOKUP(D57, stats!$C$9:$H$1002, 4, FALSE)), "", VLOOKUP(D57, stats!$C$9:$H$1002, 4, FALSE)) -> 9.75482449 | L57: 2.448979592e-05 | M57: 10 | N57: 2018-09-30 | O57: 504 | P57: 3.9 | Q57: 3.8 | R57: 3.7 | S57: 3.7 | T57: 3.7 | U57: 3.6
B58: 2009 | C58: 3 | D58: 2009-09-30 | E58: 9.2029 | F58: 9.6268 | G58: 9.8509 | H58: 9.8659 | I58: 9.736 | J58: 9.5045 | K58: =IF(ISERROR(VLOOKUP(D58, stats!$C$9:$H$1002, 4, FALSE)), "", VLOOKUP(D58, stats!$C$9:$H$1002, 4, FALSE)) -> 9.735982353 | L58: 1.764705882e-05 | M58: 11 | N58: 2018-09-30 | O58: 507 | P58: 3.9 | Q58: 3.8917 | R58: 3.75 | S58: 3.7125 | T58: 3.6417 | U58: 3.6542
B59: 2009 | C59: 4 | D59: 2009-12-31 | E59: 9.6009 | F59: 10.1029 | G59: 10.2297 | H59: 10.1528 | I59: 9.9895 | J59: 9.7806 | K59: =IF(ISERROR(VLOOKUP(D59, stats!$C$9:$H$1002, 4, FALSE)), "", VLOOKUP(D59, stats!$C$9:$H$1002, 4, FALSE)) -> 9.989448718 | L59: 5.128205128e-05 | M59: 12 | N59: 2018-09-30 | O59: 508 | P59: 3.9 | Q59: 3.6928 | R59: 3.5237 | S59: 3.4109 | T59: 3.3795 | U59: 3.3992
B60: 2010 | C60: 1 | D60: 2010-03-31 | E60: 10.0008 | F60: 9.9308 | G60: 9.8659 | H60: 9.7873 | I60: 9.616 | J60: 9.4188 | K60: =IF(ISERROR(VLOOKUP(D60, stats!$C$9:$H$1002, 4, FALSE)), "", VLOOKUP(D60, stats!$C$9:$H$1002, 4, FALSE)) -> 9.615968293 | L60: 3.170731707e-05 | M60: 13 | N60: 2018-09-30 | O60: 510 | P60: 3.9 | Q60: 4 | R60: 3.9 | S60: 4 | T60: 4 | U60: 4
B61: 2010 | C61: 2 | D61: 2010-06-30 | E61: 9.7 | F61: 9.749 | G61: 9.6044 | H61: 9.4073 | I61: 9.2144 | J61: 8.9993 | K61: =IF(ISERROR(VLOOKUP(D61, stats!$C$9:$H$1002, 4, FALSE)), "", VLOOKUP(D61, stats!$C$9:$H$1002, 4, FALSE)) -> 9.214369767 | L61: 3.023255814e-05 | M61: 14 | N61: 2018-09-30 | O61: 518 | P61: 3.9 | Q61: 4 | R61: 3.9 | S61: 3.7 | T61: 3.8 | U61: 3.9
B62: 2010 | C62: 3 | D62: 2010-09-30 | E62: 9.7 | F62: 9.6323 | G62: 9.5546 | H62: 9.387 | I62: 9.2087 | J62: 9.0168 | K62: =IF(ISERROR(VLOOKUP(D62, stats!$C$9:$H$1002, 4, FALSE)), "", VLOOKUP(D62, stats!$C$9:$H$1002, 4, FALSE)) -> 9.208685714 | L62: 1.428571429e-05 | M62: 15 | N62: 2018-09-30 | O62: 524 | P62: 3.9 | Q62: 3.586 | R62: 3.4645 | S62: 3.4649 | T62: 3.4451 | U62: 3.3746
B63: 2010 | C63: 4 | D63: 2010-12-31 | E63: 9.5992 | F63: 9.6215 | G63: 9.5378 | H63: 9.3942 | I63: 9.2381 | J63: 9.0485 | K63: =IF(ISERROR(VLOOKUP(D63, stats!$C$9:$H$1002, 4, FALSE)), "", VLOOKUP(D63, stats!$C$9:$H$1002, 4, FALSE)) -> 9.238083333 | L63: 1.666666667e-05 | M63: 16 | N63: 2018-09-30 | O63: 528 | P63: 3.9 | Q63: 3.8127 | R63: 3.6695 | S63: 3.5704 | T63: 3.6368 | U63: 3.477
B64: 2011 | C64: 1 | D64: 2011-03-31 | E64: 9.6 | F64: 9.2925 | G64: 9.2127 | H64: 9.0415 | I64: 8.8336 | J64: 8.6686 | K64: =IF(ISERROR(VLOOKUP(D64, stats!$C$9:$H$1002, 4, FALSE)), "", VLOOKUP(D64, stats!$C$9:$H$1002, 4, FALSE)) -> 8.833578049 | L64: 2.195121951e-05 | M64: 17 | N64: 2018-09-30 | O64: 535 | P64: 3.9 | Q64: 3.8 | R64: 3.7 | S64: 3.6 | T64: 3.5 | U64: 3.4
B65: 2011 | C65: 2 | D65: 2011-06-30 | E65: 8.9 | F65: 8.8271 | G65: 8.6546 | H65: 8.4799 | I65: 8.3161 | J65: 8.1798 | K65: =IF(ISERROR(VLOOKUP(D65, stats!$C$9:$H$1002, 4, FALSE)), "", VLOOKUP(D65, stats!$C$9:$H$1002, 4, FALSE)) -> 8.316053488 | L65: 4.651162791e-05 | M65: 18 | N65: 2018-09-30 | O65: 546 | P65: 3.9 | Q65: 3.8 | R65: 3.7 | S65: 3.6 | T65: 3.5 | U65: 3.4
B66: 2011 | C66: 3 | D66: 2011-09-30 | E66: 9.1 | F66: 9.0673 | G66: 8.9511 | H66: 8.8369 | I66: 8.7251 | J66: 8.6266 | K66: =IF(ISERROR(VLOOKUP(D66, stats!$C$9:$H$1002, 4, FALSE)), "", VLOOKUP(D66, stats!$C$9:$H$1002, 4, FALSE)) -> 8.725068571 | L66: 3.142857143e-05 | M66: 19 | N66: 2018-09-30 | O66: 549 | P66: 3.9 | Q66: 3.8 | R66: 3.7 | S66: 3.6 | T66: 3.6 | U66: 3.5
B67: 2011 | C67: 4 | D67: 2011-12-31 | E67: 9.1 | F67: 9.0263 | G67: 8.9303 | H67: 8.8404 | I67: 8.7697 | J67: 8.6869 | K67: =IF(ISERROR(VLOOKUP(D67, stats!$C$9:$H$1002, 4, FALSE)), "", VLOOKUP(D67, stats!$C$9:$H$1002, 4, FALSE)) -> 8.769693182 | L67: 6.818181818e-06 | M67: 20 | N67: 2018-09-30 | O67: 553 | P67: 3.9 | Q67: 3.9 | R67: 3.8 | S67: 3.7 | T67: 3.7 | U67: 3.6
B68: 2012 | C68: 1 | D68: 2012-03-31 | E68: 8.7 | F68: 8.3964 | G68: 8.3209 | H68: 8.2193 | I68: 8.1191 | J68: 8.0237 | K68: =IF(ISERROR(VLOOKUP(D68, stats!$C$9:$H$1002, 4, FALSE)), "", VLOOKUP(D68, stats!$C$9:$H$1002, 4, FALSE)) -> 8.119131818 | L68: 3.181818182e-05 | M68: 21 | N68: 2018-09-30 | O68: 555 | P68: 3.9 | Q68: 3.9 | R68: 3.8 | S68: 3.7 | T68: 3.7 | U68: 3.6
B69: 2012 | C69: 2 | D69: 2012-06-30 | E69: 8.2991 | F69: 8.1379 | G69: 8.0383 | H69: 7.9298 | I69: 7.8088 | J69: 7.6807 | K69: =IF(ISERROR(VLOOKUP(D69, stats!$C$9:$H$1002, 4, FALSE)), "", VLOOKUP(D69, stats!$C$9:$H$1002, 4, FALSE)) -> 7.808757895 | L69: 4.210526316e-05 | M69: 22 | N69: 2018-09-30 | O69: 557 | P69: 3.9 | Q69: 3.8847 | R69: 3.7323 | S69: 3.755 | T69: 3.715 | U69: 3.7183
B70: 2012 | C70: 3 | D70: 2012-09-30 | E70: 8.2 | F70: 8.1907 | G70: 8.1002 | H70: 8.0279 | I70: 7.9304 | J70: 7.8113 | K70: =IF(ISERROR(VLOOKUP(D70, stats!$C$9:$H$1002, 4, FALSE)), "", VLOOKUP(D70, stats!$C$9:$H$1002, 4, FALSE)) -> 7.930395745 | L70: 4.255319149e-06 | M70: 23 | N70: 2018-09-30 | O70: 559 | P70: 3.9 | Q70: 3.6794 | R70: 3.4907 | S70: 3.4314 | T70: 3.372 | U70: 3.3126
B71: 2012 | C71: 4 | D71: 2012-12-31 | E71: 8.1 | F71: 7.8998 | G71: 7.8754 | H71: 7.8002 | I71: 7.7333 | J71: 7.6154 | K71: =IF(ISERROR(VLOOKUP(D71, stats!$C$9:$H$1002, 4, FALSE)), "", VLOOKUP(D71, stats!$C$9:$H$1002, 4, FALSE)) -> 7.733281579 | L71: 1.842105263e-05 | M71: 24 | N71: 2018-09-30 | O71: 560 | P71: 3.9 | Q71: 3.89 | R71: 3.75 | S71: 3.665 | T71: 3.6275 | U71: 3.6324
B72: 2013 | C72: 1 | D72: 2013-03-31 | E72: 7.8 | F72: 7.8245 | G72: 7.726 | H72: 7.6094 | I72: 7.5047 | J72: 7.4045 | K72: =IF(ISERROR(VLOOKUP(D72, stats!$C$9:$H$1002, 4, FALSE)), "", VLOOKUP(D72, stats!$C$9:$H$1002, 4, FALSE)) -> 7.5047 | L72: 8.881784197e-16 | M72: 25 | N72: 2018-09-30 | O72: 563 | P72: 3.9 | Q72: 3.9 | R72: 4 | S72: 4.1 | T72: 4.3 | U72: 4.6
B73: 2013 | C73: 2 | D73: 2013-06-30 | E73: 7.7 | F73: 7.5873 | G73: 7.511 | H73: 7.4123 | I73: 7.285 | J73: 7.1618 | K73: =IF(ISERROR(VLOOKUP(D73, stats!$C$9:$H$1002, 4, FALSE)), "", VLOOKUP(D73, stats!$C$9:$H$1002, 4, FALSE)) -> 7.28497 | L73: 3e-05 | M73: 26 | N73: 2018-09-30 | O73: 568 | P73: 3.9 | Q73: 3.8826 | R73: 3.9788 | S73: 3.9451 | T73: 3.9764 | U73: 3.9605
B74: 2013 | C74: 3 | D74: 2013-09-30 | E74: 7.5966 | F74: 7.4344 | G74: 7.3388 | H74: 7.2405 | I74: 7.1293 | J74: 7.0128 | K74: =IF(ISERROR(VLOOKUP(D74, stats!$C$9:$H$1002, 4, FALSE)), "", VLOOKUP(D74, stats!$C$9:$H$1002, 4, FALSE)) -> 7.129297436 | L74: 2.564102566e-06 | M74: 27 | N74: 2018-09-30 | O74: 569 | P74: 3.9 | Q74: 3.9 | R74: 3.8 | S74: 3.7 | T74: 3.6 | U74: 3.5
B75: 2013 | C75: 4 | D75: 2013-12-31 | E75: 7.3 | F75: 7.2263 | G75: 7.1197 | H75: 7.0016 | I75: 6.8677 | J75: 6.758 | K75: =IF(ISERROR(VLOOKUP(D75, stats!$C$9:$H$1002, 4, FALSE)), "", VLOOKUP(D75, stats!$C$9:$H$1002, 4, FALSE)) -> 6.867663415 | L75: 3.658536586e-05 | M75: 28 | N75: 2018-09-30 | O75: 570 | P75: 3.9 | Q75: 3.8221 | R75: 3.7646 | S75: 3.7211 | T75: 3.7214 | U75: 3.7429
B76: 2014 | C76: 1 | D76: 2014-03-31 | E76: 6.9992 | F76: 6.6913 | G76: 6.5868 | H76: 6.4625 | I76: 6.3536 | J76: 6.2372 | K76: =IF(ISERROR(VLOOKUP(D76, stats!$C$9:$H$1002, 4, FALSE)), "", VLOOKUP(D76, stats!$C$9:$H$1002, 4, FALSE)) -> 6.353559091 | L76: 4.090909091e-05 | M76: 29 | N76: 2018-09-30 | O76: 572 | P76: 3.9 | Q76: 3.8 | R76: 3.6 | S76: 3.8 | T76: 3.9 | U76: 4
B77: 2014 | C77: 2 | D77: 2014-06-30 | E77: 6.6992 | F77: 6.3807 | G77: 6.2978 | H77: 6.1966 | I77: 6.0875 | J77: 5.9777 | K77: =IF(ISERROR(VLOOKUP(D77, stats!$C$9:$H$1002, 4, FALSE)), "", VLOOKUP(D77, stats!$C$9:$H$1002, 4, FALSE)) -> 6.0874725 | L77: 2.75e-05 | M77: 30 | N77: 2018-09-30 | O77: 574 | P77: 3.9 | Q77: 3.8085 | R77: 3.7376 | S77: 3.6978 | T77: 3.6887 | U77: 3.7103
B78: 2014 | C78: 3 | D78: 2014-09-30 | E78: 6.2 | F78: 6.117 | G78: 5.9822 | H78: 5.884 | I78: 5.7728 | J78: 5.6729 | K78: =IF(ISERROR(VLOOKUP(D78, stats!$C$9:$H$1002, 4, FALSE)), "", VLOOKUP(D78, stats!$C$9:$H$1002, 4, FALSE)) -> 5.7728025 | L78: 2.499999999e-06 | M78: 31 | N78: 2018-09-30 | O78: 576 | P78: 3.9 | Q78: 3.8689 | R78: 3.7248 | S78: 3.7184 | T78: 3.6085 | U78: 3.6373
B79: 2014 | C79: 4 | D79: 2014-12-31 | E79: 6.0985 | F79: 5.8718 | G79: 5.7655 | H79: 5.6667 | I79: 5.575 | J79: 5.4871 | K79: =IF(ISERROR(VLOOKUP(D79, stats!$C$9:$H$1002, 4, FALSE)), "", VLOOKUP(D79, stats!$C$9:$H$1002, 4, FALSE)) -> 5.575009524 | L79: 9.523809524e-06 | M79: 32 | N79: 2018-09-30 | O79: 577 | P79: 3.9 | Q79: 3.8636 | R79: 3.8782 | S79: 3.8996 | T79: 3.9753 | U79: 4.0978
B80: 2015 | C80: 1 | D80: 2015-03-31 | E80: 5.7 | F80: 5.5825 | G80: 5.4612 | H80: 5.36 | I80: 5.277 | J80: 5.2035 | K80: =IF(ISERROR(VLOOKUP(D80, stats!$C$9:$H$1002, 4, FALSE)), "", VLOOKUP(D80, stats!$C$9:$H$1002, 4, FALSE)) -> 5.276997436 | L80: 2.564102564e-06 | M80: 33 | N80: 2018-09-30 | O80: 578 | P80: 3.9 | Q80: 3.8 | R80: 3.7 | S80: 3.6 | T80: 3.5 | U80: 3.3
B81: 2015 | C81: 2 | D81: 2015-06-30 | E81: 5.5984 | F81: 5.4248 | G81: 5.2978 | H81: 5.1839 | I81: 5.0958 | J81: 5.0324 | K81: =IF(ISERROR(VLOOKUP(D81, stats!$C$9:$H$1002, 4, FALSE)), "", VLOOKUP(D81, stats!$C$9:$H$1002, 4, FALSE)) -> 5.095790476 | L81: 9.523809525e-06 | M81: 34 | N81: 2018-09-30 | O81: 579 | P81: 3.9 | Q81: 3.6992 | R81: 3.5769 | S81: 3.4387 | T81: 3.32 | U81: 3.225
B82: 2015 | C82: 3 | D82: 2015-09-30 | E82: 5.4 | F82: 5.2487 | G82: 5.1366 | H82: 5.0505 | I82: 4.9784 | J82: 4.9417 | K82: =IF(ISERROR(VLOOKUP(D82, stats!$C$9:$H$1002, 4, FALSE)), "", VLOOKUP(D82, stats!$C$9:$H$1002, 4, FALSE)) -> 4.978365854 | L82: 3.414634146e-05 | M82: 35 | N82: 2018-09-30 | O82: 583 | P82: 3.9 | Q82: 3.9 | R82: 4 | S82: 3.9 | T82: 4 | U82: 4
B83: 2015 | C83: 4 | D83: 2015-12-31 | E83: 5.1992 | F83: 5.0334 | G83: 4.9632 | H83: 4.8946 | I83: 4.8434 | J83: 4.7874 | K83: =IF(ISERROR(VLOOKUP(D83, stats!$C$9:$H$1002, 4, FALSE)), "", VLOOKUP(D83, stats!$C$9:$H$1002, 4, FALSE)) -> 4.843374419 | L83: 2.558139535e-05 | M83: 36 | N83: 2018-09-30 | O83: 584 | P83: 3.9 | Q83: 3.9 | R83: 3.882 | S83: 3.8766 | T83: 3.8875 | U83: 3.9226
B84: 2016 | C84: 1 | D84: 2016-03-31 | E84: 5 | F84: 4.9103 | G84: 4.8264 | H84: 4.7335 | I84: 4.6679 | J84: 4.6526 | K84: =IF(ISERROR(VLOOKUP(D84, stats!$C$9:$H$1002, 4, FALSE)), "", VLOOKUP(D84, stats!$C$9:$H$1002, 4, FALSE)) -> 4.667934211 | L84: =IF(K84="", "", ABS(K84-OFFSET(D84, 0, $K$16))) -> 3.421052631e-05
B85: 2016 | C85: 2 | D85: =IF(B85="", "", DATE(B85, 3*C85+1, 0)) -> 2016-06-30 | E85: 4.9025 | F85: 4.8956 | G85: 4.8075 | H85: 4.7245 | I85: 4.6933 | J85: 4.6433 | K85: =IF(ISERROR(VLOOKUP(D85, stats!$C$9:$H$1002, 4, FALSE)), "", VLOOKUP(D85, stats!$C$9:$H$1002, 4, FALSE)) -> 4.69331 | L85: 9.999999999e-06 | X85: =IF(Y85="", "", X84+1) -> 
B86: 2016 | C86: 3 | D86: 2016-09-30 | E86: 4.8983 | F86: 4.8293 | G86: 4.7402 | H86: 4.7018 | I86: 4.6618 | J86: 4.63 | K86: =IF(ISERROR(VLOOKUP(D86, stats!$C$9:$H$1002, 4, FALSE)), "", VLOOKUP(D86, stats!$C$9:$H$1002, 4, FALSE)) -> 4.661841026 | L86: 4.102564102e-05
B87: 2016 | C87: 4 | D87: 2016-12-31 | E87: 4.9017 | F87: 4.8493 | G87: 4.7835 | H87: 4.7371 | I87: 4.7018 | J87: 4.6682 | K87: =IF(ISERROR(VLOOKUP(D87, stats!$C$9:$H$1002, 4, FALSE)), "", VLOOKUP(D87, stats!$C$9:$H$1002, 4, FALSE)) -> 4.701823077 | L87: 2.307692308e-05
B88: 2017 | C88: 1 | D88: 2017-03-31 | E88: 4.7 | F88: 4.7132 | G88: 4.6481 | H88: 4.6036 | I88: 4.5579 | J88: 4.504 | K88: =IF(ISERROR(VLOOKUP(D88, stats!$C$9:$H$1002, 4, FALSE)), "", VLOOKUP(D88, stats!$C$9:$H$1002, 4, FALSE)) -> 4.557892308 | L88: 7.692307691e-06
B89: 2017 | C89: 2 | D89: 2017-06-30 | E89: 4.699 | F89: 4.516 | G89: 4.4477 | H89: 4.4016 | I89: 4.3455 | J89: 4.3167 | K89: =IF(ISERROR(VLOOKUP(D89, stats!$C$9:$H$1002, 4, FALSE)), "", VLOOKUP(D89, stats!$C$9:$H$1002, 4, FALSE)) -> 4.345531429 | L89: 3.142857143e-05
B90: 2017 | C90: 3 | D90: 2017-09-30 | E90: 4.3973 | F90: 4.3049 | G90: 4.2485 | H90: 4.1988 | I90: 4.1755 | J90: 4.1639 | K90: =IF(ISERROR(VLOOKUP(D90, stats!$C$9:$H$1002, 4, FALSE)), "", VLOOKUP(D90, stats!$C$9:$H$1002, 4, FALSE)) -> 4.175497297 | L90: 2.702702704e-06
B91: 2017 | C91: 4 | D91: 2017-12-31 | E91: 4.3 | F91: 4.1628 | G91: 4.1287 | H91: 4.0933 | I91: 4.0835 | J91: 4.0573 | K91: =IF(ISERROR(VLOOKUP(D91, stats!$C$9:$H$1002, 4, FALSE)), "", VLOOKUP(D91, stats!$C$9:$H$1002, 4, FALSE)) -> 4.083482051 | L91: 1.794871795e-05
B92: 2018 | C92: 1 | D92: 2018-03-31 | E92: 4.1 | F92: 4.0418 | G92: 3.9563 | H92: 3.9027 | I92: 3.8486 | J92: 3.8279 | K92: =IF(ISERROR(VLOOKUP(D92, stats!$C$9:$H$1002, 4, FALSE)), "", VLOOKUP(D92, stats!$C$9:$H$1002, 4, FALSE)) -> 3.848614706 | L92: 1.470588235e-05
B93: 2018 | C93: 2 | D93: 2018-06-30 | E93: 4.0977 | F93: 3.9429 | G93: 3.8735 | H93: 3.8085 | I93: 3.7712 | J93: 3.7574 | K93: =IF(ISERROR(VLOOKUP(D93, stats!$C$9:$H$1002, 4, FALSE)), "", VLOOKUP(D93, stats!$C$9:$H$1002, 4, FALSE)) -> 3.771220588 | L93: 2.058823529e-05
B94: 2018 | C94: 3 | D94: 2018-09-30 | E94: 3.9 | F94: 3.8317 | G94: 3.7323 | H94: 3.6794 | I94: 3.6685 | J94: 3.6438 | K94: =IF(ISERROR(VLOOKUP(D94, stats!$C$9:$H$1002, 4, FALSE)), "", VLOOKUP(D94, stats!$C$9:$H$1002, 4, FALSE)) -> 3.668469444 | L94: 3.055555556e-05
K95: =IF(ISERROR(VLOOKUP(D95, stats!$C$9:$H$1002, 4, FALSE)), "", VLOOKUP(D95, stats!$C$9:$H$1002, 4, FALSE)) -> 
K96: =IF(ISERROR(VLOOKUP(D96, stats!$C$9:$H$1002, 4, FALSE)), "", VLOOKUP(D96, stats!$C$9:$H$1002, 4, FALSE)) -> 
K97: =IF(ISERROR(VLOOKUP(D97, stats!$C$9:$H$1002, 4, FALSE)), "", VLOOKUP(D97, stats!$C$9:$H$1002, 4, FALSE)) -> 
K98: =IF(ISERROR(VLOOKUP(D98, stats!$C$9:$H$1002, 4, FALSE)), "", VLOOKUP(D98, stats!$C$9:$H$1002, 4, FALSE)) -> 
K99: =IF(ISERROR(VLOOKUP(D99, stats!$C$9:$H$1002, 4, FALSE)), "", VLOOKUP(D99, stats!$C$9:$H$1002, 4, FALSE)) -> 
K100: =IF(ISERROR(VLOOKUP(D100, stats!$C$9:$H$1002, 4, FALSE)), "", VLOOKUP(D100, stats!$C$9:$H$1002, 4, FALSE)) -> 
K101: =IF(ISERROR(VLOOKUP(D101, stats!$C$9:$H$1002, 4, FALSE)), "", VLOOKUP(D101, stats!$C$9:$H$1002, 4, FALSE)) -> 
K102: =IF(ISERROR(VLOOKUP(D102, stats!$C$9:$H$1002, 4, FALSE)), "", VLOOKUP(D102, stats!$C$9:$H$1002, 4, FALSE)) -> 
K103: =IF(ISERROR(VLOOKUP(D103, stats!$C$9:$H$1002, 4, FALSE)), "", VLOOKUP(D103, stats!$C$9:$H$1002, 4, FALSE)) -> 
K104: =IF(ISERROR(VLOOKUP(D104, stats!$C$9:$H$1002, 4, FALSE)), "", VLOOKUP(D104, stats!$C$9:$H$1002, 4, FALSE)) -> 
K105: =IF(ISERROR(VLOOKUP(D105, stats!$C$9:$H$1002, 4, FALSE)), "", VLOOKUP(D105, stats!$C$9:$H$1002, 4, FALSE)) -> 
K106: =IF(ISERROR(VLOOKUP(D106, stats!$C$9:$H$1002, 4, FALSE)), "", VLOOKUP(D106, stats!$C$9:$H$1002, 4, FALSE)) -> 
K107: =IF(ISERROR(VLOOKUP(D107, stats!$C$9:$H$1002, 4, FALSE)), "", VLOOKUP(D107, stats!$C$9:$H$1002, 4, FALSE)) -> 
L116: =IF(K116="", "", ABS(K116-OFFSET(D116, 0, $K$16))) -> 
K124: =IF(ISERROR(VLOOKUP(D124, stats!$C$9:$H$1002, 4, FALSE)), "", VLOOKUP(D124, stats!$C$9:$H$1002, 4, FALSE)) -> 
K125: =IF(ISERROR(VLOOKUP(D125, stats!$C$9:$H$1002, 4, FALSE)), "", VLOOKUP(D125, stats!$C$9:$H$1002, 4, FALSE)) -> 
K126: =IF(ISERROR(VLOOKUP(D126, stats!$C$9:$H$1002, 4, FALSE)), "", VLOOKUP(D126, stats!$C$9:$H$1002, 4, FALSE)) -> 
K127: =IF(ISERROR(VLOOKUP(D127, stats!$C$9:$H$1002, 4, FALSE)), "", VLOOKUP(D127, stats!$C$9:$H$1002, 4, FALSE)) -> 
K128: =IF(ISERROR(VLOOKUP(D128, stats!$C$9:$H$1002, 4, FALSE)), "", VLOOKUP(D128, stats!$C$9:$H$1002, 4, FALSE)) -> 
K129: =IF(ISERROR(VLOOKUP(D129, stats!$C$9:$H$1002, 4, FALSE)), "", VLOOKUP(D129, stats!$C$9:$H$1002, 4, FALSE)) -> 
K130: =IF(ISERROR(VLOOKUP(D130, stats!$C$9:$H$1002, 4, FALSE)), "", VLOOKUP(D130, stats!$C$9:$H$1002, 4, FALSE)) -> 
K131: =IF(ISERROR(VLOOKUP(D131, stats!$C$9:$H$1002, 4, FALSE)), "", VLOOKUP(D131, stats!$C$9:$H$1002, 4, FALSE)) -> 
K132: =IF(ISERROR(VLOOKUP(D132, stats!$C$9:$H$1002, 4, FALSE)), "", VLOOKUP(D132, stats!$C$9:$H$1002, 4, FALSE)) -> 
K133: =IF(ISERROR(VLOOKUP(D133, stats!$C$9:$H$1002, 4, FALSE)), "", VLOOKUP(D133, stats!$C$9:$H$1002, 4, FALSE)) -> 
K134: =IF(ISERROR(VLOOKUP(D134, stats!$C$9:$H$1002, 4, FALSE)), "", VLOOKUP(D134, stats!$C$9:$H$1002, 4, FALSE)) -> 
K135: =IF(ISERROR(VLOOKUP(D135, stats!$C$9:$H$1002, 4, FALSE)), "", VLOOKUP(D135, stats!$C$9:$H$1002, 4, FALSE)) -> 
K136: =IF(ISERROR(VLOOKUP(D136, stats!$C$9:$H$1002, 4, FALSE)), "", VLOOKUP(D136, stats!$C$9:$H$1002, 4, FALSE)) -> 
K137: =IF(ISERROR(VLOOKUP(D137, stats!$C$9:$H$1002, 4, FALSE)), "", VLOOKUP(D137, stats!$C$9:$H$1002, 4, FALSE)) -> 
K138: =IF(ISERROR(VLOOKUP(D138, stats!$C$9:$H$1002, 4, FALSE)), "", VLOOKUP(D138, stats!$C$9:$H$1002, 4, FALSE)) -> 
K139: =IF(ISERROR(VLOOKUP(D139, stats!$C$9:$H$1002, 4, FALSE)), "", VLOOKUP(D139, stats!$C$9:$H$1002, 4, FALSE)) -> 
K140: =IF(ISERROR(VLOOKUP(D140, stats!$C$9:$H$1002, 4, FALSE)), "", VLOOKUP(D140, stats!$C$9:$H$1002, 4, FALSE)) -> 
K141: =IF(ISERROR(VLOOKUP(D141, stats!$C$9:$H$1002, 4, FALSE)), "", VLOOKUP(D141, stats!$C$9:$H$1002, 4, FALSE)) -> 
K142: =IF(ISERROR(VLOOKUP(D142, stats!$C$9:$H$1002, 4, FALSE)), "", VLOOKUP(D142, stats!$C$9:$H$1002, 4, FALSE)) -> 
K143: =IF(ISERROR(VLOOKUP(D143, stats!$C$9:$H$1002, 4, FALSE)), "", VLOOKUP(D143, stats!$C$9:$H$1002, 4, FALSE)) -> 
K144: =IF(ISERROR(VLOOKUP(D144, stats!$C$9:$H$1002, 4, FALSE)), "", VLOOKUP(D144, stats!$C$9:$H$1002, 4, FALSE)) -> 
K145: =IF(ISERROR(VLOOKUP(D145, stats!$C$9:$H$1002, 4, FALSE)), "", VLOOKUP(D145, stats!$C$9:$H$1002, 4, FALSE)) -> 
K146: =IF(ISERROR(VLOOKUP(D146, stats!$C$9:$H$1002, 4, FALSE)), "", VLOOKUP(D146, stats!$C$9:$H$1002, 4, FALSE)) -> 
K147: =IF(ISERROR(VLOOKUP(D147, stats!$C$9:$H$1002, 4, FALSE)), "", VLOOKUP(D147, stats!$C$9:$H$1002, 4, FALSE)) -> 
K148: =IF(ISERROR(VLOOKUP(D148, stats!$C$9:$H$1002, 4, FALSE)), "", VLOOKUP(D148, stats!$C$9:$H$1002, 4, FALSE)) -> 
K149: =IF(ISERROR(VLOOKUP(D149, stats!$C$9:$H$1002, 4, FALSE)), "", VLOOKUP(D149, stats!$C$9:$H$1002, 4, FALSE)) -> 
K150: =IF(ISERROR(VLOOKUP(D150, stats!$C$9:$H$1002, 4, FALSE)), "", VLOOKUP(D150, stats!$C$9:$H$1002, 4, FALSE)) -> 
K151: =IF(ISERROR(VLOOKUP(D151, stats!$C$9:$H$1002, 4, FALSE)), "", VLOOKUP(D151, stats!$C$9:$H$1002, 4, FALSE)) -> 
K152: =IF(ISERROR(VLOOKUP(D152, stats!$C$9:$H$1002, 4, FALSE)), "", VLOOKUP(D152, stats!$C$9:$H$1002, 4, FALSE)) -> 
K153: =IF(ISERROR(VLOOKUP(D153, stats!$C$9:$H$1002, 4, FALSE)), "", VLOOKUP(D153, stats!$C$9:$H$1002, 4, FALSE)) -> 
K154: =IF(ISERROR(VLOOKUP(D154, stats!$C$9:$H$1002, 4, FALSE)), "", VLOOKUP(D154, stats!$C$9:$H$1002, 4, FALSE)) -> 
K155: =IF(ISERROR(VLOOKUP(D155, stats!$C$9:$H$1002, 4, FALSE)), "", VLOOKUP(D155, stats!$C$9:$H$1002, 4, FALSE)) -> 

Sheet config
B2: TAB: CONFIGURATION FILE
B4: Test connection | C4: =_xll.AC.test.connection() -> host: CA2013466W3; user: Konstantin.Rybakov; key: null | G4: Enable calculations | H4: FALSE
B6: Array formula cell address | C6: number of rows | D6: number of cols | E6: Description | G6: Parameter | H6: Description
B7: =addressFla(stats!$C$8) -> 'stats'!$C$8 | C7: =stats!G4 -> 76 | D7: =stats!H4 -> 6 | E7: Forecast sample as of forecast issue date | G7: Statistics | H7: Sample statistics | I7: Data types | J7: Sample key data types
B8: =addressFla(stats!K8) -> 'stats'!$K$8 | C8: =stats!O4 -> 76 | D8: =stats!P4 -> 6 | E8: Forecast sample as of forecast maturity date | G8: min | I8: date
B9: =addressFla(stats!S8) -> 'stats'!$S$8 | C9: =stats!W4 -> 6 | D9: =stats!X4 -> 7 | E9: Forecast sample with different maturities | G9: max | I9: int
B10: =addressFla(test!N19) -> 'test'!$N$19 | C10: =MIN(test!P17, 11) -> 2 | D10: =test!Q17 -> 7 | E10: =test!M18 -> Sample with forecaster-id values repersented as lists | G10: mean | I10: double
B11: =addressFla(test!N33) -> 'test'!$N$33 | C11: =MIN(test!P31, 11) -> 7 | D11: =test!Q31 -> 7 | E11: =test!M32 -> Sample with statistics calculated over the forecaster-id values | G11: median | I11: string
B12: =addressFla(test!N47) -> 'test'!$N$47 | C12: =test!P45 -> 37 | D12: =test!Q45 -> 8 | E12: =test!M46 -> Original sample (at a specific issue date) | G12: stdev | I12: sample-type | J12: Type of the constructed sample
B13: =addressFla(test!Y19) -> 'test'!$Y$19 | C13: =test!AA17 -> 37 | D13: =test!AB17 -> 8 | E13: =test!X18 -> Sample with permutated keys | G13: variance | I13: sample-forecast-A
G14: percentile | I14: sample-forecast-B
B15: Supplementary output parameters | I15: period-unit | J15: Duration of a forecast period unit
I16: quarter
B17: =G26 -> table-header-names | C17: Forecast maturity
C18: Forecast maturity date | G18: key-ranking | H18: List of sample key ranking (default ranking is (c0, c1, …, r0, r1, …)
C19: Forecast issue date | G19: key-types | H19: Mapping from key id to key type: e.g. (r0 => date, r1 => int, c0 => string)
C20: Forecaster id | G20: values-only | H20: If 1, return value array without keys
C21: Statistics | G21: key-id | H21: Key id which specifies to which sample level the key value applies
G22: key-value | H22: Key value use to retrieve a sub-sample
B23: key-ids | C23: =G36 -> maturity | G23: key-ids-row | H23: Row key ids used to convert sample to array
C24: =G41 -> issue-date | G24: key-ids-col | H24: Column key ids used to convert sample to array
C25: =G34 -> forecaster-id | G25: level | H25: Specifies how to split sample in two-dimensional array
B26: Graph configuration | G26: table-header-names | H26: Names of keys added as a respective columns headers
G27: tenor-id-mapping | H27: Mapping from tenor to variable id
B28: line | C28: yes | E28: Set to yes/no to set line visible or non-visible | G28: log-level-debug | H28: Set to one and use logger.debug method to print only selected output from java
B29: line-size | C29: 1.5 | E29: Set line size | G29: sort-order | H29: Order in which keys in the output tables are sorted
B30: marker | C30: no | E30: Set to yes/no to set markers visible or non-visible | G30: row-first | H30: First row of the array list
B31: marker-size | C31: 3 | E31: Set markers size | G31: row-count | H31: Number of array list rows
B32: exclude-series | E32: List of series names that are not modified | G32: col-first | H32: First column of the array list
B33: exclude-charts | E33: List of charts that are not modified | G33: col-count | H33: Number of array list columns
B34: reference-chart | C34: 1 | E34: Chart index used for series colors mar]tching | G34: forecaster-id | H34: Forecaster id
B35: match-colors | C35: yes | E35: Set yes if colors of each series is matched to the series color in the reference chart | G35: variable-id | H35: Variable id
G36: maturity | H36: Forecast maturity label
G37: maturity-date | H37: Forecast maturity date
G38: stats-id | H38: Key id for the sample level with sample statistics data
G40: field-key | H40: The key used to retrieve the field of a sample forecast observation
G41: issue-date | H41: Forecast issue date
G42: publish-date | H42: Date when the forecast was published
G43: forecast-value | H43: Forecast value
G44: value-size | H44: Size of the values arrays

Sheet guide
B2: Package: AC.stats.sample Available functions:
